Workbook

Sheet NEW_528_Forage_Balance
A1: FIELD OFFICE: | D1: Anytown Field Office | I1: COUNTY: | K1: Any County | P1: DATE: | R1: 2020-11-12 | T1: Complete one forage balance for the pastures being planned. If planning for entire operations complete a forage balance for each enterprise. For example: Client A has a pure-bred angus herd that grazes one set of pastures and a composite herd that grazes another set of pastures: complete two prescribed grazing job sheets (you can use the same CPA-17A or two which ever you prefer).
A2: CLIENT: | C2: Mary Rancher - Sunnyvale Ranch | I2: FARM/TRACT NO: | K2: Farm 12785: Tracts 1236, 1987 Farm 12965: Tracts 876, 951 | P2: CONTRACT NO: | R2: 12345K
A4: LEGAL DESCRIPTION: | D4: S2 Section 4, All Section 5, SE4, E2SW4 Section 7, All Section 8, NW4 SECTION 9 T-X-N, R-36W
A6: Describe Management Objectives and Goals for Operation/Enterprise: | E6: Improve forage production by 10% over the next 5 years by increasing the percentage of warm season, tall and mid grasses and increase carrying capacity to allow a longer grazing season to reduce feeding of supplemental forages to reduce overhead production costs.
A10: Describe Grazing System and General Herd information: | E10: Current management is a 4-pasture deferred rotation system, twice through. Flash graze of ~ 5 days in spring to graze cheatgrass growth and then slower graze through each pasture. Graze corn stalks in fall; feed hay on crop aftermath in winter; calve and spring graze in a different set of pastures. Large pastures will be split to result in a 9-pasture deferred rotation system to allow longer recovery time for the individual pastures and which will facilitate adaptive management.
A12: Average Date Into Unit: | D12: Existing: May 15; Planned: May 1 | H12: Average Date Removed From Unit: | K12: Existing: October 31; Planned November 15. | N12: Forage Needs Expressed As: | P12: X | Q12: AUM | S12: AUD | T12: Indicate whether forage is listed as AUM or AUD
A14: Notes:
A15: Existing Livestock Numbers and Forage Needs | L15: Planned Livestock Numbers and Forage Needs | T15: Hide rows for the livestock types that are not included in the operation to clean up the printout.
A16: Livestock Type | D16: AU Equivalent | E16: Average Weight | F16: Number | G16: AUM / Month Needed | H16: AUD / Month Needed | I16: Months on Unit | J16: AUM Needed | K16: AUD Needed | L16: Number | M16: AUM/ Month Needed | N16: AUD/ Month Needed | P16: Months on Unit | Q16: AUM Needed | R16: AUD Needed
A18: Cow/calf pair | D18: =IF(A18=0,"",(VLOOKUP(A18,NEW_DATA!$V$2:$W$15,2,FALSE))) -> 1 | E18: 1350 | F18: 85 | G18: =IF(F18=0,"",D18*(E18/1000)*F18) -> 114.75 | H18: =IF(F18=0,"",(G18*30)) -> 3442.5 | I18: 4.5 | J18: =IF(F18=0,"",(G18*I18)) -> 516.375 | K18: =IF(I18=0,"",(J18*30)) -> 15491.25 | L18: 85 | M18: =IF(L18=0,"",(D18*(E18/1000)*L18)) -> 114.75 | N18: =IF(L18=0,"",(M18*30)) -> 3442.5 | P18: 5 | Q18: =IF(L18=0,"",(P18*M18)) -> 573.75 | R18: =IF(P18=0,"",(N18*P18)) -> 17212.5 | T18: In this example, the cow herd is on pasture from May 15th through October 31 most years. Then moved to corn stalks, and we aren't including the winter grazing in the plan. The calves are weaned on approximately September 30th, so the animals are moved from pairs to dry cows for the month of October.
A19: Dry cows | D19: =IF(A19=0,"",(VLOOKUP(A19,NEW_DATA!$V$2:$W$15,2,FALSE))) -> 0.92 | E19: 1350 | F19: 85 | G19: =IF(F19=0,"",D19*(E19/1000)*F19) -> 105.57 | H19: =IF(F19=0,"",(G19*30)) -> 3167.1 | I19: 1 | J19: =IF(F19=0,"",(G19*I19)) -> 105.57 | K19: =IF(I19=0,"",(J19*30)) -> 3167.1 | L19: 85 | M19: =IF(L19=0,"",(D19*(E19/1000)*L19)) -> 105.57 | N19: =IF(L19=0,"",(M19*30)) -> 3167.1 | P19: 1.5 | Q19: =IF(L19=0,"",(P19*M19)) -> 158.355 | R19: =IF(P19=0,"",(N19*P19)) -> 4750.65
A20: Bull | D20: =IF(A20=0,"",(VLOOKUP(A20,NEW_DATA!$V$2:$W$15,2,FALSE))) -> 1.35 | E20: 2200 | F20: 5 | G20: 14.85 | H20: 445.5 | I20: 2 | J20: 29.7 | K20: 891 | L20: 5 | M20: 14.85 | N20: 445.5 | P20: 2 | Q20: 29.7 | R20: 891
A21: Yearling | D21: =IF(A21=0,"",(VLOOKUP(A21,NEW_DATA!$V$2:$W$15,2,FALSE))) -> 0
A22: 1st calf heifer | D22: =IF(A22=0,"",(VLOOKUP(A22,NEW_DATA!$V$2:$W$15,2,FALSE))) -> 0.8
A23: Horse, mature | D23: =IF(A23=0,"",(VLOOKUP(A23,NEW_DATA!$V$2:$W$15,2,FALSE))) -> 1.25 | E23: 1500 | F23: 3 | G23: 5.625 | H23: 168.75 | I23: 12 | J23: 67.5 | K23: 2025 | L23: 3 | M23: 5.625 | N23: 168.75 | P23: 12 | Q23: 67.5 | R23: 2025
A24: Sheep, mature | D24: =IF(A24=0,"",(VLOOKUP(A24,NEW_DATA!$V$2:$W$15,2,FALSE))) -> 0.2
A25: Lamb, 1 year old | D25: =IF(A25=0,"",(VLOOKUP(A25,NEW_DATA!$V$2:$W$15,2,FALSE))) -> 0.15
A26: Goat, mature | D26: =IF(A26=0,"",(VLOOKUP(A26,NEW_DATA!$V$2:$W$15,2,FALSE))) -> 0.15 | T26: If you do not want both AUM and AUD to display, highlight the unwanted cells with black.
A27: Kid, 1 year old | D27: =IF(A27=0,"",(VLOOKUP(A27,NEW_DATA!$V$2:$W$15,2,FALSE))) -> 0.1
A28: Deer, white tail | D28: =IF(A28=0,"",(VLOOKUP(A28,NEW_DATA!$V$2:$W$15,2,FALSE))) -> 0.15
A29: Bison | D29: =IF(A29=0,"",(VLOOKUP(A29,NEW_DATA!$V$2:$W$15,2,FALSE))) -> 1 | T29: If the expected forage production is expected to improve and increase, long-term, or forage harvest expected to increase long-term, then increase the AUM available accordingly. In some cases (removal of invasive woody or weedy species, the increase in forage production may be quite rapid.
A30: Deer, mule | D30: =IF(A30=0,"",(VLOOKUP(A30,NEW_DATA!$V$2:$W$15,2,FALSE))) -> 0.2
A31: Elk | D31: =IF(A31=0,"",(VLOOKUP(A31,NEW_DATA!$V$2:$W$15,2,FALSE))) -> 0.6 | H31: =IF(F31=0,"",(G31*30)) ->  | J31: =IF(F31=0,"",(G31*I31)) ->  | R31: =IF(P31=0,"",(N31*P31)) -> 
A32: TOTAL EXISTING FORAGE DEMAND: | J32: =SUM(J18:J31) -> 719.145 | K32: =SUM(K18:K31) -> 21574.35 | L32: TOTAL PLANNED FORAGE DEMAND: | Q32: =SUM(Q18:Q31) -> 829.305 | R32: =SUM(R18:R31) -> 24879.15
F34: FORAGE INVENTORY - AVAILABLE FORAGE RESOURCES | T34: Note: IF plans are to increase numbers due to the impact of improved grazing management the increase in stocking rate should not be immediate - it should only increase as the forage production increases. It may take several years (or more) to realize the increases that will allow a higher harvest efficiency or that result in a plant community with increased production.
H35: Existing | L35: Planned
F36: GRAZED FORAGES
F37: Type of Forage | H37: Acres | I37: AUMs | J37: AUDs | K37: Season of Use | L37: Acres | M37: AUMs | N37: AUDs | O37: Season of Use
F38: Rangeland | H38: 2000 | I38: 712.5 | J38: 21376.9 | K38: Spring/Summer/Fall | L38: 2000 | M38: 712.5 | N38: 21376.9 | O38: Spring/Summer/Fall
F39: Pastureland
F40: Annual Forage
F41: Crop Residue
F42: Other Grazed
F43: TOTAL AVAILABLE FORAGE: | J43: AUM | K43: AUD | L43: Total Ac. Forage | N43: AUM | O43: AUD
J44: =SUM(I38:I42) -> 712.5 | K44: =SUM(J38:J42) -> 21376.9 | N44: =SUM(M38:M42) -> 712.5 | O44: =SUM(N38:N42) -> 21376.9
F46: HARVESTED FORAGES (HAY & GRAIN) - OPTIONAL | T46: If you are not working with supplemental feed, you can hide the rows with the feed table (44 - 50, and 55)
F47: Type of Feed | H47: Source | I47: Total Tons Available | J47: Conversion Factor | K47: AUM's | L47: Source | M47: Total Tons Available | N47: Conversion Factor | O47: AUM's
J48: =IF(F48=0," ",VLOOKUP(F48,DATA!$A$1:$B$6,2,FALSE)) ->  | K48: =IF(F48=0,"", SUM(I48*J48)) ->  | N48: =IF(F48=0," ",VLOOKUP(F48,DATA!$A$1:$B$6,2,FALSE)) ->  | O48: =IF(F48=0,"", SUM(M48*N48)) -> 
J49: =IF(F49=0," ",VLOOKUP(F49,DATA!$A$1:$B$6,2,FALSE)) ->  | K49: =IF(F49=0,"", SUM(I49*J49)) ->  | N49: =IF(F49=0," ",VLOOKUP(F49,DATA!$A$1:$B$6,2,FALSE)) ->  | O49: =IF(F49=0,"", SUM(M49*N49)) -> 
J50: =IF(F50=0," ",VLOOKUP(F50,DATA!$A$1:$B$6,2,FALSE)) ->  | K50: =IF(F50=0,"", SUM(I50*J50)) ->  | N50: =IF(F50=0," ",VLOOKUP(F50,DATA!$A$1:$B$6,2,FALSE)) ->  | O50: =IF(F50=0,"", SUM(M50*N50)) -> 
J51: =IF(F51=0," ",VLOOKUP(F51,DATA!$A$1:$B$6,2,FALSE)) ->  | K51: =IF(F51=0,"", SUM(I51*J51)) ->  | N51: =IF(F51=0," ",VLOOKUP(F51,DATA!$A$1:$B$6,2,FALSE)) ->  | O51: =IF(F51=0,"", SUM(M51*N51)) -> 
F52: Total AUM's Available | J52: =SUM(K48:K51) -> 0 | L52: Total AUM's Available | N52: =SUM(O48:O51) -> 0
G54: FORAGE BALANCE FOR UNIT
I55: Existing | L55: Planned
I56: AUMs | K56: AUDs | L56: AUMs | N56: AUDs | T56: If the feed/forage supply and demand are balanced (or more forage than needed in average years)the "% Forage Needed Compared to Available will appear in black font. If the font is red, more forage is needed than is available in a typical year; if font is red and cell is shaded light red, then the balance does not meet the standard.
G57: Forage Available | I57: =J44 -> 712.5 | K57: =K44 -> 21376.9 | L57: =N44 -> 712.5 | N57: =O44 -> 21376.9
G58: Feed Available | I58: =IF(I48=0,"",(J52)) ->  | K58: =IF(J52=0,"",(I58*30)) ->  | L58: =IF(N52=0,"",(N52)) ->  | N58: =IF(N52=0,"",(L58*30)) -> 
G59: Total Available | I59: =SUM(I57:I58) -> 712.5 | K59: =SUM(K57:K58) -> 21376.9 | L59: =SUM(L57:L58) -> 712.5 | N59: =SUM(N57:N58) -> 21376.9
G60: Forage Needed | I60: =J32 -> 719.145 | K60: =K32 -> 21574.35 | L60: =Q32 -> 829.305 | N60: =R32 -> 24879.15
G61: Forage Balance | I61: =I59-I60 -> -6.645 | K61: =K59-K60 -> -197.45 | L61: =L59-L60 -> -116.805 | N61: =N59-N60 -> -3502.25
G62: % Forage Needed Compared to Available | I62: =100-((I61/I60)*100) -> 100.9240139 | K62: =100-((K61/K60)*100) -> 100.9152072 | L62: =100-((L61/L59)*100) -> 116.3936842 | N62: =100-((N61/N59)*100) -> 116.383339
G67: FORAGE AVAILABILITY PER PASTURE
G68: Field Number | H68: Acres | I68: Forage Type | K68: Planned Harvest Efficiency | L68: Estimated Available Forage AUM or AUD | N68: Estimated Days per Pasture | O68: Length Grazing Season (days): | Q68: 195 | T68: Make sure to enter the length of the grazing season , or the estimated days per pasture will not auto calculate. In this example, the grazing season is May 1 - Nov 15 or 6.5 months (195 days).
G69: R1A | H69: 305 | I69: Range | K69: 0.3 | L69: 115 | N69: =IF(G69=0,"",((L69/$N$122)*$Q$68)) -> 31.4516129
G70: R1B | H70: 335 | I70: Range | K70: 0.3 | L70: 92 | N70: =IF(G70=0,"",((L70/$N$122)*$Q$68)) -> 25.16129032
G71: R2 | H71: 320 | I71: Range | K71: 0.3 | L71: 122 | N71: 33.36605891
G72: R3 | H72: 80 | I72: Range | K72: 0.3 | L72: 35 | N72: 9.572230014
G73: R4 | H73: 160 | I73: Range | K73: 0.3 | L73: 58 | N73: 15.86255259
G74: R5A | H74: 240 | I74: Range | K74: 0.3 | L74: 66 | N74: 18.05049088
G75: R5B | H75: 263 | I75: Range | K75: 0.3 | L75: 106 | N75: 28.99018233
G76: R5C | H76: 137 | I76: Range | K76: 0.3 | L76: 29 | N76: 7.931276297
G77: R6 | H77: 160 | I77: Range | K77: 0.3 | L77: 90 | N77: 24.61430575
G122: TOTAL ACRES: | I122: =SUM(H69:H121) -> 2000 | K122: TOTAL FORAGE AVAILABLE: | N122: =SUM(L69:L121) -> 713
G123: Total Days: | N123: =SUM(N69:N121) -> 195
A125: Design Information: Natural Resources Conservation Service (NRCS) Representative or Technical Service Provider (TSP):
A127: Inventory by: | J127: Date:
A128: Designed by: | J128: Date:
A129: Approved by: | J129: Date:
A131: Producer Acknowledgement: I have received a copy of the specifications for prescribed grazing and understand the contents and requirements.
T132: Before printing, hide unneeded rows and set the page breaks as needed to break the document where desired, such as keeping the signature blocks together. Under the View menu, chose page break preview and drag or insert page breaks to desired page breaks.
A133: Producer Signature: | J133: Date:
A135: Practice Certification: This applied practice meets Nebraska NRCS standards and specifications:
A137: Signature: | J137: Date:
A138: Representing:
T139: Attach Forage Inventory (NE-CPA-17A or NE-CPA-17B, or other forage inventory documentation form), Grazing Schedule (one of the 4 provided, or a map with grazing dates, or other format which describes the grazing sequence, estimated days and dates per pasture), either NE-CPA-414A or NE-CPA-414B, contingency plan, and either Range Trend or Pasture Condition Score worksheets as appropriate.
A140: Producer verification required if financial assistance is being received for prescribed grazing: This practice has been applied as designed:
A141: Producer Signature:
J142: Date:

Sheet OPTIONAL Monthly Production
A1: CLIENT: | I1: FARM/TRACT NO: | P1: CONTRACT NO:
A3: Existing Livestock Numbers and Forage Needs | U3: This can be used in addition to the NEW 528 Forage Balance Sheet if you wish to show the monthly balance.
A5: Livestock Type | D5: AU Equivalent | E5: Average Weight | F5: Number | G5: AUM / Month Needed | H5: AUD / Month Needed | I5: AUM OR AUD NEEDED BY MONTH | U5: Hide rows for the livestock types that are not included in the operation to clean up the printout.
I6: Jan | J6: Feb | K6: Mar | L6: Apr | M6: May | N6: Jun | O6: Jul | P6: Aug | Q6: Sep | R6: Oct | S6: Nov | T6: Dec
A7: Cow/calf pair | D7: =IF(A7=0,"",(VLOOKUP(A7,NEW_DATA!$V$2:$W$15,2,FALSE))) -> 1 | E7: =NEW_528_Forage_Balance!E18 -> 1350 | F7: =NEW_528_Forage_Balance!F18 -> 85 | G7: =IF(A7=0,"",D7*(E7/1000)*F7) -> 114.75 | H7: =G7*30 -> 3442.5 | M7: 57 | N7: 115 | O7: 115 | P7: 115 | Q7: 115 | U7: You will need to manually populate the AUM / AUD per month. In this example, the cow herd is on pasture from May 15th through October 31 most years. Then moved to corn stalks, and we aren't including the winter in the plan. The calves are weaned on approximately October 1st, so the animals are moved from pairs to dry cows for all of October. The planned situation will be on pasture from May 1st through November 15
A8: Dry cows | D8: =IF(A8=0,"",(VLOOKUP(A8,NEW_DATA!$V$2:$W$15,2,FALSE))) -> 0.92 | E8: =NEW_528_Forage_Balance!E19 -> 1350 | F8: =NEW_528_Forage_Balance!F19 -> 85 | G8: =IF(A8=0,"",D8*(E8/1000)*F8) -> 105.57 | H8: =G8*30 -> 3167.1 | R8: 106
A9: Bull | D9: =IF(A9=0,"",(VLOOKUP(A9,NEW_DATA!$V$2:$W$15,2,FALSE))) -> 1.35 | E9: =NEW_528_Forage_Balance!E20 -> 2200 | F9: =NEW_528_Forage_Balance!F20 -> 5 | G9: 14.85 | H9: 445.5 | N9: 15 | O9: 15
A10: Yearling | D10: =IF(A10=0,"",(VLOOKUP(A10,NEW_DATA!$V$2:$W$15,2,FALSE))) -> 0 | E10: =NEW_528_Forage_Balance!E21 -> 0 | F10: =NEW_528_Forage_Balance!F21 -> 0 | G10: =IF(A10=0,"",1*(E10/1000)*F10) -> 0 | H10: 0
A11: 1st calf heifer | D11: =IF(A11=0,"",(VLOOKUP(A11,NEW_DATA!$V$2:$W$15,2,FALSE))) -> 0.8 | E11: =NEW_528_Forage_Balance!E22 -> 0 | F11: =NEW_528_Forage_Balance!F22 -> 0 | G11: =IF(A11=0,"",1*(E11/1000)*F11) -> 0 | H11: 0
A12: Horse, mature | D12: =IF(A12=0,"",(VLOOKUP(A12,NEW_DATA!$V$2:$W$15,2,FALSE))) -> 1.25 | E12: =NEW_528_Forage_Balance!E23 -> 1500 | F12: =NEW_528_Forage_Balance!F23 -> 3 | G12: =IF(A12=0,"",D12*(E12/1000)*F12) -> 5.625 | H12: 168.75 | I12: 6 | J12: 6 | K12: 6 | L12: 6 | M12: 6 | N12: 6 | O12: 6 | P12: 6 | Q12: 6 | R12: 6 | S12: 6 | T12: 6
A13: Sheep, mature | D13: =IF(A13=0,"",(VLOOKUP(A13,NEW_DATA!$V$2:$W$15,2,FALSE))) -> 0.2 | F13: =NEW_528_Forage_Balance!F24 -> 0 | G13: =IF(A13=0,"",D13*F13) -> 0 | H13: 0
A14: Lamb, 1 year old | D14: =IF(A14=0,"",(VLOOKUP(A14,NEW_DATA!$V$2:$W$15,2,FALSE))) -> 0.15 | F14: =NEW_528_Forage_Balance!F25 -> 0 | G14: =IF(A14=0,"",D14*F14) -> 0 | H14: 0
A15: Goat, mature | D15: =IF(A15=0,"",(VLOOKUP(A15,NEW_DATA!$V$2:$W$15,2,FALSE))) -> 0.15 | F15: =NEW_528_Forage_Balance!F26 -> 0 | G15: 0 | H15: 0
A16: Kid, 1 year old | D16: =IF(A16=0,"",(VLOOKUP(A16,NEW_DATA!$V$2:$W$15,2,FALSE))) -> 0.1 | F16: =NEW_528_Forage_Balance!F27 -> 0 | G16: 0 | H16: 0
A17: Deer, white tail | D17: =IF(A17=0,"",(VLOOKUP(A17,NEW_DATA!$V$2:$W$15,2,FALSE))) -> 0.15 | F17: =NEW_528_Forage_Balance!F28 -> 0 | G17: 0 | H17: 0 | U17: Manually complete the monthly table for the months that you are developing the plan. If range is grazed year-round, complete for January - December. If you are only developing a plan on grazing units that are grazed a portion of the year, including the months that those units are not grazed is optional. If planning year-round, remember to reduce AUM's needed when animals are sold and increase AUM's needed when animals are purchased.
A18: Bison | D18: =IF(A18=0,"",(VLOOKUP(A18,NEW_DATA!$V$2:$W$15,2,FALSE))) -> 1 | F18: =NEW_528_Forage_Balance!F29 -> 0 | G18: 0 | H18: 0
A19: Deer, mule | D19: =IF(A19=0,"",(VLOOKUP(A19,NEW_DATA!$V$2:$W$15,2,FALSE))) -> 0.2 | F19: =NEW_528_Forage_Balance!F30 -> 0 | G19: 0 | H19: 0
A20: Elk | D20: =IF(A20=0,"",(VLOOKUP(A20,NEW_DATA!$V$2:$W$15,2,FALSE))) -> 0.6 | F20: =NEW_528_Forage_Balance!F31 -> 0 | G20: 0 | H20: 0
A21: TOTAL FORAGE REQUIRED BY MONTH: | I21: =SUM(I6:I19) -> 6 | J21: 6 | K21: 6 | L21: 6 | M21: 63 | N21: 136 | O21: 136 | P21: 121 | Q21: 121 | R21: 112 | S21: 6 | T21: 6
A22: TOTAL ANNUAL FORAGE REQUIRED FOR THE GRAZING YEAR: | R22: =SUM(I21:T21) -> 725
A23: Planned Livestock Numbers and Forage Needs
A25: Livestock Type | D25: AU Equivalent | E25: Average Weight | F25: Number | G25: AUM / Month Needed | H25: AUD / Month Needed | I25: AUM OR AUD NEEDED BY MONTH
I26: Jan | J26: Feb | K26: Mar | L26: Apr | M26: May | N26: Jun | O26: Jul | P26: Aug | Q26: Sep | R26: Oct | S26: Nov | T26: Dec
A27: Cow/calf pair | D27: =IF(A27=0,"",(VLOOKUP(A27,NEW_DATA!$V$2:$W$15,2,FALSE))) -> 1 | E27: =NEW_528_Forage_Balance!E18 -> 1350 | F27: =NEW_528_Forage_Balance!L18 -> 85 | G27: =IF(A27=0,"",D27*(E27/1000)*F27) -> 114.75 | H27: =G27*30 -> 3442.5 | M27: 115 | N27: 115 | O27: 115 | P27: 115 | Q27: 115
A28: Dry cows | D28: =IF(A28=0,"",(VLOOKUP(A28,NEW_DATA!$V$2:$W$15,2,FALSE))) -> 0.92 | E28: =NEW_528_Forage_Balance!E19 -> 1350 | F28: =NEW_528_Forage_Balance!L19 -> 85 | G28: =IF(A28=0,"",D28*(E28/1000)*F28) -> 105.57 | H28: =G28*30 -> 3167.1 | R28: 106 | S28: 53
A29: Bull | D29: =IF(A29=0,"",(VLOOKUP(A29,NEW_DATA!$V$2:$W$15,2,FALSE))) -> 1.35 | E29: =NEW_528_Forage_Balance!E20 -> 2200 | F29: =NEW_528_Forage_Balance!L20 -> 5 | G29: 14.85 | H29: 445.5 | N29: 15 | O29: 15
A30: Yearling | D30: =IF(A30=0,"",(VLOOKUP(A30,NEW_DATA!$V$2:$W$15,2,FALSE))) -> 0 | E30: =NEW_528_Forage_Balance!E21 -> 0 | F30: =NEW_528_Forage_Balance!L21 -> 0 | G30: =IF(A30=0,"",1*(E30/1000)*F30) -> 0 | H30: 0
A31: 1st calf heifer | D31: =IF(A31=0,"",(VLOOKUP(A31,NEW_DATA!$V$2:$W$15,2,FALSE))) -> 0.8 | E31: =NEW_528_Forage_Balance!E22 -> 0 | F31: =NEW_528_Forage_Balance!L22 -> 0 | G31: =IF(A31=0,"",1*(E31/1000)*F31) -> 0 | H31: 0
A32: Horse, mature | D32: =IF(A32=0,"",(VLOOKUP(A32,NEW_DATA!$V$2:$W$15,2,FALSE))) -> 1.25 | E32: =NEW_528_Forage_Balance!E23 -> 1500 | F32: =NEW_528_Forage_Balance!L23 -> 3 | G32: 5.625 | H32: 168.75 | I32: 6 | J32: 6 | K32: 6 | L32: 6 | M32: 6 | N32: 6 | O32: 6 | P32: 6 | Q32: 6 | R32: 6 | S32: 6 | T32: 6
A33: Sheep, mature | D33: =IF(A33=0,"",(VLOOKUP(A33,NEW_DATA!$V$2:$W$15,2,FALSE))) -> 0.2 | F33: =NEW_528_Forage_Balance!L24 -> 0 | G33: =IF(A33=0,"",D33*F33) -> 0 | H33: 0
A34: Lamb, 1 year old | D34: =IF(A34=0,"",(VLOOKUP(A34,NEW_DATA!$V$2:$W$15,2,FALSE))) -> 0.15 | F34: =NEW_528_Forage_Balance!L25 -> 0 | G34: =IF(A34=0,"",D34*F34) -> 0 | H34: 0
A35: Goat, mature | D35: =IF(A35=0,"",(VLOOKUP(A35,NEW_DATA!$V$2:$W$15,2,FALSE))) -> 0.15 | F35: =NEW_528_Forage_Balance!L26 -> 0 | G35: 0 | H35: 0
A36: Kid, 1 year old | D36: =IF(A36=0,"",(VLOOKUP(A36,NEW_DATA!$V$2:$W$15,2,FALSE))) -> 0.1 | F36: =NEW_528_Forage_Balance!L27 -> 0 | G36: 0 | H36: 0
A37: Deer, white tail | D37: =IF(A37=0,"",(VLOOKUP(A37,NEW_DATA!$V$2:$W$15,2,FALSE))) -> 0.15 | F37: =NEW_528_Forage_Balance!L28 -> 0 | G37: 0 | H37: 0
A38: Bison | D38: =IF(A38=0,"",(VLOOKUP(A38,NEW_DATA!$V$2:$W$15,2,FALSE))) -> 1 | F38: =NEW_528_Forage_Balance!L29 -> 0 | G38: 0 | H38: 0
A39: Deer, mule | D39: =IF(A39=0,"",(VLOOKUP(A39,NEW_DATA!$V$2:$W$15,2,FALSE))) -> 0.2 | F39: =NEW_528_Forage_Balance!L30 -> 0 | G39: 0 | H39: 0
A40: Elk | D40: =IF(A40=0,"",(VLOOKUP(A40,NEW_DATA!$V$2:$W$15,2,FALSE))) -> 0.6 | F40: =NEW_528_Forage_Balance!L31 -> 0 | G40: 0 | H40: 0
A42: TOTAL FORAGE REQUIRED BY MONTH: | I42: =SUM(I27:I40) -> 6 | J42: =SUM(J27:J40) -> 6 | K42: 6 | L42: 6 | M42: 121 | N42: 136 | O42: 136 | P42: 121 | Q42: 121 | R42: 112 | S42: 59 | T42: 6
A43: TOTAL ANNUAL FORAGE REQUIRED FOR THE GRAZING YEAR: | R43: =SUM(I42:T42) -> 836
H44: Predominant Growth Curve
A45: MLRA | C45: Predominant Growth Curve Description | H45: Curve Number | I45: % Forage Produced by Month
I46: Jan | J46: Feb | K46: Mar | L46: Apr | M46: May | N46: Jun | O46: Jul | P46: Aug | Q46: Sep | R46: Oct | S46: Nov | T46: Dec
A47: M_67A | C47: 67A-Upland - Western Wheat dom. | H47: 1 | I47: =IF($A47=0," ",VLOOKUP($C47,NEW_DATA!$G$2:$S$147,2,FALSE)) -> 0 | J47: =IF($A47=0," ",VLOOKUP($C47,NEW_DATA!$G$2:$S$147,3,FALSE)) -> 0 | K47: =IF($A47=0," ",VLOOKUP($C47,NEW_DATA!$G$2:$S$147,4,FALSE)) -> 0 | L47: =IF($A47=0," ",VLOOKUP($C47,NEW_DATA!$G$2:$S$147,5,FALSE)) -> 5 | M47: =IF($A47=0," ",VLOOKUP($C47,NEW_DATA!$G$2:$S$147,6,FALSE)) -> 25 | N47: =IF($A47=0," ",VLOOKUP($C47,NEW_DATA!$G$2:$S$147,7,FALSE)) -> 40 | O47: =IF($A47=0," ",VLOOKUP($C47,NEW_DATA!$G$2:$S$147,8,FALSE)) -> 15 | P47: =IF($A47=0," ",VLOOKUP($C47,NEW_DATA!$G$2:$S$147,9,FALSE)) -> 5 | Q47: =IF($A47=0," ",VLOOKUP($C47,NEW_DATA!$G$2:$S$147,10,FALSE)) -> 10 | R47: =IF($A47=0," ",VLOOKUP($C47,NEW_DATA!$G$2:$S$147,11,FALSE)) -> 0 | S47: =IF($A47=0," ",VLOOKUP($C47,NEW_DATA!$G$2:$S$147,12,FALSE)) -> 0 | T47: =IF($A47=0," ",VLOOKUP($C47,NEW_DATA!$G$2:$S$147,13,FALSE)) -> 0 | U47: =SUM(I47:T47) -> 100 | V47: Include growth curves for the dominant sites in the operation. Minor growth curves do not need to be included.
A48: M_67A | C48: 67A-Upland-higher SI | H48: 2 | I48: =IF($A48=0," ",VLOOKUP($C48,NEW_DATA!$G$2:$S$143,2,FALSE)) -> 0 | J48: =IF($A48=0," ",VLOOKUP($C48,NEW_DATA!$G$2:$S$143,3,FALSE)) -> 0 | K48: =IF($A48=0," ",VLOOKUP($C48,NEW_DATA!$G$2:$S$143,4,FALSE)) -> 0 | L48: =IF($A48=0," ",VLOOKUP($C48,NEW_DATA!$G$2:$S$143,5,FALSE)) -> 5 | M48: =IF($A48=0," ",VLOOKUP($C48,NEW_DATA!$G$2:$S$143,6,FALSE)) -> 15 | N48: =IF($A48=0," ",VLOOKUP($C48,NEW_DATA!$G$2:$S$143,7,FALSE)) -> 25 | O48: =IF($A48=0," ",VLOOKUP($C48,NEW_DATA!$G$2:$S$143,8,FALSE)) -> 30 | P48: =IF($A48=0," ",VLOOKUP($C48,NEW_DATA!$G$2:$S$143,9,FALSE)) -> 20 | Q48: =IF($A48=0," ",VLOOKUP($C48,NEW_DATA!$G$2:$S$143,10,FALSE)) -> 5 | R48: =IF($A48=0," ",VLOOKUP($C48,NEW_DATA!$G$2:$S$143,11,FALSE)) -> 0 | S48: =IF($A48=0," ",VLOOKUP($C48,NEW_DATA!$G$2:$S$143,12,FALSE)) -> 0 | T48: =IF($A48=0," ",VLOOKUP($C48,NEW_DATA!$G$2:$S$143,13,FALSE)) -> 0 | U48: =SUM(I48:T48) -> 100
A49: M_67A | C49: 67A-Lowland/Overflow sites Western co-dom. | H49: 3 | I49: =IF($A49=0," ",VLOOKUP($C49,NEW_DATA!$G$2:$S$143,2,FALSE)) -> 0 | J49: =IF($A49=0," ",VLOOKUP($C49,NEW_DATA!$G$2:$S$143,3,FALSE)) -> 0 | K49: =IF($A49=0," ",VLOOKUP($C49,NEW_DATA!$G$2:$S$143,4,FALSE)) -> 0 | L49: =IF($A49=0," ",VLOOKUP($C49,NEW_DATA!$G$2:$S$143,5,FALSE)) -> 5 | M49: =IF($A49=0," ",VLOOKUP($C49,NEW_DATA!$G$2:$S$143,6,FALSE)) -> 25 | N49: =IF($A49=0," ",VLOOKUP($C49,NEW_DATA!$G$2:$S$143,7,FALSE)) -> 30 | O49: =IF($A49=0," ",VLOOKUP($C49,NEW_DATA!$G$2:$S$143,8,FALSE)) -> 20 | P49: =IF($A49=0," ",VLOOKUP($C49,NEW_DATA!$G$2:$S$143,9,FALSE)) -> 15 | Q49: =IF($A49=0," ",VLOOKUP($C49,NEW_DATA!$G$2:$S$143,10,FALSE)) -> 5 | R49: =IF($A49=0," ",VLOOKUP($C49,NEW_DATA!$G$2:$S$143,11,FALSE)) -> 0 | S49: =IF($A49=0," ",VLOOKUP($C49,NEW_DATA!$G$2:$S$143,12,FALSE)) -> 0 | T49: =IF($A49=0," ",VLOOKUP($C49,NEW_DATA!$G$2:$S$143,13,FALSE)) -> 0 | U49: 100
H50: 4 | I50: =IF($A50=0," ",VLOOKUP($C50,NEW_DATA!$G$2:$S$143,2,FALSE)) ->  | J50: =IF($A50=0," ",VLOOKUP($C50,NEW_DATA!$G$2:$S$143,3,FALSE)) ->  | K50: =IF($A50=0," ",VLOOKUP($C50,NEW_DATA!$G$2:$S$143,4,FALSE)) ->  | L50: =IF($A50=0," ",VLOOKUP($C50,NEW_DATA!$G$2:$S$143,5,FALSE)) ->  | M50: =IF($A50=0," ",VLOOKUP($C50,NEW_DATA!$G$2:$S$143,6,FALSE)) ->  | N50: =IF($A50=0," ",VLOOKUP($C50,NEW_DATA!$G$2:$S$143,7,FALSE)) ->  | O50: =IF($A50=0," ",VLOOKUP($C50,NEW_DATA!$G$2:$S$143,8,FALSE)) ->  | P50: =IF($A50=0," ",VLOOKUP($C50,NEW_DATA!$G$2:$S$143,9,FALSE)) ->  | Q50: =IF($A50=0," ",VLOOKUP($C50,NEW_DATA!$G$2:$S$143,10,FALSE)) ->  | R50: =IF($A50=0," ",VLOOKUP($C50,NEW_DATA!$G$2:$S$143,11,FALSE)) ->  | S50: =IF($A50=0," ",VLOOKUP($C50,NEW_DATA!$G$2:$S$143,12,FALSE)) ->  | T50: =IF($A50=0," ",VLOOKUP($C50,NEW_DATA!$G$2:$S$143,13,FALSE)) ->  | U50: 0
H51: 5 | I51: =IF($A51=0," ",VLOOKUP($C51,NEW_DATA!$G$2:$S$143,2,FALSE)) ->  | J51: =IF($A51=0," ",VLOOKUP($C51,NEW_DATA!$G$2:$S$143,3,FALSE)) ->  | K51: =IF($A51=0," ",VLOOKUP($C51,NEW_DATA!$G$2:$S$143,4,FALSE)) ->  | L51: =IF($A51=0," ",VLOOKUP($C51,NEW_DATA!$G$2:$S$143,5,FALSE)) ->  | M51: =IF($A51=0," ",VLOOKUP($C51,NEW_DATA!$G$2:$S$143,6,FALSE)) ->  | N51: =IF($A51=0," ",VLOOKUP($C51,NEW_DATA!$G$2:$S$143,7,FALSE)) ->  | O51: =IF($A51=0," ",VLOOKUP($C51,NEW_DATA!$G$2:$S$143,8,FALSE)) ->  | P51: =IF($A51=0," ",VLOOKUP($C51,NEW_DATA!$G$2:$S$143,9,FALSE)) ->  | Q51: =IF($A51=0," ",VLOOKUP($C51,NEW_DATA!$G$2:$S$143,10,FALSE)) ->  | R51: =IF($A51=0," ",VLOOKUP($C51,NEW_DATA!$G$2:$S$143,11,FALSE)) ->  | S51: =IF($A51=0," ",VLOOKUP($C51,NEW_DATA!$G$2:$S$143,12,FALSE)) ->  | T51: =IF($A51=0," ",VLOOKUP($C51,NEW_DATA!$G$2:$S$143,13,FALSE)) ->  | U51: 0
H52: 6 | I52: =IF($A52=0," ",VLOOKUP($C52,NEW_DATA!$G$2:$S$143,2,FALSE)) ->  | J52: =IF($A52=0," ",VLOOKUP($C52,NEW_DATA!$G$2:$S$143,3,FALSE)) ->  | K52: =IF($A52=0," ",VLOOKUP($C52,NEW_DATA!$G$2:$S$143,4,FALSE)) ->  | L52: =IF($A52=0," ",VLOOKUP($C52,NEW_DATA!$G$2:$S$143,5,FALSE)) ->  | M52: =IF($A52=0," ",VLOOKUP($C52,NEW_DATA!$G$2:$S$143,6,FALSE)) ->  | N52: =IF($A52=0," ",VLOOKUP($C52,NEW_DATA!$G$2:$S$143,7,FALSE)) ->  | O52: =IF($A52=0," ",VLOOKUP($C52,NEW_DATA!$G$2:$S$143,8,FALSE)) ->  | P52: =IF($A52=0," ",VLOOKUP($C52,NEW_DATA!$G$2:$S$143,9,FALSE)) ->  | Q52: =IF($A52=0," ",VLOOKUP($C52,NEW_DATA!$G$2:$S$143,10,FALSE)) ->  | R52: =IF($A52=0," ",VLOOKUP($C52,NEW_DATA!$G$2:$S$143,11,FALSE)) ->  | S52: =IF($A52=0," ",VLOOKUP($C52,NEW_DATA!$G$2:$S$143,12,FALSE)) ->  | T52: =IF($A52=0," ",VLOOKUP($C52,NEW_DATA!$G$2:$S$143,13,FALSE)) ->  | U52: 0
H53: 7 | I53: =IF($A53=0," ",VLOOKUP($C53,NEW_DATA!$G$2:$S$143,2,FALSE)) ->  | J53: =IF($A53=0," ",VLOOKUP($C53,NEW_DATA!$G$2:$S$143,3,FALSE)) ->  | K53: =IF($A53=0," ",VLOOKUP($C53,NEW_DATA!$G$2:$S$143,4,FALSE)) ->  | L53: =IF($A53=0," ",VLOOKUP($C53,NEW_DATA!$G$2:$S$143,5,FALSE)) ->  | M53: =IF($A53=0," ",VLOOKUP($C53,NEW_DATA!$G$2:$S$143,6,FALSE)) ->  | N53: =IF($A53=0," ",VLOOKUP($C53,NEW_DATA!$G$2:$S$143,7,FALSE)) ->  | O53: =IF($A53=0," ",VLOOKUP($C53,NEW_DATA!$G$2:$S$143,8,FALSE)) ->  | P53: =IF($A53=0," ",VLOOKUP($C53,NEW_DATA!$G$2:$S$143,9,FALSE)) ->  | Q53: =IF($A53=0," ",VLOOKUP($C53,NEW_DATA!$G$2:$S$143,10,FALSE)) ->  | R53: =IF($A53=0," ",VLOOKUP($C53,NEW_DATA!$G$2:$S$143,11,FALSE)) ->  | S53: =IF($A53=0," ",VLOOKUP($C53,NEW_DATA!$G$2:$S$143,12,FALSE)) ->  | T53: =IF($A53=0," ",VLOOKUP($C53,NEW_DATA!$G$2:$S$143,13,FALSE)) ->  | U53: 0
U55: If you hide rows, in the livestock inventory portion of the form, you may need to reposition the growth curve. Click on the curve and drag to the desired location.
U61: The growth curve graphic may need to be re-sized. Click on the graph and drag circle(s) in corner to re-size it.
A72: Monthly Forage Production
A73: Field no. | C73: Forage Type (Range, pasture, cover crop, cornstalks, etc.) | F73: Estimated AUM or AUDs / Field | I73: Grazed Forage Production in AUMs or AUDs by Month
E74: Acres | G74: Growth Curve No. | H74: Jan | I74: Feb | J74: Mar | K74: Apr | L74: May | M74: Jun | N74: Jul | O74: Aug | P74: Sep | Q74: Oct | R74: Nov | S74: Dec | T74: TOTAL
A75: =NEW_528_Forage_Balance!G69 -> R1A | C75: =IF(A75=0,"",(NEW_528_Forage_Balance!I69)) -> Range | E75: =IF(A75=0,"",(NEW_528_Forage_Balance!H69)) -> 305 | F75: =IF(A75=0,"",(NEW_528_Forage_Balance!L69)) -> 115 | G75: 2 | H75: =IF($A75=0," ",VLOOKUP($G75,$H$47:$T$53,2,FALSE)*(F75/100)) -> 0 | I75: =IF($A75=0," ",VLOOKUP($G75,$H$47:$T$53,3,FALSE)*(F75/100)) -> 0 | J75: =IF($A75=0," ",VLOOKUP($G75,$H$47:$T$53,4,FALSE)*(F75/100)) -> 0 | K75: =IF($A75=0," ",VLOOKUP($G75,$H$47:$T$53,5,FALSE)*(F75/100)) -> 5.75 | L75: =IF($A75=0," ",VLOOKUP($G75,$H$47:$T$53,6,FALSE)*(F75/100)) -> 17.25 | M75: =IF($A75=0," ",VLOOKUP($G75,$H$47:$T$53,7,FALSE)*(F75/100)) -> 28.75 | N75: =IF($A75=0," ",VLOOKUP($G75,$H$47:$T$53,8,FALSE)*(F75/100)) -> 34.5 | O75: =IF($A75=0," ",VLOOKUP($G75,$H$47:$T$53,9,FALSE)*(F75/100)) -> 23 | P75: =IF($A75=0," ",VLOOKUP($G75,$H$47:$T$53,10,FALSE)*(F75/100)) -> 5.75 | Q75: =IF($A75=0," ",VLOOKUP($G75,$H$47:$T$53,11,FALSE)*(F75/100)) -> 0 | R75: =IF($A75=0," ",VLOOKUP($G75,$H$47:$T$53,12,FALSE)*(F75/100)) -> 0 | S75: =IF($A75=0," ",VLOOKUP($G75,$H$47:$T$53,12,FALSE)*(F75/100)) -> 0 | T75: =IF(A75=0,"",(SUM(H75:S75))) -> 115
A76: =NEW_528_Forage_Balance!G70 -> R1B | C76: =IF(A76=0,"",(NEW_528_Forage_Balance!I70)) -> Range | E76: =IF(A76=0,"",(NEW_528_Forage_Balance!H70)) -> 335 | F76: =IF(A76=0,"",(NEW_528_Forage_Balance!L70)) -> 92 | G76: 1 | H76: =IF($A76=0," ",VLOOKUP($G76,$H$47:$T$53,2,FALSE)*(F76/100)) -> 0 | I76: =IF($A76=0," ",VLOOKUP($G76,$H$47:$T$53,3,FALSE)*(F76/100)) -> 0 | J76: =IF($A76=0," ",VLOOKUP($G76,$H$47:$T$53,4,FALSE)*(F76/100)) -> 0 | K76: =IF($A76=0," ",VLOOKUP($G76,$H$47:$T$53,5,FALSE)*(F76/100)) -> 4.6 | L76: =IF($A76=0," ",VLOOKUP($G76,$H$47:$T$53,6,FALSE)*(F76/100)) -> 23 | M76: =IF($A76=0," ",VLOOKUP($G76,$H$47:$T$53,7,FALSE)*(F76/100)) -> 36.8 | N76: =IF($A76=0," ",VLOOKUP($G76,$H$47:$T$53,8,FALSE)*(F76/100)) -> 13.8 | O76: =IF($A76=0," ",VLOOKUP($G76,$H$47:$T$53,9,FALSE)*(F76/100)) -> 4.6 | P76: =IF($A76=0," ",VLOOKUP($G76,$H$47:$T$53,10,FALSE)*(F76/100)) -> 9.2 | Q76: =IF($A76=0," ",VLOOKUP($G76,$H$47:$T$53,11,FALSE)*(F76/100)) -> 0 | R76: =IF($A76=0," ",VLOOKUP($G76,$H$47:$T$53,12,FALSE)*(F76/100)) -> 0 | S76: =IF($A76=0," ",VLOOKUP($G76,$H$47:$T$53,12,FALSE)*(F76/100)) -> 0 | T76: =IF(A76=0,"",(SUM(H76:S76))) -> 92
A77: =NEW_528_Forage_Balance!G71 -> R2 | C77: =IF(A77=0,"",(NEW_528_Forage_Balance!I71)) -> Range | E77: =IF(A77=0,"",(NEW_528_Forage_Balance!H71)) -> 320 | F77: =IF(A77=0,"",(NEW_528_Forage_Balance!L71)) -> 122 | G77: 1 | H77: =IF($A77=0," ",VLOOKUP($G77,$H$47:$T$53,2,FALSE)*(F77/100)) -> 0 | I77: =IF($A77=0," ",VLOOKUP($G77,$H$47:$T$53,3,FALSE)*(F77/100)) -> 0 | J77: =IF($A77=0," ",VLOOKUP($G77,$H$47:$T$53,4,FALSE)*(F77/100)) -> 0 | K77: =IF($A77=0," ",VLOOKUP($G77,$H$47:$T$53,5,FALSE)*(F77/100)) -> 6.1 | L77: =IF($A77=0," ",VLOOKUP($G77,$H$47:$T$53,6,FALSE)*(F77/100)) -> 30.5 | M77: =IF($A77=0," ",VLOOKUP($G77,$H$47:$T$53,7,FALSE)*(F77/100)) -> 48.8 | N77: =IF($A77=0," ",VLOOKUP($G77,$H$47:$T$53,8,FALSE)*(F77/100)) -> 18.3 | O77: =IF($A77=0," ",VLOOKUP($G77,$H$47:$T$53,9,FALSE)*(F77/100)) -> 6.1 | P77: =IF($A77=0," ",VLOOKUP($G77,$H$47:$T$53,10,FALSE)*(F77/100)) -> 12.2 | Q77: =IF($A77=0," ",VLOOKUP($G77,$H$47:$T$53,11,FALSE)*(F77/100)) -> 0 | R77: =IF($A77=0," ",VLOOKUP($G77,$H$47:$T$53,12,FALSE)*(F77/100)) -> 0 | S77: =IF($A77=0," ",VLOOKUP($G77,$H$47:$T$53,12,FALSE)*(F77/100)) -> 0 | T77: 122
A78: =NEW_528_Forage_Balance!G72 -> R3 | C78: =IF(A78=0,"",(NEW_528_Forage_Balance!I72)) -> Range | E78: =IF(A78=0,"",(NEW_528_Forage_Balance!H72)) -> 80 | F78: =IF(A78=0,"",(NEW_528_Forage_Balance!L72)) -> 35 | G78: 3 | H78: 0 | I78: 0 | J78: 0 | K78: 1.75 | L78: 8.75 | M78: 10.5 | N78: 7 | O78: 5.25 | P78: 1.75 | Q78: 0 | R78: 0 | S78: 0 | T78: 35
A79: =NEW_528_Forage_Balance!G73 -> R4 | C79: =IF(A79=0,"",(NEW_528_Forage_Balance!I73)) -> Range | E79: =IF(A79=0,"",(NEW_528_Forage_Balance!H73)) -> 160 | F79: =IF(A79=0,"",(NEW_528_Forage_Balance!L73)) -> 58 | G79: 1 | H79: 0 | I79: 0 | J79: 0 | K79: 2.9 | L79: 14.5 | M79: 23.2 | N79: 8.7 | O79: 2.9 | P79: 5.8 | Q79: 0 | R79: 0 | S79: 0 | T79: 58
A80: =NEW_528_Forage_Balance!G74 -> R5A | C80: =IF(A80=0,"",(NEW_528_Forage_Balance!I74)) -> Range | E80: =IF(A80=0,"",(NEW_528_Forage_Balance!H74)) -> 240 | F80: =IF(A80=0,"",(NEW_528_Forage_Balance!L74)) -> 66 | G80: 2 | H80: 0 | I80: 0 | J80: 0 | K80: 3.3 | L80: 9.9 | M80: 16.5 | N80: 19.8 | O80: 13.2 | P80: 3.3 | Q80: 0 | R80: 0 | S80: 0 | T80: 66
A81: =NEW_528_Forage_Balance!G75 -> R5B | C81: =IF(A81=0,"",(NEW_528_Forage_Balance!I75)) -> Range | E81: =IF(A81=0,"",(NEW_528_Forage_Balance!H75)) -> 263 | F81: =IF(A81=0,"",(NEW_528_Forage_Balance!L75)) -> 106 | G81: 3 | H81: 0 | I81: 0 | J81: 0 | K81: 5.3 | L81: 26.5 | M81: 31.8 | N81: 21.2 | O81: 15.9 | P81: 5.3 | Q81: 0 | R81: 0 | S81: 0 | T81: 106
A82: =NEW_528_Forage_Balance!G76 -> R5C | C82: =IF(A82=0,"",(NEW_528_Forage_Balance!I76)) -> Range | E82: =IF(A82=0,"",(NEW_528_Forage_Balance!H76)) -> 137 | F82: =IF(A82=0,"",(NEW_528_Forage_Balance!L76)) -> 29 | G82: 2 | H82: 0 | I82: 0 | J82: 0 | K82: 1.45 | L82: 4.35 | M82: 7.25 | N82: 8.7 | O82: 5.8 | P82: 1.45 | Q82: 0 | R82: 0 | S82: 0 | T82: 29
A83: =NEW_528_Forage_Balance!G77 -> R6 | C83: =IF(A83=0,"",(NEW_528_Forage_Balance!I77)) -> Range | E83: =IF(A83=0,"",(NEW_528_Forage_Balance!H77)) -> 160 | F83: =IF(A83=0,"",(NEW_528_Forage_Balance!L77)) -> 90 | G83: 3 | H83: 0 | I83: 0 | J83: 0 | K83: 4.5 | L83: 22.5 | M83: 27 | N83: 18 | O83: 13.5 | P83: 4.5 | Q83: 0 | R83: 0 | S83: 0 | T83: 90
A84: =NEW_528_Forage_Balance!G78 -> 0 | C84: =IF(A84=0,"",(NEW_528_Forage_Balance!I78)) ->  | E84: =IF(A84=0,"",(NEW_528_Forage_Balance!H78)) ->  | F84: =IF(A84=0,"",(NEW_528_Forage_Balance!L78)) -> 
A85: =NEW_528_Forage_Balance!G79 -> 0 | C85: =IF(A85=0,"",(NEW_528_Forage_Balance!I79)) ->  | E85: =IF(A85=0,"",(NEW_528_Forage_Balance!H79)) ->  | F85: =IF(A85=0,"",(NEW_528_Forage_Balance!L79)) -> 
A86: =NEW_528_Forage_Balance!G80 -> 0 | C86: =IF(A86=0,"",(NEW_528_Forage_Balance!I80)) ->  | E86: =IF(A86=0,"",(NEW_528_Forage_Balance!H80)) ->  | F86: =IF(A86=0,"",(NEW_528_Forage_Balance!L80)) -> 
A87: =NEW_528_Forage_Balance!G81 -> 0 | C87: =IF(A87=0,"",(NEW_528_Forage_Balance!I81)) ->  | E87: =IF(A87=0,"",(NEW_528_Forage_Balance!H81)) ->  | F87: =IF(A87=0,"",(NEW_528_Forage_Balance!L81)) -> 
A88: =NEW_528_Forage_Balance!G82 -> 0 | C88: =IF(A88=0,"",(NEW_528_Forage_Balance!I82)) ->  | E88: =IF(A88=0,"",(NEW_528_Forage_Balance!H82)) ->  | F88: =IF(A88=0,"",(NEW_528_Forage_Balance!L82)) -> 
A89: =NEW_528_Forage_Balance!G83 -> 0 | C89: =IF(A89=0,"",(NEW_528_Forage_Balance!I83)) ->  | E89: =IF(A89=0,"",(NEW_528_Forage_Balance!H83)) ->  | F89: =IF(A89=0,"",(NEW_528_Forage_Balance!L83)) -> 
A90: =NEW_528_Forage_Balance!G84 -> 0 | C90: =IF(A90=0,"",(NEW_528_Forage_Balance!I84)) ->  | E90: =IF(A90=0,"",(NEW_528_Forage_Balance!H84)) ->  | F90: =IF(A90=0,"",(NEW_528_Forage_Balance!L84)) -> 
A91: =NEW_528_Forage_Balance!G85 -> 0 | C91: =IF(A91=0,"",(NEW_528_Forage_Balance!I85)) ->  | E91: =IF(A91=0,"",(NEW_528_Forage_Balance!H85)) ->  | F91: =IF(A91=0,"",(NEW_528_Forage_Balance!L85)) -> 
A92: =NEW_528_Forage_Balance!G86 -> 0 | C92: =IF(A92=0,"",(NEW_528_Forage_Balance!I86)) ->  | E92: =IF(A92=0,"",(NEW_528_Forage_Balance!H86)) ->  | F92: =IF(A92=0,"",(NEW_528_Forage_Balance!L86)) -> 
A93: =NEW_528_Forage_Balance!G87 -> 0 | C93: =IF(A93=0,"",(NEW_528_Forage_Balance!I87)) ->  | E93: =IF(A93=0,"",(NEW_528_Forage_Balance!H87)) ->  | F93: =IF(A93=0,"",(NEW_528_Forage_Balance!L87)) -> 
A94: =NEW_528_Forage_Balance!G88 -> 0 | C94: =IF(A94=0,"",(NEW_528_Forage_Balance!I88)) ->  | E94: =IF(A94=0,"",(NEW_528_Forage_Balance!H88)) ->  | F94: =IF(A94=0,"",(NEW_528_Forage_Balance!L88)) -> 
A95: =NEW_528_Forage_Balance!G89 -> 0 | C95: =IF(A95=0,"",(NEW_528_Forage_Balance!I89)) ->  | E95: =IF(A95=0,"",(NEW_528_Forage_Balance!H89)) ->  | F95: =IF(A95=0,"",(NEW_528_Forage_Balance!L89)) -> 
A96: =NEW_528_Forage_Balance!G90 -> 0 | C96: =IF(A96=0,"",(NEW_528_Forage_Balance!I90)) ->  | E96: =IF(A96=0,"",(NEW_528_Forage_Balance!H90)) ->  | F96: =IF(A96=0,"",(NEW_528_Forage_Balance!L90)) -> 
A97: =NEW_528_Forage_Balance!G91 -> 0 | C97: =IF(A97=0,"",(NEW_528_Forage_Balance!I91)) ->  | E97: =IF(A97=0,"",(NEW_528_Forage_Balance!H91)) ->  | F97: =IF(A97=0,"",(NEW_528_Forage_Balance!L91)) -> 
A98: =NEW_528_Forage_Balance!G92 -> 0 | C98: =IF(A98=0,"",(NEW_528_Forage_Balance!I92)) ->  | E98: =IF(A98=0,"",(NEW_528_Forage_Balance!H92)) ->  | F98: =IF(A98=0,"",(NEW_528_Forage_Balance!L92)) -> 
A99: =NEW_528_Forage_Balance!G93 -> 0 | C99: =IF(A99=0,"",(NEW_528_Forage_Balance!I93)) ->  | E99: =IF(A99=0,"",(NEW_528_Forage_Balance!H93)) ->  | F99: =IF(A99=0,"",(NEW_528_Forage_Balance!L93)) -> 
A100: =NEW_528_Forage_Balance!G94 -> 0 | C100: =IF(A100=0,"",(NEW_528_Forage_Balance!I94)) ->  | E100: =IF(A100=0,"",(NEW_528_Forage_Balance!H94)) ->  | F100: =IF(A100=0,"",(NEW_528_Forage_Balance!L94)) -> 
A101: =NEW_528_Forage_Balance!G95 -> 0 | C101: =IF(A101=0,"",(NEW_528_Forage_Balance!I95)) ->  | E101: =IF(A101=0,"",(NEW_528_Forage_Balance!H95)) ->  | F101: =IF(A101=0,"",(NEW_528_Forage_Balance!L95)) -> 
A102: =NEW_528_Forage_Balance!G96 -> 0 | C102: =IF(A102=0,"",(NEW_528_Forage_Balance!I96)) ->  | E102: =IF(A102=0,"",(NEW_528_Forage_Balance!H96)) ->  | F102: =IF(A102=0,"",(NEW_528_Forage_Balance!L96)) -> 
A103: =NEW_528_Forage_Balance!G97 -> 0 | C103: =IF(A103=0,"",(NEW_528_Forage_Balance!I97)) ->  | E103: =IF(A103=0,"",(NEW_528_Forage_Balance!H97)) ->  | F103: =IF(A103=0,"",(NEW_528_Forage_Balance!L97)) -> 
A104: =NEW_528_Forage_Balance!G98 -> 0 | C104: =IF(A104=0,"",(NEW_528_Forage_Balance!I98)) ->  | E104: =IF(A104=0,"",(NEW_528_Forage_Balance!H98)) ->  | F104: =IF(A104=0,"",(NEW_528_Forage_Balance!L98)) -> 
A105: =NEW_528_Forage_Balance!G99 -> 0 | C105: =IF(A105=0,"",(NEW_528_Forage_Balance!I99)) ->  | E105: =IF(A105=0,"",(NEW_528_Forage_Balance!H99)) ->  | F105: =IF(A105=0,"",(NEW_528_Forage_Balance!L99)) -> 
A106: =NEW_528_Forage_Balance!G100 -> 0 | C106: =IF(A106=0,"",(NEW_528_Forage_Balance!I100)) ->  | E106: =IF(A106=0,"",(NEW_528_Forage_Balance!H100)) ->  | F106: =IF(A106=0,"",(NEW_528_Forage_Balance!L100)) -> 
A107: =NEW_528_Forage_Balance!G101 -> 0 | C107: =IF(A107=0,"",(NEW_528_Forage_Balance!I101)) ->  | E107: =IF(A107=0,"",(NEW_528_Forage_Balance!H101)) ->  | F107: =IF(A107=0,"",(NEW_528_Forage_Balance!L101)) -> 
A108: =NEW_528_Forage_Balance!G102 -> 0 | C108: =IF(A108=0,"",(NEW_528_Forage_Balance!I102)) ->  | E108: =IF(A108=0,"",(NEW_528_Forage_Balance!H102)) ->  | F108: =IF(A108=0,"",(NEW_528_Forage_Balance!L102)) -> 
A109: =NEW_528_Forage_Balance!G103 -> 0 | C109: =IF(A109=0,"",(NEW_528_Forage_Balance!I103)) ->  | E109: =IF(A109=0,"",(NEW_528_Forage_Balance!H103)) ->  | F109: =IF(A109=0,"",(NEW_528_Forage_Balance!L103)) -> 
A110: =NEW_528_Forage_Balance!G104 -> 0 | C110: =IF(A110=0,"",(NEW_528_Forage_Balance!I104)) ->  | E110: =IF(A110=0,"",(NEW_528_Forage_Balance!H104)) ->  | F110: =IF(A110=0,"",(NEW_528_Forage_Balance!L104)) -> 
A111: =NEW_528_Forage_Balance!G105 -> 0 | C111: =IF(A111=0,"",(NEW_528_Forage_Balance!I105)) ->  | E111: =IF(A111=0,"",(NEW_528_Forage_Balance!H105)) ->  | F111: =IF(A111=0,"",(NEW_528_Forage_Balance!L105)) -> 
A112: =NEW_528_Forage_Balance!G106 -> 0 | C112: =IF(A112=0,"",(NEW_528_Forage_Balance!I106)) ->  | E112: =IF(A112=0,"",(NEW_528_Forage_Balance!H106)) ->  | F112: =IF(A112=0,"",(NEW_528_Forage_Balance!L106)) -> 
A113: =NEW_528_Forage_Balance!G107 -> 0 | C113: =IF(A113=0,"",(NEW_528_Forage_Balance!I107)) ->  | E113: =IF(A113=0,"",(NEW_528_Forage_Balance!H107)) ->  | F113: =IF(A113=0,"",(NEW_528_Forage_Balance!L107)) -> 
A114: =NEW_528_Forage_Balance!G108 -> 0 | C114: =IF(A114=0,"",(NEW_528_Forage_Balance!I108)) ->  | E114: =IF(A114=0,"",(NEW_528_Forage_Balance!H108)) ->  | F114: =IF(A114=0,"",(NEW_528_Forage_Balance!L108)) -> 
A115: =NEW_528_Forage_Balance!G109 -> 0 | C115: =IF(A115=0,"",(NEW_528_Forage_Balance!I109)) ->  | E115: =IF(A115=0,"",(NEW_528_Forage_Balance!H109)) ->  | F115: =IF(A115=0,"",(NEW_528_Forage_Balance!L109)) -> 
A116: =NEW_528_Forage_Balance!G110 -> 0 | C116: =IF(A116=0,"",(NEW_528_Forage_Balance!I110)) ->  | E116: =IF(A116=0,"",(NEW_528_Forage_Balance!H110)) ->  | F116: =IF(A116=0,"",(NEW_528_Forage_Balance!L110)) -> 
A117: =NEW_528_Forage_Balance!G111 -> 0 | C117: =IF(A117=0,"",(NEW_528_Forage_Balance!I111)) ->  | E117: =IF(A117=0,"",(NEW_528_Forage_Balance!H111)) ->  | F117: =IF(A117=0,"",(NEW_528_Forage_Balance!L111)) -> 
A118: =NEW_528_Forage_Balance!G112 -> 0 | C118: =IF(A118=0,"",(NEW_528_Forage_Balance!I112)) ->  | E118: =IF(A118=0,"",(NEW_528_Forage_Balance!H112)) ->  | F118: =IF(A118=0,"",(NEW_528_Forage_Balance!L112)) -> 
A119: =NEW_528_Forage_Balance!G113 -> 0 | C119: =IF(A119=0,"",(NEW_528_Forage_Balance!I113)) ->  | E119: =IF(A119=0,"",(NEW_528_Forage_Balance!H113)) ->  | F119: =IF(A119=0,"",(NEW_528_Forage_Balance!L113)) -> 
A120: =NEW_528_Forage_Balance!G114 -> 0 | C120: =IF(A120=0,"",(NEW_528_Forage_Balance!I114)) ->  | E120: =IF(A120=0,"",(NEW_528_Forage_Balance!H114)) ->  | F120: =IF(A120=0,"",(NEW_528_Forage_Balance!L114)) -> 
A121: =NEW_528_Forage_Balance!G115 -> 0 | C121: =IF(A121=0,"",(NEW_528_Forage_Balance!I115)) ->  | E121: =IF(A121=0,"",(NEW_528_Forage_Balance!H115)) ->  | F121: =IF(A121=0,"",(NEW_528_Forage_Balance!L115)) -> 
A122: =NEW_528_Forage_Balance!G116 -> 0 | C122: =IF(A122=0,"",(NEW_528_Forage_Balance!I116)) ->  | E122: =IF(A122=0,"",(NEW_528_Forage_Balance!H116)) ->  | F122: =IF(A122=0,"",(NEW_528_Forage_Balance!L116)) -> 
A123: =NEW_528_Forage_Balance!G117 -> 0 | C123: =IF(A123=0,"",(NEW_528_Forage_Balance!I117)) ->  | E123: =IF(A123=0,"",(NEW_528_Forage_Balance!H117)) ->  | F123: =IF(A123=0,"",(NEW_528_Forage_Balance!L117)) -> 
A124: =NEW_528_Forage_Balance!G118 -> 0 | C124: =IF(A124=0,"",(NEW_528_Forage_Balance!I118)) ->  | E124: =IF(A124=0,"",(NEW_528_Forage_Balance!H118)) ->  | F124: =IF(A124=0,"",(NEW_528_Forage_Balance!L118)) -> 
A125: =NEW_528_Forage_Balance!G119 -> 0 | C125: =IF(A125=0,"",(NEW_528_Forage_Balance!I119)) ->  | E125: =IF(A125=0,"",(NEW_528_Forage_Balance!H119)) ->  | F125: =IF(A125=0,"",(NEW_528_Forage_Balance!L119)) -> 
A126: =NEW_528_Forage_Balance!G120 -> 0 | C126: =IF(A126=0,"",(NEW_528_Forage_Balance!I120)) ->  | E126: =IF(A126=0,"",(NEW_528_Forage_Balance!H120)) ->  | F126: =IF(A126=0,"",(NEW_528_Forage_Balance!L120)) -> 
A127: =NEW_528_Forage_Balance!G121 -> 0 | C127: =IF(A127=0,"",(NEW_528_Forage_Balance!I121)) ->  | E127: =IF(A127=0,"",(NEW_528_Forage_Balance!H121)) ->  | F127: =IF(A127=0,"",(NEW_528_Forage_Balance!L121)) -> 
A128: FORAGE BALANCE EXISTING AND PLANNED | H128: Jan | I128: Feb | J128: Mar | K128: Apr | L128: May | M128: Jun | N128: Jul | O128: Aug | P128: Sep | Q128: Oct | R128: Nov | S128: Dec | T128: TOTAL
A129: Total forage (grazing) available by month (AUM or AUD) | H129: =SUM(H75:H127) -> 0 | I129: 0 | J129: 0 | K129: 35.65 | L129: 157.25 | M129: 230.6 | N129: 150 | O129: 90.25 | P129: 49.25 | Q129: 0 | R129: 0 | S129: 0 | T129: =SUM(H129:S129) -> 713 | U129: While negative numbers for individual months are good for discussion with client our primary concern is the forage balance for the entire grazing season. Stockpiled forage (left over herbage from earlier months or even last year) can provide some forage but it is of lower quality than growing or less mature forages. When the differences are significant, supplementing with protein and/or energy may be necessary to maintain animal health.
A130: Total existing forage needs (AUM or AUD) by month | H130: =I21 -> 6 | I130: 6 | J130: 6 | K130: 6 | L130: 63 | M130: 136 | N130: 136 | O130: 121 | P130: 121 | Q130: 112 | R130: 6 | S130: 6 | T130: =SUM(H130:S130) -> 725
A131: Difference (+) or (-) (AUM or AUD) | H131: =SUM(H129-H130) -> -6 | I131: =SUM(I129-I130) -> -6 | J131: -6 | K131: 29.65 | L131: 94.25 | M131: 94.6 | N131: 14 | O131: -30.75 | P131: -71.75 | Q131: -112 | R131: -6 | S131: -6 | T131: =SUM(T129-T130) -> -12
A132: Total planned forage needs (AUM or AUD) by month | H132: =I42 -> 6 | I132: 6 | J132: 6 | K132: 6 | L132: 121 | M132: 136 | N132: 136 | O132: 121 | P132: 121 | Q132: 112 | R132: 59 | S132: 6 | T132: =SUM(H132:S132) -> 836
A133: Difference (+) or (-) (AUM or AUD) | H133: =SUM(H129-H132) -> -6 | I133: =SUM(I129-I132) -> -6 | J133: -6 | K133: 29.65 | L133: 36.25 | M133: 94.6 | N133: 14 | O133: -30.75 | P133: -71.75 | Q133: -112 | R133: -59 | S133: -6 | T133: =SUM(T129-T132) -> -123
B134: % Existing - Cumulative Difference (available / needed) | S134: =100-((T131/$T$129)*100) -> 101.6830295
A135: % Planned - Cumulative Difference (available / needed) | S135: =100-((T133/$T$129)*100) -> 117.2510519
B137: FEED REQUIREMENTS (OPTIONAL) | J137: HARVESTED AND/OR PURCHASED FEEDS (OPTIONAL)
B138: Livestock | D138: Number Livestock | E138: Forage Needed / Month | F138: Months on Feed | G138: Needed AUM | J138: Type of feed | L138: Acres if Grown on Ranch | M138: Total tons per feed type | O138: Conversion Factor | Q138: AUM Available
U139: If winter grazing and hay or grain is used, inventory the amount on hand or the amount typically fed.
G140: =IF(B140=0,"",(E140*F140)) ->  | O140: =IF(J140=0,"",(VLOOKUP(J140,DATA!$A$1:$B$6,2,FALSE))) ->  | Q140: =IF(M140=0,"",(M140*O140)) -> 
G141: =IF(B141=0,"",(E141*F141)) ->  | O141: =IF(J141=0,"",(VLOOKUP(J141,DATA!$A$1:$B$6,2,FALSE))) ->  | Q141: =IF(M141=0,"",(M141*O141)) -> 
O142: =IF(J142=0,"",(VLOOKUP(J142,DATA!$A$1:$B$6,2,FALSE))) -> 
O143: =IF(J143=0,"",(VLOOKUP(J143,DATA!$A$1:$B$6,2,FALSE))) -> 
O144: =IF(J144=0,"",(VLOOKUP(J144,DATA!$A$1:$B$6,2,FALSE))) -> 
O145: TOTAL Forage Availability: | Q145: =SUM(Q140:Q144) -> 0
B146: Total AUM or AUD Needed: | G146: =SUM(G140:G145) -> 0
A149: FORAGE AND FEED BALANCE
A150: EXISTING BALANCE (GRAZING)
A151: Available AUM or AUD From Grazing: | E151: =T129 -> 713 | F151: Total AUM's or AUD Needed: | I151: =T130 -> 725 | J151: Difference in AUM or AUDs: | N151: =E151-I151 -> -12 | P151: % Difference: | S151: =(N151/I151)*100 -> -1.655172414 | T151: % | U151: The % difference by the standard and guidance may be up to 20%. Differences of 10% or less are expected due to normal annual variations and variations in the same ecological site from location to location. Differences exceeding 10% can lead to reduced ability of the plants to withstand adverse conditions and disturbances, in particular drought. Long-term forage-demand imbalances will lead to reduction plant health and increase the likelihood that less desirable, more grazing tolerant plants will increase in the unit.
A152: PLANNED BALANCE (GRAZING)
A153: Available AUM or AUD From Grazing: | E153: =T129 -> 713 | F153: Total AUM's or AUD Needed: | I153: =T132 -> 836 | J153: Difference in AUM or AUDs: | N153: =E153-I153 -> -123 | P153: % Difference: | S153: =(N153/I153)*100 -> -14.71291866 | T153: %
A154: EXISTING BALANCE (FEED)
A155: Total Harvested Forage / Feeds Available in AUM: | E155: =Q145 -> 0 | F155: Total AUM's Feed Needed: | I155: =G146 -> 0 | J155: Difference in AUM's: | O155: =SUM(E155-I155) -> 0 | P155: % Difference: | S155: =IF(E155=0,"",(O155/I155)*100) ->  | T155: %
A156: TOTAL PLANNED BALANCE (GRAZING AND FEED)
A157: Total AUM Grazing and Harvested Forage: | E157: =E153+E155 -> 713 | I157: =I153+I155 -> 836 | J157: Difference in AUM's: | O157: =SUM(E157-I157) -> -123 | P157: % Difference: | S157: =(I157/E157)*100 -> 117.2510519 | T157: %

Sheet ECS-63-Questionaire-Optional
A1: Client Name: | C1: County: | E1: Date:
A2: Property Name: | C2: Address:
A3: Phone: | C3: Cell or FAX:
A4: Email: | C4: Acres to be Planned:
A5: Legal or Farm and Tract:
A7: Describe Livestock Operation:
A9: Describe Goals for Grazing / Livestock Operation:
A11: Describe Current Grazing System or Grazing Management Strategy:
A13: Length of Grazing Season and Average Turn in and Take Out Dates:
A15: Describe Drought Management or Contingency Plan:
A17: Describe Winter Grazing or Feeding Program if Applicable for this Planning Unit:
A19: List areas of concern (grazing distribution, plant vigor, production, erosion, weeds, animal gain, etc.):
A22: Livestock Information:
A23: Number | B23: Class / Type | C23: Average Wt. | D23: Breed or Other Pertinent Information
A29: Avg. Calving Date: | D29: Avg. Weaning Date:
A31: Land Management Information:
A32: Type of Water Sources:
A33: Existing:
A34: Planned:
A35: Preferred Tank Type:
A36: Preferred Fence Type:
A37: Described Soil Testing and Fertilization for Tame (Planted) Pastures:

Sheet NE-CPA-17A
E1: NEBRASKA PRESCRIBED GRAZING IMPLEMENTATION REQUIRMENTS NE-CPA-17A | P1: NOTE: All plant communities and production should be confirmed in field.
D2: GRAZINGLAND INVENTORY SUMMARY AND SUGGESTED INITIAL STOCKING RATES BASED ON EXISTING PLANT COMMUNITY | M2: Form Date: November, 2020 | P2: List all ecological sites in each pasture, and identify the plant community/communities present in each pasture.
A3: CLIENT: | E3: Mary Rancher - Sunnyvale Ranch | I3: DATE: | K3: 2020-11-02
A4: PASTURE | D4: ECOLOGICAL SITE | E4: PLANT COMMUNITY | F4: Est. lbs. Production / acre | G4: Planned Harvest Efficiency | H4: Acres site-community combination | I4: AUM/ac | J4: AUM for Site | K4: Adj. Factor* | L4: Adjusted AUM for Site | M4: Adjusted AUD for Site | N4: AUM for Pasture | O4: AUD for Pasture | P4: Use copy/paste to enter multiple entries for MLRA, site and/or community or any of the unshaded cells.
A5: No. | B5: ACRES | C5: MLRA | E5: as listed in the Ecological Site Description
A6: R1A | B6: 305 | C6: MLRA_67A | D6: Limy_Upland_67A | E6: 1.1 Needle and Thread, Blue Grama, Little Bluestem, Sideoats Grama-LiU67A | F6: =IF(C6=0,"",(VLOOKUP(E6,NEW_DATA!$D$2:$E$2000,2,FALSE))) -> 1250 | G6: 0.3 | H6: 148 | I6: =IF(D6=0,"",(F6/912*G6)) -> 0.4111842105 | J6: =IF(E6=0,"",H6*I6) -> 60.85526316 | K6: 1 | L6: =IF(E6=0,"",J6*K6) -> 60.85526316 | M6: =IF(E6=0,"",L6*30) -> 1825.657895 | P6: Adjustment Factor: Use this to account for necessary reductions in production due to tree cover, rock cover, areas too steep to graze, or other factors that reduce grazable production. For example: Grasses are similar to community 1.2, but there is 30% cedar cover; use adjustment factor of 0.7 (70% of typical forage production for the community). If no reductions are needed use 1.0.
C7: MLRA_67A | D7: Limy_Upland_67A | E7: 1.2 Blue Grama, Threadleaf Sedge, Remnant Mid-grasses-LiU67A | F7: =IF(C7=0,"",(VLOOKUP(E7,NEW_DATA!$D$2:$E$2000,2,FALSE))) -> 950 | G7: 0.3 | H7: 55 | I7: =IF(D7=0,"",(F7/912*G7)) -> 0.3125 | J7: =IF(E7=0,"",H7*I7) -> 17.1875 | K7: 1 | L7: =IF(E7=0,"",J7*K7) -> 17.1875 | M7: =IF(E7=0,"",L7*30) -> 515.625
C8: MLRA_67A | D8: Sandy_67A | E8: 1.1 Needle and Thread, Prairie Sandreed, Little Bluestem-Sy67A | F8: =IF(C8=0,"",(VLOOKUP(E8,NEW_DATA!$D$2:$E$2000,2,FALSE))) -> 1500 | G8: 0.3 | H8: 58 | I8: 0.4934210526 | J8: 28.61842105 | K8: 1 | L8: 28.61842105 | M8: 858.5526316
C9: MLRA_67A | D9: Sandy_67A | E9: 2.1 Blue Grama, Threadleaf Sedge Sod, Spreading Buckwheat-Sy67A | F9: =IF(C9=0,"",(VLOOKUP(E9,NEW_DATA!$D$2:$E$2000,2,FALSE))) -> 600 | G9: 0.3 | H9: 44 | I9: 0.1973684211 | J9: 8.684210526 | K9: 1 | L9: 8.684210526 | M9: 260.5263158 | N9: 115.3 | O9: 3460.4
F10: =IF(C10=0,"",(VLOOKUP(E10,NEW_DATA!$D$2:$E$2000,2,FALSE))) ->  | I10: =IF(D10=0,"",(F10/912*G10)) ->  | J10: =IF(E10=0,"",H10*I10) ->  | L10: =IF(E10=0,"",J10*K10) ->  | M10: =IF(E10=0,"",L10*30) -> 
A11: R1B | B11: 335 | C11: MLRA_67A | D11: Gravelly_67A | E11: 1.2 Blue Grama, Needle and Thread-Gv67A | F11: =IF(C11=0,"",(VLOOKUP(E11,NEW_DATA!$D$2:$E$2000,2,FALSE))) -> 600 | G11: 0.3 | H11: 133 | I11: 0.1973684211 | J11: 26.25 | K11: 1 | L11: 26.25 | M11: 787.5
C12: MLRA_67A | D12: Loamy_67A | E12: 1.2 Blue Grama, Threadleaf Sedge, Remnant Mid-grasses-Lo67A | F12: =IF(C12=0,"",(VLOOKUP(E12,NEW_DATA!$D$2:$E$2000,2,FALSE))) -> 1100 | G12: 0.3 | H12: 103 | I12: =IF(D12=0,"",(F12/912*G12)) -> 0.3618421053 | J12: =IF(E12=0,"",H12*I12) -> 37.26973684 | K12: 1 | L12: =IF(E12=0,"",J12*K12) -> 37.26973684 | M12: =IF(E12=0,"",L12*30) -> 1118.092105
C13: MLRA_67A | D13: Limy_Upland_67A | E13: 1.1 Needle and Thread, Blue Grama, Little Bluestem, Sideoats Grama-LiU67A | F13: =IF(C13=0,"",(VLOOKUP(E13,NEW_DATA!$D$2:$E$2000,2,FALSE))) -> 1250 | G13: 0.3 | H13: 99 | I13: =IF(D13=0,"",(F13/912*G13)) -> 0.4111842105 | J13: =IF(E13=0,"",H13*I13) -> 40.70723684 | K13: 0.7 | L13: =IF(E13=0,"",J13*K13) -> 28.49506579 | M13: =IF(E13=0,"",L13*30) -> 854.8519737 | N13: =SUM(L11:L13) -> 92.01480263 | O13: =SUM(M11:M13) -> 2760.444079
F14: =IF(C14=0,"",(VLOOKUP(E14,NEW_DATA!$D$2:$E$2000,2,FALSE))) ->  | P14: Since every pasture will contain a different number of site/community combinations, manually calculate AUM and AUD. To speed the process you can use the excel formula: =SUM(LX:LY) and =SUM(MX:MY) where X is the row number for the first cell number for the pasture and Y is the row number for the second cell number for the pasture. (Click in the cells of the example to see formula).
A15: R2 | B15: 320 | C15: MLRA_67A | D15: Loamy_Lowland_67A | E15: 2.1 Blue Grama, Buffalograss, Decadent Cottonwood-LoLo67A | F15: =IF(C15=0,"",(VLOOKUP(E15,NEW_DATA!$D$2:$E$2000,2,FALSE))) -> 1250 | G15: 0.3 | H15: 82 | I15: 0.4111842105 | J15: 33.71710526 | K15: 0.9 | L15: 30.34539474 | M15: 910.3618421
C16: MLRA_67A | D16: Limy_Upland_67A | E16: 1.1 Needle and Thread, Blue Grama, Little Bluestem, Sideoats Grama-LiU67A | F16: =IF(C16=0,"",(VLOOKUP(E16,NEW_DATA!$D$2:$E$2000,2,FALSE))) -> 1250 | G16: 0.3 | H16: 109 | I16: 0.4111842105 | J16: 44.81907895 | K16: 1 | L16: 44.81907895 | M16: 1344.572368
C17: MLRA_67A | D17: Sandy_67A | E17: 1.2 Blue Grama, Needle and Thread, Prairie Sandreed-Sy67A | F17: =IF(C17=0,"",(VLOOKUP(E17,NEW_DATA!$D$2:$E$2000,2,FALSE))) -> 1100 | G17: 0.3 | H17: 129 | I17: =IF(D17=0,"",(F17/912*G17)) -> 0.3618421053 | J17: =IF(E17=0,"",H17*I17) -> 46.67763158 | K17: 1 | L17: =IF(E17=0,"",J17*K17) -> 46.67763158 | M17: =IF(E17=0,"",L17*30) -> 1400.328947 | N17: =SUM(L15:L17) -> 121.8421053 | O17: =SUM(M15:M17) -> 3655.263158
F18: =IF(C18=0,"",(VLOOKUP(E18,NEW_DATA!$D$2:$E$2000,2,FALSE))) -> 
A19: R3 | B19: 80 | C19: MLRA_67A | D19: Sandy_67A | E19: 1.1 Needle and Thread, Prairie Sandreed, Little Bluestem-Sy67A | F19: =IF(C19=0,"",(VLOOKUP(E19,NEW_DATA!$D$2:$E$2000,2,FALSE))) -> 1500 | G19: 0.3 | H19: 47 | I19: 0.4934210526 | J19: 23.19078947 | K19: 1 | L19: 23.19078947 | M19: 695.7236842
C20: MLRA_67A | D20: Sandy_67A | E20: 1.2 Blue Grama, Needle and Thread, Prairie Sandreed-Sy67A | F20: =IF(C20=0,"",(VLOOKUP(E20,NEW_DATA!$D$2:$E$2000,2,FALSE))) -> 1100 | G20: 0.3 | H20: 33 | I20: 0.3618421053 | J20: 11.94078947 | K20: 1 | L20: 11.94078947 | M20: 358.2236842 | N20: =SUM(L19:L20) -> 35.13157895 | O20: =SUM(M19:M20) -> 1053.947368
F21: =IF(C21=0,"",(VLOOKUP(E21,NEW_DATA!$D$2:$E$2000,2,FALSE))) -> 
A22: R4 | B22: 160 | C22: MLRA_67A | D22: Sandy_67A | E22: 1.2 Blue Grama, Needle and Thread, Prairie Sandreed-Sy67A | F22: =IF(C22=0,"",(VLOOKUP(E22,NEW_DATA!$D$2:$E$2000,2,FALSE))) -> 1100 | G22: 0.3 | H22: 160 | I22: 0.3618421053 | J22: 57.89473684 | K22: 1 | L22: 57.89473684 | M22: 1736.842105 | N22: =L22 -> 57.89473684 | O22: =M22 -> 1736.842105
F23: =IF(C23=0,"",(VLOOKUP(E23,NEW_DATA!$D$2:$E$2000,2,FALSE))) ->  | P23: After entering information for all pastures, hide unneeded rows in order to clean up the printout. If you do not want to display both AUM and AUD, hide the 2 columns for the option that you do not wish to display on your printout.
A24: R5A | B24: 240 | C24: MLRA_67A | D24: Sandy_67A | E24: 1.2 Blue Grama, Needle and Thread, Prairie Sandreed-Sy67A | F24: =IF(C24=0,"",(VLOOKUP(E24,NEW_DATA!$D$2:$E$2000,2,FALSE))) -> 1100 | G24: 0.3 | H24: 47 | I24: 0.3618421053 | J24: 17.00657895 | K24: 1 | L24: 17.00657895 | M24: 510.1973684
C25: MLRA_67A | D25: Sandy_67A | E25: 2.1 Blue Grama, Threadleaf Sedge Sod, Spreading Buckwheat-Sy67A | F25: =IF(C25=0,"",(VLOOKUP(E25,NEW_DATA!$D$2:$E$2000,2,FALSE))) -> 600 | G25: 0.3 | H25: 83 | I25: 0.1973684211 | J25: 16.38157895 | K25: 1 | L25: 16.38157895 | M25: 491.4473684
C26: MLRA_67A | D26: Limy_Upland_67A | E26: 1.2 Blue Grama, Threadleaf Sedge, Remnant Mid-grasses-LiU67A | F26: =IF(C26=0,"",(VLOOKUP(E26,NEW_DATA!$D$2:$E$2000,2,FALSE))) -> 950 | G26: 0.3 | H26: 39 | I26: 0.3125 | J26: 12.1875 | K26: 1 | L26: 12.1875 | M26: 365.625 | P26: Insert page breaks so that page breaks do not break up data for individual pastures.
C27: MLRA_67A | D27: Shallow_67A | E27: 1.1 Rhizomatous Wheatgrass-Little Bluestem-Blue Grama-Needle and Thread, Sw67A | F27: =IF(C27=0,"",(VLOOKUP(E27,NEW_DATA!$D$2:$E$2000,2,FALSE))) -> 1100 | G27: 0.3 | H27: 71 | I27: 0.3618421053 | J27: 25.69078947 | K27: 0.8 | L27: 20.55263158 | M27: 616.5789474 | N27: =SUM(L24:L27) -> 66.12828947 | O27: =SUM(M24:M27) -> 1983.848684
F28: =IF(C28=0,"",(VLOOKUP(E28,NEW_DATA!$D$2:$E$2000,2,FALSE))) -> 
A29: R5B | B29: 263 | C29: MLRA_67A | D29: Loamy_67A | E29: 1.1 Needle and Thread, Little Bluestem, Blue Grama-Lo67A | F29: =IF(C29=0,"",(VLOOKUP(E29,NEW_DATA!$D$2:$E$2000,2,FALSE))) -> 1500 | G29: 0.25 | H29: 90 | I29: 0.4111842105 | J29: 37.00657895 | K29: 1 | L29: 37.00657895 | M29: 1110.197368
C30: MLRA_67A | D30: Loamy_Lowland_67A | E30: 1.2 Blue Grama, Western Wheatgrass, Cottonwood-LoLo67A | F30: =IF(C30=0,"",(VLOOKUP(E30,NEW_DATA!$D$2:$E$2000,2,FALSE))) -> 1750 | G30: 0.25 | H30: 107 | I30: 0.4797149123 | J30: 51.32949561 | K30: 1 | L30: 51.32949561 | M30: 1539.884868
C31: MLRA_67A | D31: Limy_Upland_67A | E31: 1.2 Blue Grama, Threadleaf Sedge, Remnant Mid-grasses-LiU67A | F31: =IF(C31=0,"",(VLOOKUP(E31,NEW_DATA!$D$2:$E$2000,2,FALSE))) -> 950 | G31: 0.25 | H31: 66 | I31: 0.2604166667 | J31: 17.1875 | K31: 1 | L31: 17.1875 | M31: 515.625 | N31: =SUM(L29:L31) -> 105.5235746 | O31: =SUM(M29:M31) -> 3165.707237
F32: =IF(C32=0,"",(VLOOKUP(E32,NEW_DATA!$D$2:$E$2000,2,FALSE))) -> 
A33: R5C | B33: 137 | C33: MLRA_67A | D33: Limy_Upland_67A | E33: 3.1 Broom Snakeweed, Annual Grasses, Forbs, Bare Ground-LiU67A | F33: =IF(C33=0,"",(VLOOKUP(E33,NEW_DATA!$D$2:$E$2000,2,FALSE))) -> 650 | G33: 0.3 | H33: 29 | I33: 0.2138157895 | J33: 6.200657895 | K33: 0.7 | L33: 4.340460526 | M33: 130.2138158
C34: MLRA_67A | D34: Limy_Upland_67A | E34: 2.1 Blue Grama, Buffalograss, Threadleaf Sedge-LiU67A | F34: =IF(C34=0,"",(VLOOKUP(E34,NEW_DATA!$D$2:$E$2000,2,FALSE))) -> 700 | G34: 0.3 | H34: 108 | I34: 0.2302631579 | J34: 24.86842105 | K34: 1 | L34: 24.86842105 | M34: 746.0526316 | N34: =SUM(L33:L34) -> 29.20888158 | O34: =SUM(M33:M34) -> 876.2664474
F35: =IF(C35=0,"",(VLOOKUP(E35,NEW_DATA!$D$2:$E$2000,2,FALSE))) -> 
A36: R6 | B36: 160 | C36: MLRA_67A | D36: Loamy_67A | E36: 4.2A Range Seeding, Natives, Excellent Stand-Lo67A | F36: =IF(C36=0,"",(VLOOKUP(E36,NEW_DATA!$D$2:$E$2000,2,FALSE))) -> 1700 | G36: 0.3 | H36: 160 | I36: 0.5592105263 | J36: 89.47368421 | K36: 1 | L36: 89.47368421 | M36: 2684.210526 | N36: 89.5 | O36: 2684.2
F37: =IF(C37=0,"",(VLOOKUP(E37,NEW_DATA!$D$2:$E$2000,2,FALSE))) -> 
F38: =IF(C38=0,"",(VLOOKUP(E38,NEW_DATA!$D$2:$E$2000,2,FALSE))) -> 
F39: =IF(C39=0,"",(VLOOKUP(E39,NEW_DATA!$D$2:$E$2000,2,FALSE))) -> 
F40: =IF(C40=0,"",(VLOOKUP(E40,NEW_DATA!$D$2:$E$2000,2,FALSE))) -> 
F41: =IF(C41=0,"",(VLOOKUP(E41,NEW_DATA!$D$2:$E$2000,2,FALSE))) -> 
F42: =IF(C42=0,"",(VLOOKUP(E42,NEW_DATA!$D$2:$E$2000,2,FALSE))) -> 
F43: =IF(C43=0,"",(VLOOKUP(E43,NEW_DATA!$D$2:$E$2000,2,FALSE))) -> 
F44: =IF(C44=0,"",(VLOOKUP(E44,NEW_DATA!$D$2:$E$2000,2,FALSE))) -> 
F45: =IF(C45=0,"",(VLOOKUP(E45,NEW_DATA!$D$2:$E$2000,2,FALSE))) -> 
F46: =IF(C46=0,"",(VLOOKUP(E46,NEW_DATA!$D$2:$E$2000,2,FALSE))) -> 
F47: =IF(C47=0,"",(VLOOKUP(E47,NEW_DATA!$D$2:$E$2000,2,FALSE))) -> 
F48: =IF(C48=0,"",(VLOOKUP(E48,NEW_DATA!$D$2:$E$2000,2,FALSE))) -> 
F49: =IF(C49=0,"",(VLOOKUP(E49,NEW_DATA!$D$2:$E$2000,2,FALSE))) -> 
F50: =IF(C50=0,"",(VLOOKUP(E50,NEW_DATA!$D$2:$E$2000,2,FALSE))) -> 
F51: =IF(C51=0,"",(VLOOKUP(E51,NEW_DATA!$D$2:$E$2000,2,FALSE))) -> 
F52: =IF(C52=0,"",(VLOOKUP(E52,NEW_DATA!$D$2:$E$2000,2,FALSE))) -> 
F53: =IF(C53=0,"",(VLOOKUP(E53,NEW_DATA!$D$2:$E$2000,2,FALSE))) -> 
F54: =IF(C54=0,"",(VLOOKUP(E54,NEW_DATA!$D$2:$E$2000,2,FALSE))) -> 
F55: =IF(C55=0,"",(VLOOKUP(E55,NEW_DATA!$D$2:$E$2000,2,FALSE))) -> 
F56: =IF(C56=0,"",(VLOOKUP(E56,NEW_DATA!$D$2:$E$2000,2,FALSE))) -> 
F57: =IF(C57=0,"",(VLOOKUP(E57,NEW_DATA!$D$2:$E$2000,2,FALSE))) -> 
F58: =IF(C58=0,"",(VLOOKUP(E58,NEW_DATA!$D$2:$E$2000,2,FALSE))) -> 
F59: =IF(C59=0,"",(VLOOKUP(E59,NEW_DATA!$D$2:$E$2000,2,FALSE))) -> 
F60: =IF(C60=0,"",(VLOOKUP(E60,NEW_DATA!$D$2:$E$2000,2,FALSE))) -> 
F61: =IF(C61=0,"",(VLOOKUP(E61,NEW_DATA!$D$2:$E$2000,2,FALSE))) -> 
F62: =IF(C62=0,"",(VLOOKUP(E62,NEW_DATA!$D$2:$E$2000,2,FALSE))) -> 
F63: =IF(C63=0,"",(VLOOKUP(E63,NEW_DATA!$D$2:$E$2000,2,FALSE))) -> 
F64: =IF(C64=0,"",(VLOOKUP(E64,NEW_DATA!$D$2:$E$2000,2,FALSE))) -> 
F65: =IF(C65=0,"",(VLOOKUP(E65,NEW_DATA!$D$2:$E$2000,2,FALSE))) -> 
F66: =IF(C66=0,"",(VLOOKUP(E66,NEW_DATA!$D$2:$E$2000,2,FALSE))) -> 
F67: =IF(C67=0,"",(VLOOKUP(E67,NEW_DATA!$D$2:$E$2000,2,FALSE))) -> 
F68: =IF(C68=0,"",(VLOOKUP(E68,NEW_DATA!$D$2:$E$2000,2,FALSE))) -> 
F69: =IF(C69=0,"",(VLOOKUP(E69,NEW_DATA!$D$2:$E$2000,2,FALSE))) -> 
F70: =IF(C70=0,"",(VLOOKUP(E70,NEW_DATA!$D$2:$E$2000,2,FALSE))) -> 
F71: =IF(C71=0,"",(VLOOKUP(E71,NEW_DATA!$D$2:$E$2000,2,FALSE))) -> 
F72: =IF(C72=0,"",(VLOOKUP(E72,NEW_DATA!$D$2:$E$2000,2,FALSE))) -> 
F73: =IF(C73=0,"",(VLOOKUP(E73,NEW_DATA!$D$2:$E$2000,2,FALSE))) -> 
F74: =IF(C74=0,"",(VLOOKUP(E74,NEW_DATA!$D$2:$E$2000,2,FALSE))) ->  | I74: =IF(D74=0,"",(F74/912*G74)) ->  | J74: =IF(E74=0,"",H74*I74) ->  | L74: =IF(E74=0,"",J74*K74) ->  | M74: =IF(E74=0,"",L74*30) -> 
F75: =IF(C75=0,"",(VLOOKUP(E75,NEW_DATA!$D$2:$E$2000,2,FALSE))) -> 
F76: =IF(C76=0,"",(VLOOKUP(E76,NEW_DATA!$D$2:$E$2000,2,FALSE))) -> 
F77: =IF(C77=0,"",(VLOOKUP(E77,NEW_DATA!$D$2:$E$2000,2,FALSE))) -> 
F78: =IF(C78=0,"",(VLOOKUP(E78,NEW_DATA!$D$2:$E$2000,2,FALSE))) -> 
F79: =IF(C79=0,"",(VLOOKUP(E79,NEW_DATA!$D$2:$E$2000,2,FALSE))) -> 
F80: =IF(C80=0,"",(VLOOKUP(E80,NEW_DATA!$D$2:$E$2000,2,FALSE))) -> 
F81: =IF(C81=0,"",(VLOOKUP(E81,NEW_DATA!$D$2:$E$2000,2,FALSE))) -> 
F82: =IF(C82=0,"",(VLOOKUP(E82,NEW_DATA!$D$2:$E$2000,2,FALSE))) -> 
F83: =IF(C83=0,"",(VLOOKUP(E83,NEW_DATA!$D$2:$E$2000,2,FALSE))) -> 
F84: =IF(C84=0,"",(VLOOKUP(E84,NEW_DATA!$D$2:$E$2000,2,FALSE))) -> 
F85: =IF(C85=0,"",(VLOOKUP(E85,NEW_DATA!$D$2:$E$2000,2,FALSE))) -> 
F86: =IF(C86=0,"",(VLOOKUP(E86,NEW_DATA!$D$2:$E$2000,2,FALSE))) -> 
F87: =IF(C87=0,"",(VLOOKUP(E87,NEW_DATA!$D$2:$E$2000,2,FALSE))) -> 
F88: =IF(C88=0,"",(VLOOKUP(E88,NEW_DATA!$D$2:$E$2000,2,FALSE))) -> 
F89: =IF(C89=0,"",(VLOOKUP(E89,NEW_DATA!$D$2:$E$2000,2,FALSE))) -> 
F90: =IF(C90=0,"",(VLOOKUP(E90,NEW_DATA!$D$2:$E$2000,2,FALSE))) -> 
F91: =IF(C91=0,"",(VLOOKUP(E91,NEW_DATA!$D$2:$E$2000,2,FALSE))) -> 
F92: =IF(C92=0,"",(VLOOKUP(E92,NEW_DATA!$D$2:$E$2000,2,FALSE))) -> 
F93: =IF(C93=0,"",(VLOOKUP(E93,NEW_DATA!$D$2:$E$2000,2,FALSE))) -> 
F94: =IF(C94=0,"",(VLOOKUP(E94,NEW_DATA!$D$2:$E$2000,2,FALSE))) -> 
F95: =IF(C95=0,"",(VLOOKUP(E95,NEW_DATA!$D$2:$E$2000,2,FALSE))) -> 
F96: =IF(C96=0,"",(VLOOKUP(E96,NEW_DATA!$D$2:$E$2000,2,FALSE))) -> 
F97: =IF(C97=0,"",(VLOOKUP(E97,NEW_DATA!$D$2:$E$2000,2,FALSE))) -> 
F98: =IF(C98=0,"",(VLOOKUP(E98,NEW_DATA!$D$2:$E$2000,2,FALSE))) -> 
F99: =IF(C99=0,"",(VLOOKUP(E99,NEW_DATA!$D$2:$E$2000,2,FALSE))) -> 
F100: =IF(C100=0,"",(VLOOKUP(E100,NEW_DATA!$D$2:$E$2000,2,FALSE))) -> 
F101: =IF(C101=0,"",(VLOOKUP(E101,NEW_DATA!$D$2:$E$2000,2,FALSE))) -> 
F102: =IF(C102=0,"",(VLOOKUP(E102,NEW_DATA!$D$2:$E$2000,2,FALSE))) -> 
F103: =IF(C103=0,"",(VLOOKUP(E103,NEW_DATA!$D$2:$E$2000,2,FALSE))) -> 
F104: =IF(C104=0,"",(VLOOKUP(E104,NEW_DATA!$D$2:$E$2000,2,FALSE))) -> 
F105: =IF(C105=0,"",(VLOOKUP(E105,NEW_DATA!$D$2:$E$2000,2,FALSE))) -> 
F106: =IF(C106=0,"",(VLOOKUP(E106,NEW_DATA!$D$2:$E$2000,2,FALSE))) -> 
F107: =IF(C107=0,"",(VLOOKUP(E107,NEW_DATA!$D$2:$E$2000,2,FALSE))) -> 
F108: =IF(C108=0,"",(VLOOKUP(E108,NEW_DATA!$D$2:$E$2000,2,FALSE))) -> 
F109: =IF(C109=0,"",(VLOOKUP(E109,NEW_DATA!$D$2:$E$2000,2,FALSE))) -> 
F110: =IF(C110=0,"",(VLOOKUP(E110,NEW_DATA!$D$2:$E$2000,2,FALSE))) -> 
F111: =IF(C111=0,"",(VLOOKUP(E111,NEW_DATA!$D$2:$E$2000,2,FALSE))) -> 
F112: =IF(C112=0,"",(VLOOKUP(E112,NEW_DATA!$D$2:$E$2000,2,FALSE))) -> 
F113: =IF(C113=0,"",(VLOOKUP(E113,NEW_DATA!$D$2:$E$2000,2,FALSE))) -> 
F114: =IF(C114=0,"",(VLOOKUP(E114,NEW_DATA!$D$2:$E$2000,2,FALSE))) -> 
F115: =IF(C115=0,"",(VLOOKUP(E115,NEW_DATA!$D$2:$E$2000,2,FALSE))) -> 
F116: =IF(C116=0,"",(VLOOKUP(E116,NEW_DATA!$D$2:$E$2000,2,FALSE))) -> 
F117: =IF(C117=0,"",(VLOOKUP(E117,NEW_DATA!$D$2:$E$2000,2,FALSE))) -> 
F118: =IF(C118=0,"",(VLOOKUP(E118,NEW_DATA!$D$2:$E$2000,2,FALSE))) -> 
F119: =IF(C119=0,"",(VLOOKUP(E119,NEW_DATA!$D$2:$E$2000,2,FALSE))) -> 
F120: =IF(C120=0,"",(VLOOKUP(E120,NEW_DATA!$D$2:$E$2000,2,FALSE))) -> 
F121: =IF(C121=0,"",(VLOOKUP(E121,NEW_DATA!$D$2:$E$2000,2,FALSE))) -> 
F122: =IF(C122=0,"",(VLOOKUP(E122,NEW_DATA!$D$2:$E$2000,2,FALSE))) -> 
F123: =IF(C123=0,"",(VLOOKUP(E123,NEW_DATA!$D$2:$E$2000,2,FALSE))) -> 
F124: =IF(C124=0,"",(VLOOKUP(E124,NEW_DATA!$D$2:$E$2000,2,FALSE))) -> 
F125: =IF(C125=0,"",(VLOOKUP(E125,NEW_DATA!$D$2:$E$2000,2,FALSE))) -> 
F126: =IF(C126=0,"",(VLOOKUP(E126,NEW_DATA!$D$2:$E$2000,2,FALSE))) -> 
F127: =IF(C127=0,"",(VLOOKUP(E127,NEW_DATA!$D$2:$E$2000,2,FALSE))) -> 
F128: =IF(C128=0,"",(VLOOKUP(E128,NEW_DATA!$D$2:$E$2000,2,FALSE))) -> 
F129: =IF(C129=0,"",(VLOOKUP(E129,NEW_DATA!$D$2:$E$2000,2,FALSE))) -> 
F130: =IF(C130=0,"",(VLOOKUP(E130,NEW_DATA!$D$2:$E$2000,2,FALSE))) -> 
F131: =IF(C131=0,"",(VLOOKUP(E131,NEW_DATA!$D$2:$E$2000,2,FALSE))) -> 
F132: =IF(C132=0,"",(VLOOKUP(E132,NEW_DATA!$D$2:$E$2000,2,FALSE))) -> 
F133: =IF(C133=0,"",(VLOOKUP(E133,NEW_DATA!$D$2:$E$2000,2,FALSE))) -> 
F134: =IF(C134=0,"",(VLOOKUP(E134,NEW_DATA!$D$2:$E$2000,2,FALSE))) -> 
F135: =IF(C135=0,"",(VLOOKUP(E135,NEW_DATA!$D$2:$E$2000,2,FALSE))) -> 
F136: =IF(C136=0,"",(VLOOKUP(E136,NEW_DATA!$D$2:$E$2000,2,FALSE))) -> 
F137: =IF(C137=0,"",(VLOOKUP(E137,NEW_DATA!$D$2:$E$2000,2,FALSE))) -> 
F138: =IF(C138=0,"",(VLOOKUP(E138,NEW_DATA!$D$2:$E$2000,2,FALSE))) ->  | I138: =IF(D138=0,"",(F138/912*G138)) ->  | J138: =IF(E138=0,"",H138*I138) ->  | L138: =IF(E138=0,"",J138*K138) ->  | M138: =IF(E138=0,"",L138*30) -> 
F139: =IF(C139=0,"",(VLOOKUP(E139,NEW_DATA!$D$2:$E$2000,2,FALSE))) -> 
F140: =IF(C140=0,"",(VLOOKUP(E140,NEW_DATA!$D$2:$E$2000,2,FALSE))) -> 
F141: =IF(C141=0,"",(VLOOKUP(E141,NEW_DATA!$D$2:$E$2000,2,FALSE))) -> 
F142: =IF(C142=0,"",(VLOOKUP(E142,NEW_DATA!$D$2:$E$2000,2,FALSE))) -> 
F143: =IF(C143=0,"",(VLOOKUP(E143,NEW_DATA!$D$2:$E$2000,2,FALSE))) -> 
F144: =IF(C144=0,"",(VLOOKUP(E144,NEW_DATA!$D$2:$E$2000,2,FALSE))) -> 
F145: =IF(C145=0,"",(VLOOKUP(E145,NEW_DATA!$D$2:$E$2000,2,FALSE))) -> 
F146: =IF(C146=0,"",(VLOOKUP(E146,NEW_DATA!$D$2:$E$2000,2,FALSE))) -> 
F147: =IF(C147=0,"",(VLOOKUP(E147,NEW_DATA!$D$2:$E$2000,2,FALSE))) -> 
F148: =IF(C148=0,"",(VLOOKUP(E148,NEW_DATA!$D$2:$E$2000,2,FALSE))) -> 
F149: =IF(C149=0,"",(VLOOKUP(E149,NEW_DATA!$D$2:$E$2000,2,FALSE))) -> 
F150: =IF(C150=0,"",(VLOOKUP(E150,NEW_DATA!$D$2:$E$2000,2,FALSE))) -> 
F151: =IF(C151=0,"",(VLOOKUP(E151,NEW_DATA!$D$2:$E$2000,2,FALSE))) -> 
F152: =IF(C152=0,"",(VLOOKUP(E152,NEW_DATA!$D$2:$E$2000,2,FALSE))) -> 
F153: =IF(C153=0,"",(VLOOKUP(E153,NEW_DATA!$D$2:$E$2000,2,FALSE))) -> 
F154: =IF(C154=0,"",(VLOOKUP(E154,NEW_DATA!$D$2:$E$2000,2,FALSE))) -> 
F155: =IF(C155=0,"",(VLOOKUP(E155,NEW_DATA!$D$2:$E$2000,2,FALSE))) -> 
F156: =IF(C156=0,"",(VLOOKUP(E156,NEW_DATA!$D$2:$E$2000,2,FALSE))) -> 
F157: =IF(C157=0,"",(VLOOKUP(E157,NEW_DATA!$D$2:$E$2000,2,FALSE))) -> 
F158: =IF(C158=0,"",(VLOOKUP(E158,NEW_DATA!$D$2:$E$2000,2,FALSE))) -> 
F159: =IF(C159=0,"",(VLOOKUP(E159,NEW_DATA!$D$2:$E$2000,2,FALSE))) -> 
F160: =IF(C160=0,"",(VLOOKUP(E160,NEW_DATA!$D$2:$E$2000,2,FALSE))) -> 
F161: =IF(C161=0,"",(VLOOKUP(E161,NEW_DATA!$D$2:$E$2000,2,FALSE))) -> 
F162: =IF(C162=0,"",(VLOOKUP(E162,NEW_DATA!$D$2:$E$2000,2,FALSE))) -> 
F163: =IF(C163=0,"",(VLOOKUP(E163,NEW_DATA!$D$2:$E$2000,2,FALSE))) -> 
F164: =IF(C164=0,"",(VLOOKUP(E164,NEW_DATA!$D$2:$E$2000,2,FALSE))) -> 
F165: =IF(C165=0,"",(VLOOKUP(E165,NEW_DATA!$D$2:$E$2000,2,FALSE))) -> 
F166: =IF(C166=0,"",(VLOOKUP(E166,NEW_DATA!$D$2:$E$2000,2,FALSE))) -> 
F167: =IF(C167=0,"",(VLOOKUP(E167,NEW_DATA!$D$2:$E$2000,2,FALSE))) -> 
F168: =IF(C168=0,"",(VLOOKUP(E168,NEW_DATA!$D$2:$E$2000,2,FALSE))) -> 
F169: =IF(C169=0,"",(VLOOKUP(E169,NEW_DATA!$D$2:$E$2000,2,FALSE))) -> 
F170: =IF(C170=0,"",(VLOOKUP(E170,NEW_DATA!$D$2:$E$2000,2,FALSE))) -> 
F171: =IF(C171=0,"",(VLOOKUP(E171,NEW_DATA!$D$2:$E$2000,2,FALSE))) -> 
F172: =IF(C172=0,"",(VLOOKUP(E172,NEW_DATA!$D$2:$E$2000,2,FALSE))) -> 
F173: =IF(C173=0,"",(VLOOKUP(E173,NEW_DATA!$D$2:$E$2000,2,FALSE))) -> 
F174: =IF(C174=0,"",(VLOOKUP(E174,NEW_DATA!$D$2:$E$2000,2,FALSE))) -> 
F175: =IF(C175=0,"",(VLOOKUP(E175,NEW_DATA!$D$2:$E$2000,2,FALSE))) -> 
F176: =IF(C176=0,"",(VLOOKUP(E176,NEW_DATA!$D$2:$E$2000,2,FALSE))) -> 
F177: =IF(C177=0,"",(VLOOKUP(E177,NEW_DATA!$D$2:$E$2000,2,FALSE))) -> 
F178: =IF(C178=0,"",(VLOOKUP(E178,NEW_DATA!$D$2:$E$2000,2,FALSE))) -> 
F179: =IF(C179=0,"",(VLOOKUP(E179,NEW_DATA!$D$2:$E$2000,2,FALSE))) -> 
F180: =IF(C180=0,"",(VLOOKUP(E180,NEW_DATA!$D$2:$E$2000,2,FALSE))) -> 
F181: =IF(C181=0,"",(VLOOKUP(E181,NEW_DATA!$D$2:$E$2000,2,FALSE))) -> 
F182: =IF(C182=0,"",(VLOOKUP(E182,NEW_DATA!$D$2:$E$2000,2,FALSE))) -> 
F183: =IF(C183=0,"",(VLOOKUP(E183,NEW_DATA!$D$2:$E$2000,2,FALSE))) -> 
F184: =IF(C184=0,"",(VLOOKUP(E184,NEW_DATA!$D$2:$E$2000,2,FALSE))) -> 
F185: =IF(C185=0,"",(VLOOKUP(E185,NEW_DATA!$D$2:$E$2000,2,FALSE))) -> 
F186: =IF(C186=0,"",(VLOOKUP(E186,NEW_DATA!$D$2:$E$2000,2,FALSE))) -> 
F187: =IF(C187=0,"",(VLOOKUP(E187,NEW_DATA!$D$2:$E$2000,2,FALSE))) -> 
F188: =IF(C188=0,"",(VLOOKUP(E188,NEW_DATA!$D$2:$E$2000,2,FALSE))) -> 
F189: =IF(C189=0,"",(VLOOKUP(E189,NEW_DATA!$D$2:$E$2000,2,FALSE))) -> 
F190: =IF(C190=0,"",(VLOOKUP(E190,NEW_DATA!$D$2:$E$2000,2,FALSE))) -> 
F191: =IF(C191=0,"",(VLOOKUP(E191,NEW_DATA!$D$2:$E$2000,2,FALSE))) -> 
F192: =IF(C192=0,"",(VLOOKUP(E192,NEW_DATA!$D$2:$E$2000,2,FALSE))) -> 
F193: =IF(C193=0,"",(VLOOKUP(E193,NEW_DATA!$D$2:$E$2000,2,FALSE))) -> 
F194: =IF(C194=0,"",(VLOOKUP(E194,NEW_DATA!$D$2:$E$2000,2,FALSE))) -> 
F195: =IF(C195=0,"",(VLOOKUP(E195,NEW_DATA!$D$2:$E$2000,2,FALSE))) -> 
F196: =IF(C196=0,"",(VLOOKUP(E196,NEW_DATA!$D$2:$E$2000,2,FALSE))) -> 
F197: =IF(C197=0,"",(VLOOKUP(E197,NEW_DATA!$D$2:$E$2000,2,FALSE))) -> 
F198: =IF(C198=0,"",(VLOOKUP(E198,NEW_DATA!$D$2:$E$2000,2,FALSE))) -> 
F199: =IF(C199=0,"",(VLOOKUP(E199,NEW_DATA!$D$2:$E$2000,2,FALSE))) -> 
F200: =IF(C200=0,"",(VLOOKUP(E200,NEW_DATA!$D$2:$E$2000,2,FALSE))) -> 
... 24 more rows

Sheet NE-CPA-17B
E1: NEBRASKA PRESCRIBED GRAZING IMPLEMENTATION REQUIRMENTS - NE-CPA-17B | P1: NOTE: This is one option for displaying the forage inventory; it can be used when clipping has been done to confirm production and it varies significantly from ESD or FSG information
D2: GRAZINGLAND INVENTORY SUMMARY AND SUGGESTED INITIAL STOCKING RATES BASED ON CLIPPING or ON-SITE PRODUCTION ESTIMATES | N2: Form Date: November, 2020
A3: CLIENT: | E3: Mary Rancher, Sunnyvale Ranch | I3: DATE: | K3: 2020-11-12 | P3: List all ecological sites in each pasture, and identify the plant community/communities present in each pasture.
A4: PASTURE | D4: ECOLOGICAL SITE | E4: PLANT COMMUNITY | F4: Pounds Production Measured and Reconstructed On-Site | G4: Planned Harvest Efficiency | H4: Acres site-community combination | I4: AUM/ac | J4: AUM for Site | K4: Adj. Factor* | L4: Adjusted AUM for Site | M4: Adjusted AUD for Site | N4: AUM for Pasture | O4: AUD for Pasture | P4: Use copy/paste to enter multiple entries for MLRA, ecological site, plant communities, etc.
A5: No. | B5: ACRES | C5: MLRA | E5: List Dominant Plants Found on Site
A6: R7 | B6: 150 | C6: MLRA_67A | D6: Saline_Subirrigated_67A | E6: Tall Wheatgrass, saltgrass, annuals | F6: 2200 | G6: 0.3 | H6: 150 | I6: =IF(F6=0,"",(F6/912*G6)) -> 0.7236842105 | J6: =IF(F6=0,"",H6*I6) -> 108.5526316 | K6: 0.8 | L6: =IF(F6=0,"",J6*K6) -> 86.84210526 | M6: =IF(F6=0,"",L6*30) -> 2605.263158 | N6: 86.8 | O6: 2605.3 | P6: Adjustment Factor: Use this to account for necessary reductions in production due to tree cover, rock cover, areas too steep to graze, or other factors that reduce grazable production. For example: Grasses are similar to community 1.2, but there is 30% cedar cover; use adjustment factor of 0.7 (70% of typical forage production for the community). If no reductions are needed use 1.0.
I7: =IF(F7=0,"",(F7/912*G7)) ->  | J7: =IF(F7=0,"",H7*I7) ->  | L7: =IF(F7=0,"",J7*K7) ->  | M7: =IF(F7=0,"",L7*30) -> 
A8: R8 | B8: 195 | C8: MLRA_67A | D8: Subirrigated_67A | E8: Reed canarygrass | F8: 5200 | G8: 0.3 | H8: 195 | I8: 1.710526316 | J8: 333.5526316 | K8: 1 | L8: 333.5526316 | M8: 10006.57895 | N8: 333.6 | O8: 10006.6
P14: Since every pasture will contain a different number of site/community combinations, manually calculate AUM and AUD. To speed the process you can use the excel formula: =SUM(LX:LY) and =SUM(MX:MY) where X is the row number for the first cell number for the pasture and Y is the row number for the second cell number for the pasture. (Click in the cells of the example to see formula).
P23: After entering information for all pastures, hide unneeded rows in order to clean up the printout.
P26: Insert page breaks so that page breaks do not break up data for individual pastures.
I71: =IF(F71=0,"",(F71/912*G71)) ->  | J71: =IF(F71=0,"",H71*I71) ->  | L71: =IF(F71=0,"",J71*K71) ->  | M71: =IF(F71=0,"",L71*30) -> 
J124: =IF(F124=0,"",H124*I124) -> 
I135: =IF(F135=0,"",(F135/912*G135)) ->  | L135: =IF(F135=0,"",J135*K135) ->  | M135: =IF(F135=0,"",L135*30) -> 
J188: =IF(F188=0,"",H188*I188) -> 
I199: =IF(F199=0,"",(F199/912*G199)) ->  | L199: =IF(F199=0,"",J199*K199) ->  | M199: =IF(F199=0,"",L199*30) -> 
J222: =IF(F222=0,"",H222*I222) -> 
A223: TOTAL AUM/AUD FOR UNIT : | N223: =SUM(N6:N222) -> 420.4 | O223: =SUM(O6:O222) -> 12611.9
A224: COMMENTS:

Sheet Grazing Schedule Option 1-Auto
A1: GRAZING MANAGEMENT STRATEGIES
A2: Grazing management systems are planned forage and livestock management programs designed to accomplish range improvement. A grazing system is developed to maintain or improve range similarity index, productivity, health and vigor while simultaneously achieving a high, sustainable level of livestock production.
A3: Types of Grazing Systems: Prescribed grazing is a grazing system which is tailored to the individual operation and designed to achieve the specific objectives of the operation. To be effective a grazing strategy should be flexible and modified with changes in weather, plant growth and disturbances. Which every grazing management strategy is implemented, it should allow for adequate recovery time of the primary forage grasses before the pasture, paddock, or grazing unit is grazed again. Recovery should be based upon the growth of key forage species, and not based solely on the days of rest or the calendar. There are several general types of grazing management systems:
A4: 1. Rest Rotation: In a rest rotation grazing management system, one or more pastures are left ungrazed for the entire growing season. Each year a different pasture(s) is ungrazed; in other words, the rest is rotated. Incorporating rest so that each pasture is ungrazed once every 5-7 years builds in resilience, aids in drought recovery and provides wildlife habitat. Stocking rates should be adjusted to account for the forage that is unavailable each year. Often times, a rest rotation is coupled with a deferred rotation rather than grazed pastures being grazed season long.
A5: 2. Deferred Rotation: In a deferred rotation grazing management system, a herd is rotated through three or more pastures. While one pasture is being grazed, the remaining pastures are not grazed (deferred). The pastures are grazed in a planned sequence. The sequence of grazing is changed each year to make certain that the grasses are not being grazed during the same time in the growing season in consecutive years.
A6: 3. High Intensity/Low Frequency Rotation: In a high intensity/low frequency rotation grazing management system, one herd of livestock grazes eight or more pastures in a planned sequence. Livestock are moved into one pasture and the other pastures are rested. When the forage is grazed to the desired intensity, livestock are moved to the next pasture in the rotation. Livestock typically stay in a pasture 10 to 25 days. The frequent moves allow long rest periods for each pasture. The sequence of grazing is changed each year. Depending upon production and precipitation, pastures may be grazed once per growing season, or more than once per growing season.
A7: 4. Short-duration. (Management Intensive Grazing.) This is similar to the high intensity/low frequency system, except the speed of the rotation is adjusted according to the growth rate and the required rest period of the plants. During the peak of the growing season, livestock are moved rapidly with slower moves when pasture growth rate slow down. In some systems, livestock are moved every 3-5 days or more frequently. Mob grazing is a variation of this type of grazing strategy. With mob grazing, stock density is very high and moves may be as often as 3 or more times per day and paddocks are temporary and are in different locations each time the unit is grazed. Usually, each paddock is grazed only one time per year.
A8: Purpose of prescribed grazing management systems:
B9: ¨ | C9: Maintain or speed up improvement in plant cover while properly using the forage in all pastures.
B10: ¨ | C10: Improve efficiency of grazing by uniformly using all parts of each grazed pasture.
B11: ¨ | C11: Permit a higher level of livestock production.
B12: ¨ | C12: Insure a supply of forage throughout the grazing season.
B13: ¨ | C13: Insure that an adequate feed and forage balance is maintained for the unit.
B14: ¨ | C14: Improve control of undesirable plants.
B15: ¨ | C15: Allow easier handling and observation of livestock.
B16: ¨ | C16: Enhance wildlife habitat.
B17: ¨ | C17: Enhance watershed protection.
A18: CLIENT NAME: | E18: =NEW_528_Forage_Balance!C2 -> Mary Rancher - Sunnyvale Ranch | W18: YEAR | AA18: 1905-07-13 | AI18: CONTRACT NO: | AQ18: =NEW_528_Forage_Balance!R2 -> 12345K
A19: LENGTH GRAZING SEASON (DAYS): | G19: =NEW_528_Forage_Balance!Q68 -> 195 | Q19: Planned Grazing Dates: | AB19: May 1 - November 15 | BE19: This type of schedule is appropriate for smaller systems - for systems with more pastures, use a different scheduler. If the bars are not lining up correctly, left-click in the middle of the boxes. A text box should appear; drag the box so that it lines up correctly.
A21: Field no. | B21: Forage Type | C21: Acres | D21: AUM Information | G21: Dates are approximate - actual moves should be based upon plant growth which will vary from year to year
D22: Estimated AUM or AUD for field | E22: % AUM or AUD by field | F22: Est. Days / Field | G22: Start Date | T22: April (week) | X22: May (week) | AB22: June (week) | AF22: July (week) | AJ22: August (week) | AN22: Sept. (week) | AR22: October (week)
H23: Jan | L23: Feb | P23: Mar | T23: 1 | U23: 2 | V23: 3 | W23: 4 | X23: 1 | Y23: 2 | Z23: 3 | AA23: 4 | AB23: 1 | AC23: 2 | AD23: 3 | AE23: 4 | AF23: 1 | AG23: 2 | AH23: 3 | AI23: 4 | AJ23: 1 | AK23: 2 | AL23: 3 | AM23: 4 | AN23: 1 | AO23: 2 | AP23: 3 | AQ23: 4 | AR23: 1 | AS23: 2 | AT23: 3 | AU23: 4 | AV23: Nov | AZ23: Dec
A24: =NEW_528_Forage_Balance!G69 -> R1A | B24: =IF(A24=0,"",(NEW_528_Forage_Balance!I69)) -> Range | C24: =IF(A24=0,"",(NEW_528_Forage_Balance!H69)) -> 305 | D24: =IF(A24=0,"",(NEW_528_Forage_Balance!L69)) -> 115 | E24: =IF(A24=0,"", D24/D44*100) -> 16.12903226 | F24: =IF(A24=0,"",$G$19* E24/100) -> 31.4516129 | G24: Ma1
A25: =NEW_528_Forage_Balance!G70 -> R1B | B25: =IF(A25=0,"",(NEW_528_Forage_Balance!I70)) -> Range | C25: =IF(A25=0,"",(NEW_528_Forage_Balance!H70)) -> 335 | D25: =IF(A25=0,"",(NEW_528_Forage_Balance!L70)) -> 92 | E25: =IF(A25=0,"", D25/D44*100) -> 12.90322581 | F25: 25.16129032 | G25: Jn1
A26: =NEW_528_Forage_Balance!G71 -> R2 | B26: =IF(A26=0,"",(NEW_528_Forage_Balance!I71)) -> Range | C26: =IF(A26=0,"",(NEW_528_Forage_Balance!H71)) -> 320 | D26: =IF(A26=0,"",(NEW_528_Forage_Balance!L71)) -> 122 | E26: =IF(A26=0,"", D26/D44*100) -> 17.11079944 | F26: 33.36605891 | G26: Jn4 | BE26: Enter the planned dates. For example, May 1 - Sept 30.
A27: =NEW_528_Forage_Balance!G72 -> R3 | B27: =IF(A27=0,"",(NEW_528_Forage_Balance!I72)) -> Range | C27: =IF(A27=0,"",(NEW_528_Forage_Balance!H72)) -> 80 | D27: =IF(A27=0,"",(NEW_528_Forage_Balance!L72)) -> 35 | E27: =IF(A27=0,"", D27/D44 *100) -> 4.908835905 | F27: 9.572230014 | G27: Oc4
A28: =NEW_528_Forage_Balance!G73 -> R4 | B28: =IF(A28=0,"",(NEW_528_Forage_Balance!I73)) -> Range | C28: =IF(A28=0,"",(NEW_528_Forage_Balance!H73)) -> 160 | D28: =IF(A28=0,"",(NEW_528_Forage_Balance!L73)) -> 58 | E28: =IF(A28=0, "", D28/D44*100) -> 8.134642356 | F28: 15.86255259 | G28: Oc2 | BE28: In the start date column, select the week that grazing will begin in the selected pasture. For example if pasture R1 will be grazed beginning on 5/15, select Ma3 (3rd week of May). Schedule each pasture by selecting the week that grazing will begin in that pasture.
A29: =NEW_528_Forage_Balance!G74 -> R5A | B29: =IF(A29=0,"",(NEW_528_Forage_Balance!I74)) -> Range | C29: =IF(A29=0,"",(NEW_528_Forage_Balance!H74)) -> 240 | D29: =IF(A29=0,"",(NEW_528_Forage_Balance!L74)) -> 66 | E29: =IF(A29=0,"", D29/D44*100) -> 9.256661992 | F29: 18.05049088 | G29: Se4
A30: =NEW_528_Forage_Balance!G75 -> R5B | B30: =IF(A30=0,"",(NEW_528_Forage_Balance!I75)) -> Range | C30: =IF(A30=0,"",(NEW_528_Forage_Balance!H75)) -> 263 | D30: =IF(A30=0,"",(NEW_528_Forage_Balance!L75)) -> 106 | E30: =IF(A30=0,"", D30/D44*100) -> 14.86676017 | F30: 28.99018233 | G30: Jy4
A31: =NEW_528_Forage_Balance!G76 -> R5C | B31: =IF(A31=0,"",(NEW_528_Forage_Balance!I76)) -> Range | C31: =IF(A31=0,"",(NEW_528_Forage_Balance!H76)) -> 137 | D31: =IF(A31=0,"",(NEW_528_Forage_Balance!L76)) -> 29 | E31: =IF(A31=0,"", D31/D44*100) -> 4.067321178 | F31: 7.931276297 | G31: Nov
A32: =NEW_528_Forage_Balance!G77 -> R6 | B32: =IF(A32=0,"",(NEW_528_Forage_Balance!I77)) -> Range | C32: =IF(A32=0,"",(NEW_528_Forage_Balance!H77)) -> 160 | D32: =IF(A32=0,"",(NEW_528_Forage_Balance!L77)) -> 90 | E32: =IF(A32=0,"", D32/D44*100) -> 12.6227209 | F32: 24.61430575 | G32: Ag4
A33: =NEW_528_Forage_Balance!G78 -> 0 | B33: =IF(A33=0,"",(NEW_528_Forage_Balance!I78)) ->  | C33: =IF(A33=0,"",(NEW_528_Forage_Balance!H78)) ->  | D33: =IF(A33=0,"",(NEW_528_Forage_Balance!L78)) ->  | E33: =IF(A33=0,"", D33/D44*100) -> 
A34: =NEW_528_Forage_Balance!G79 -> 0 | B34: =IF(A34=0,"",(NEW_528_Forage_Balance!I79)) ->  | C34: =IF(A34=0,"",(NEW_528_Forage_Balance!H79)) ->  | D34: =IF(A34=0,"",(NEW_528_Forage_Balance!L79)) ->  | E34: =IF(A34=0,"", D34/D44*100) -> 
A35: =NEW_528_Forage_Balance!G80 -> 0 | B35: =IF(A35=0,"",(NEW_528_Forage_Balance!I80)) ->  | C35: =IF(A35=0,"",(NEW_528_Forage_Balance!H80)) ->  | D35: =IF(A35=0,"",(NEW_528_Forage_Balance!L80)) ->  | E35: =IF(A35=0,"", D35/D44*100) -> 
A36: =NEW_528_Forage_Balance!G81 -> 0 | B36: =IF(A36=0,"",(NEW_528_Forage_Balance!I81)) ->  | C36: =IF(A36=0,"",(NEW_528_Forage_Balance!H81)) ->  | D36: =IF(A36=0,"",(NEW_528_Forage_Balance!L81)) ->  | E36: =IF(A36=0, "", D36/D44*100) -> 
A37: =NEW_528_Forage_Balance!G82 -> 0 | B37: =IF(A37=0,"",(NEW_528_Forage_Balance!I82)) ->  | C37: =IF(A37=0,"",(NEW_528_Forage_Balance!H82)) ->  | D37: =IF(A37=0,"",(NEW_528_Forage_Balance!L82)) ->  | E37: =IF(A37=0, "", D37/D44*100) -> 
A38: =NEW_528_Forage_Balance!G83 -> 0 | B38: =IF(A38=0,"",(NEW_528_Forage_Balance!I83)) ->  | C38: =IF(A38=0,"",(NEW_528_Forage_Balance!H83)) ->  | D38: =IF(A38=0,"",(NEW_528_Forage_Balance!L83)) ->  | E38: =IF(A38=0,"", D38/D44*100) -> 
A39: =NEW_528_Forage_Balance!G84 -> 0 | B39: =IF(A39=0,"",(NEW_528_Forage_Balance!I84)) ->  | C39: =IF(A39=0,"",(NEW_528_Forage_Balance!H84)) ->  | D39: =IF(A39=0,"",(NEW_528_Forage_Balance!L84)) ->  | E39: =IF(A39=0,"", D39/D44*100) -> 
A40: =NEW_528_Forage_Balance!G85 -> 0 | B40: =IF(A40=0,"",(NEW_528_Forage_Balance!I85)) ->  | C40: =IF(A40=0,"",(NEW_528_Forage_Balance!H85)) ->  | D40: =IF(A40=0,"",(NEW_528_Forage_Balance!L85)) ->  | E40: =IF(A40=0,"", D40/D44*100) -> 
A41: =NEW_528_Forage_Balance!G86 -> 0 | B41: =IF(A41=0,"",(NEW_528_Forage_Balance!I86)) ->  | C41: =IF(A41=0,"",(NEW_528_Forage_Balance!H86)) ->  | D41: =IF(A41=0,"",(NEW_528_Forage_Balance!L86)) ->  | E41: =IF(A41=0, "", D41/D44*100) -> 
A42: =NEW_528_Forage_Balance!G87 -> 0 | B42: =IF(A42=0,"",(NEW_528_Forage_Balance!I87)) ->  | C42: =IF(A42=0,"",(NEW_528_Forage_Balance!H87)) ->  | D42: =IF(A42=0,"",(NEW_528_Forage_Balance!L87)) ->  | E42: =IF(A42=0, "", D42/D44*100) -> 
A43: =NEW_528_Forage_Balance!G88 -> 0 | B43: =IF(A43=0,"",(NEW_528_Forage_Balance!I88)) ->  | C43: =IF(A43=0,"",(NEW_528_Forage_Balance!H88)) ->  | D43: =IF(A43=0,"",(NEW_528_Forage_Balance!L88)) ->  | E43: =IF(A43=0, "", D43/D44*100) -> 
A44: TOTAL | C44: =SUM(C24:C43) -> 2000 | D44: =SUM(D24:D43) -> 713 | E44: =SUM(E24:E43) -> 100 | F44: =SUM(F24:F43) -> 195
A45: Comments:
F110: Gantt final as of 1/06/2014
F111: Do not adjust these values
F113: Errors in these ranges are intentional.
V114: start | X114: duration | AB114: start | AC114: end
F115: Jan | G115: 1 | H115: Jan | I115: 2014-01-01 | J115: 1 | V115: =VLOOKUP(G24,H115:R479,3,FALSE) -> 122 | X115: =F24 -> 31.4516129 | AB115: =V115 -> 122 | AC115: =SUM(V115,X115) -> 153.4516129
F116: Feb | G116: 2 | I116: 2014-01-02 | J116: 2 | V116: =VLOOKUP(G25,H116:T480,3,FALSE) -> 153 | X116: 25.16129032 | AB116: 153 | AC116: 178.1612903
F117: Mar | G117: 3 | I117: 2014-01-03 | J117: 3 | V117: 175 | X117: 33.36605891 | AB117: 175 | AC117: 208.3660589
F118: Ap1 | G118: 4 | I118: 2014-01-04 | J118: 4 | V118: 297 | X118: 9.572230014 | AB118: 297 | AC118: 306.57223
F119: Ap2 | G119: 5 | I119: 2014-01-05 | J119: 5 | V119: 282 | X119: 15.86255259 | AB119: 282 | AC119: 297.8625526
F120: Ap3 | G120: 6 | I120: 2014-01-06 | J120: 6 | V120: 265 | X120: 18.05049088 | AB120: 265 | AC120: 283.0504909
F121: Ap4 | G121: 7 | I121: 2014-01-07 | J121: 7 | V121: 205 | X121: 28.99018233 | AB121: 205 | AC121: 233.9901823
F122: Ma1 | G122: 8 | I122: 2014-01-08 | J122: 8 | V122: 305 | X122: 7.931276297 | AB122: 305 | AC122: 312.9312763
F123: Ma2 | G123: 9 | I123: 2014-01-09 | J123: 9 | V123: 238 | X123: 24.61430575 | AB123: 238 | AC123: 262.6143058
F124: Ma3 | G124: 10 | I124: 2014-01-10 | J124: 10
F125: Ma4 | G125: 11 | I125: 2014-01-11 | J125: 11
F126: Jn1 | G126: 12 | I126: 2014-01-12 | J126: 12
F127: Jn2 | G127: 13 | I127: 2014-01-13 | J127: 13
F128: Jn3 | G128: 14 | I128: 2014-01-14 | J128: 14
F129: Jn4 | G129: 15 | I129: 2014-01-15 | J129: 15
F130: Jy1 | G130: 16 | I130: 2014-01-16 | J130: 16
F131: Jy2 | G131: 17 | I131: 2014-01-17 | J131: 17
F132: Jy3 | G132: 18 | I132: 2014-01-18 | J132: 18
F133: Jy4 | G133: 19 | I133: 2014-01-19 | J133: 19
F134: Ag1 | G134: 20 | I134: 2014-01-20 | J134: 20
F135: Ag2 | G135: 21 | I135: 2014-01-21 | J135: 21
F136: Ag3 | G136: 22 | I136: 2014-01-22 | J136: 22
F137: Ag4 | G137: 23 | I137: 2014-01-23 | J137: 23
F138: Se1 | G138: 24 | I138: 2014-01-24 | J138: 24
F139: Se2 | G139: 25 | I139: 2014-01-25 | J139: 25
F140: Se3 | G140: 26 | I140: 2014-01-26 | J140: 26
F141: Se4 | G141: 27 | I141: 2014-01-27 | J141: 27
F142: Oc1 | G142: 28 | I142: 2014-01-28 | J142: 28
F143: Oc2 | G143: 29 | I143: 2014-01-29 | J143: 29
F144: Oc3 | G144: 30 | I144: 2014-01-30 | J144: 30
F145: Oc4 | G145: 31 | H145: Feb | I145: 2014-01-31 | J145: 31
F146: Nov | G146: 32 | I146: 2014-02-01 | J146: 32
F147: Dec | G147: 33 | I147: 2014-02-02 | J147: 33
G148: 34 | I148: 2014-02-03 | J148: 34
G149: 35 | I149: 2014-02-04 | J149: 35
G150: 36 | I150: 2014-02-05 | J150: 36
G151: 37 | I151: 2014-02-06 | J151: 37
G152: 38 | I152: 2014-02-07 | J152: 38
G153: 39 | I153: 2014-02-08 | J153: 39
G154: 40 | I154: 2014-02-09 | J154: 40
G155: 41 | I155: 2014-02-10 | J155: 41
G156: 42 | I156: 2014-02-11 | J156: 42
G157: 43 | I157: 2014-02-12 | J157: 43
G158: 44 | I158: 2014-02-13 | J158: 44
G159: 45 | I159: 2014-02-14 | J159: 45
G160: 46 | I160: 2014-02-15 | J160: 46
G161: 47 | I161: 2014-02-16 | J161: 47
G162: 48 | I162: 2014-02-17 | J162: 48
G163: 49 | I163: 2014-02-18 | J163: 49
G164: 50 | I164: 2014-02-19 | J164: 50
G165: 51 | I165: 2014-02-20 | J165: 51
G166: 52 | I166: 2014-02-21 | J166: 52
G167: 53 | I167: 2014-02-22 | J167: 53
G168: 54 | I168: 2014-02-23 | J168: 54
G169: 55 | I169: 2014-02-24 | J169: 55
G170: 56 | I170: 2014-02-25 | J170: 56
G171: 57 | I171: 2014-02-26 | J171: 57
G172: 58 | I172: 2014-02-27 | J172: 58
G173: 59 | I173: 2014-02-28 | J173: 59
G174: 60 | I174: 2014-03-01 | J174: 60
G175: 61 | H175: Mar | I175: 2014-03-02 | J175: 61
G176: 62 | I176: 2014-03-03 | J176: 62
G177: 63 | I177: 2014-03-04 | J177: 63
G178: 64 | I178: 2014-03-05 | J178: 64
G179: 65 | I179: 2014-03-06 | J179: 65
G180: 66 | I180: 2014-03-07 | J180: 66
G181: 67 | I181: 2014-03-08 | J181: 67
G182: 68 | I182: 2014-03-09 | J182: 68
G183: 69 | I183: 2014-03-10 | J183: 69
G184: 70 | I184: 2014-03-11 | J184: 70
G185: 71 | I185: 2014-03-12 | J185: 71
G186: 72 | I186: 2014-03-13 | J186: 72
G187: 73 | I187: 2014-03-14 | J187: 73
G188: 74 | I188: 2014-03-15 | J188: 74
G189: 75 | I189: 2014-03-16 | J189: 75
G190: 76 | I190: 2014-03-17 | J190: 76
G191: 77 | I191: 2014-03-18 | J191: 77
G192: 78 | I192: 2014-03-19 | J192: 78
G193: 79 | I193: 2014-03-20 | J193: 79
G194: 80 | I194: 2014-03-21 | J194: 80
G195: 81 | I195: 2014-03-22 | J195: 81
G196: 82 | I196: 2014-03-23 | J196: 82
G197: 83 | I197: 2014-03-24 | J197: 83
G198: 84 | I198: 2014-03-25 | J198: 84
G199: 85 | I199: 2014-03-26 | J199: 85
G200: 86 | I200: 2014-03-27 | J200: 86
G201: 87 | I201: 2014-03-28 | J201: 87
G202: 88 | I202: 2014-03-29 | J202: 88
G203: 89 | I203: 2014-03-30 | J203: 89
G204: 90 | I204: 2014-03-31 | J204: 90
G205: 91 | I205: 2014-04-01 | J205: 91
G206: 92 | H206: Ap1 | I206: 2014-04-02 | J206: 92
G207: 93 | I207: 2014-04-03 | J207: 93
G208: 94 | I208: 2014-04-04 | J208: 94
G209: 95 | I209: 2014-04-05 | J209: 95
G210: 96 | I210: 2014-04-06 | J210: 96
G211: 97 | I211: 2014-04-07 | J211: 97
G212: 98 | I212: 2014-04-08 | J212: 98
G213: 99 | H213: Ap2 | I213: 2014-04-09 | J213: 99
G214: 100 | I214: 2014-04-10 | J214: 100
G215: 101 | I215: 2014-04-11 | J215: 101
G216: 102 | I216: 2014-04-12 | J216: 102
G217: 103 | I217: 2014-04-13 | J217: 103
G218: 104 | I218: 2014-04-14 | J218: 104
G219: 105 | I219: 2014-04-15 | J219: 105
G220: 106 | H220: Ap3 | I220: 2014-04-16 | J220: 106
G221: 107 | I221: 2014-04-17 | J221: 107
G222: 108 | I222: 2014-04-18 | J222: 108
G223: 109 | I223: 2014-04-19 | J223: 109
G224: 110 | I224: 2014-04-20 | J224: 110
G225: 111 | I225: 2014-04-21 | J225: 111
G226: 112 | I226: 2014-04-22 | J226: 112
G227: 113 | I227: 2014-04-23 | J227: 113
G228: 114 | H228: Ap4 | I228: 2014-04-24 | J228: 114
G229: 115 | I229: 2014-04-25 | J229: 115
G230: 116 | I230: 2014-04-26 | J230: 116
G231: 117 | I231: 2014-04-27 | J231: 117
G232: 118 | I232: 2014-04-28 | J232: 118
G233: 119 | I233: 2014-04-29 | J233: 119
G234: 120 | I234: 2014-04-30 | J234: 120
G235: 121 | I235: 2014-05-01 | J235: 121
G236: 122 | H236: Ma1 | I236: 2014-05-02 | J236: 122
G237: 123 | I237: 2014-05-03 | J237: 123
G238: 124 | I238: 2014-05-04 | J238: 124
G239: 125 | I239: 2014-05-05 | J239: 125
G240: 126 | I240: 2014-05-06 | J240: 126
G241: 127 | I241: 2014-05-07 | J241: 127
G242: 128 | I242: 2014-05-08 | J242: 128
G243: 129 | H243: Ma2 | I243: 2014-05-09 | J243: 129
G244: 130 | I244: 2014-05-10 | J244: 130
G245: 131 | I245: 2014-05-11 | J245: 131
G246: 132 | I246: 2014-05-12 | J246: 132
G247: 133 | I247: 2014-05-13 | J247: 133
G248: 134 | I248: 2014-05-14 | J248: 134
G249: 135 | I249: 2014-05-15 | J249: 135
G250: 136 | H250: Ma3 | I250: 2014-05-16 | J250: 136
G251: 137 | I251: 2014-05-17 | J251: 137
G252: 138 | I252: 2014-05-18 | J252: 138
G253: 139 | I253: 2014-05-19 | J253: 139
G254: 140 | I254: 2014-05-20 | J254: 140
G255: 141 | I255: 2014-05-21 | J255: 141
G256: 142 | I256: 2014-05-22 | J256: 142
G257: 143 | H257: Ma4 | I257: 2014-05-23 | J257: 143
G258: 144 | I258: 2014-05-24 | J258: 144
G259: 145 | I259: 2014-05-25 | J259: 145
G260: 146 | I260: 2014-05-26 | J260: 146
G261: 147 | I261: 2014-05-27 | J261: 147
G262: 148 | I262: 2014-05-28 | J262: 148
G263: 149 | I263: 2014-05-29 | J263: 149
G264: 150 | I264: 2014-05-30 | J264: 150
G265: 151 | I265: 2014-05-31 | J265: 151
G266: 152 | I266: 2014-06-01 | J266: 152
... 213 more rows

Sheet Grazing Schedule Option 1Manual
A1: Grazing Management Strategies
A2: Grazing management systems are planned forage and livestock management programs designed to accomplish range improvement. A grazing system is developed to maintain or improve range similarity index, productivity, health and vigor while simultaneously achieving a high, sustainable level of livestock production.
A3: Types of Grazing Systems: Prescribed grazing is a grazing system which is tailored to the individual operation and designed to achieve the specific objectives of the operation. To be effective a grazing strategy should be flexible and modified with changes in weather, plant growth and disturbances. Which every grazing management strategy is implemented, it should allow for adequate recovery time of the primary forage grasses before the pasture, paddock, or grazing unit is grazed again. Recovery should be based upon the growth of key forage species, and not based solely on the days of rest or the calendar. There are several general types of grazing management systems:
A4: 1. Rest Rotation: In a rest rotation grazing management system, one or more pastures are left ungrazed for the entire growing season. Each year a different pasture(s) is ungrazed; in other words, the rest is rotated. Incorporating rest so that each pasture is ungrazed once every 5-7 years builds in resilience, aids in drought recovery and provides wildlife habitat. Stocking rates should be adjusted to account for the forage that is unavailable each year. Often times, a rest rotation is coupled with a deferred rotation rather than grazed pastures being grazed season long.
A5: 2. Deferred Rotation: In a deferred rotation grazing management system, a herd is rotated through three or more pastures. While one pasture is being grazed, the remaining pastures are not grazed (deferred). The pastures are grazed in a planned sequence. The sequence of grazing is changed each year to make certain that the grasses are not being grazed during the same time in the growing season in consecutive years.
A6: 3. High Intensity/Low Frequency Rotation: In a high intensity/low frequency rotation grazing management system, one herd of livestock grazes eight or more pastures in a planned sequence. Livestock are moved into one pasture and the other pastures are rested. When the forage is grazed to the desired intensity, livestock are moved to the next pasture in the rotation. Livestock typically stay in a pasture 10 to 25 days. The frequent moves allow long rest periods for each pasture. The sequence of grazing is changed each year. Depending upon production and precipitation, pastures may be grazed once per growing season, or more than once per growing season.
A7: 4. Short-duration. (Management Intensive Grazing.) This is similar to the high intensity/low frequency system, except the speed of the rotation is adjusted according to the growth rate and the required rest period of the plants. During the peak of the growing season, livestock are moved rapidly with slower moves when pasture growth rate slow down. In some systems, livestock are moved every 3-5 days or more frequently. Mob grazing is a variation of this type of grazing strategy. With mob grazing, stock density is very high and moves may be as often as 3 or more times per day and paddocks are temporary and are in different locations each time the unit is grazed. Usually, each paddock is grazed only one time per year.
A8: Purpose of prescribed grazing management systems: Prescribed grazing systems are implemented in order to achieve any number of objectives, which include but are not limited to:
B9: ¨ | C9: Maintain or increase improvement in plant cover while properly using the forage in all pastures.
B10: ¨ | C10: Improve efficiency of grazing by uniformly using all parts of each grazed pasture.
B11: ¨ | C11: Permit a higher level of livestock production.
B12: ¨ | C12: Insure a supply of forage throughout the grazing season.
B13: ¨ | C13: Insure that an adequate feed and forage balance is maintained for the unit.
B14: ¨ | C14: Improve control of undesirable plants.
B15: ¨ | C15: Allow easier handling and observation of livestock.
B16: ¨ | C16: Enhance wildlife habitat.
B17: ¨ | C17: Enhance watershed protection.
A18: CLIENT NAME: | E18: =NEW_528_Forage_Balance!C2 -> Mary Rancher - Sunnyvale Ranch | W18: YEAR: | AA18: 1905-07-13 | AI18: CONTRACT NO: | AQ18: =NEW_528_Forage_Balance!R2 -> 12345K | BD18: You can create a copy of this sheet for each future year that you would like to develop a grazing schedule.
A19: LENGTH GRAZING SEASON (DAYS): | G19: =NEW_528_Forage_Balance!Q68 -> 195 | Q19: Planned Grazing Dates: | AB19: May 1 - November 15
A21: Field no. | B21: Forage Type | C21: Acres | D21: AUM Information | G21: Dates are approximate - actual moves should be based upon plant growth which will vary from year to year
D22: Estimated AUM or AUD for Field | E22: % AUM or AUD by field | F22: Est. Days / Field | H22: January (week) | L22: February (week) | P22: March (week) | T22: April (week) | X22: May (week) | AB22: June (week) | AF22: July (week) | AJ22: August (week) | AN22: Sept. (week) | AR22: October (week) | AV22: November (week) | AZ22: December (week) | BD22: Enter the planned dates. For example, May 1 - Sept 30.
H23: 1 | I23: 2 | J23: 3 | K23: 4 | L23: 1 | M23: 2 | N23: 3 | O23: 4 | P23: 1 | Q23: 2 | R23: 3 | S23: 4 | T23: 1 | U23: 2 | V23: 3 | W23: 4 | X23: 1 | Y23: 2 | Z23: 3 | AA23: 4 | AB23: 1 | AC23: 2 | AD23: 3 | AE23: 4 | AF23: 1 | AG23: 2 | AH23: 3 | AI23: 4 | AJ23: 1 | AK23: 2 | AL23: 3 | AM23: 4 | AN23: 1 | AO23: 2 | AP23: 3 | AQ23: 4 | AR23: 1 | AS23: 2 | AT23: 3 | AU23: 4 | AV23: 1 | AW23: 2 | AX23: 3 | AY23: 4 | AZ23: 1 | BA23: 2 | BB23: 3 | BC23: 4
A24: =NEW_528_Forage_Balance!G69 -> R1A | B24: =IF(A24=0,"",(NEW_528_Forage_Balance!I69)) -> Range | C24: =IF(A24=0,"",(NEW_528_Forage_Balance!H69)) -> 305 | D24: =IF(A24=0,"",(NEW_528_Forage_Balance!L69)) -> 115 | E24: =IF(A24=0,"", D24/$D$77*100) -> 16.12903226 | F24: =IF(A24=0,"", $G$19*E24/100) -> 31.4516129 | BD24: Highlight the approximate dates planned for each pasture. If pastures will be grazed multiple times, highlight approximate dates for each grazing period.
A25: =NEW_528_Forage_Balance!G70 -> R1B | B25: =IF(A25=0,"",(NEW_528_Forage_Balance!I70)) -> Range | C25: =IF(A25=0,"",(NEW_528_Forage_Balance!H70)) -> 335 | D25: =IF(A25=0,"",(NEW_528_Forage_Balance!L70)) -> 92 | E25: 12.90322581 | F25: =IF(A25=0,"", $G$19*E25/100) -> 25.16129032
A26: =NEW_528_Forage_Balance!G71 -> R2 | B26: =IF(A26=0,"",(NEW_528_Forage_Balance!I71)) -> Range | C26: =IF(A26=0,"",(NEW_528_Forage_Balance!H71)) -> 320 | D26: =IF(A26=0,"",(NEW_528_Forage_Balance!L71)) -> 122 | E26: 17.11079944 | F26: =IF(A26=0,"", $G$19*E26/100) -> 33.36605891
A27: =NEW_528_Forage_Balance!G72 -> R3 | B27: =IF(A27=0,"",(NEW_528_Forage_Balance!I72)) -> Range | C27: =IF(A27=0,"",(NEW_528_Forage_Balance!H72)) -> 80 | D27: =IF(A27=0,"",(NEW_528_Forage_Balance!L72)) -> 35 | E27: 4.908835905 | F27: =IF(A27=0,"", $G$19*E27/100) -> 9.572230014
A28: =NEW_528_Forage_Balance!G73 -> R4 | B28: =IF(A28=0,"",(NEW_528_Forage_Balance!I73)) -> Range | C28: =IF(A28=0,"",(NEW_528_Forage_Balance!H73)) -> 160 | D28: =IF(A28=0,"",(NEW_528_Forage_Balance!L73)) -> 58 | E28: 8.134642356 | F28: =IF(A28=0,"", $G$19*E28/100) -> 15.86255259 | BD28: This worksheet is set up for up to 40 pastures. Hide the unused lines before printing to clean up the printout.
A29: =NEW_528_Forage_Balance!G74 -> R5A | B29: =IF(A29=0,"",(NEW_528_Forage_Balance!I74)) -> Range | C29: =IF(A29=0,"",(NEW_528_Forage_Balance!H74)) -> 240 | D29: =IF(A29=0,"",(NEW_528_Forage_Balance!L74)) -> 66 | E29: 9.256661992 | F29: 18.05049088
A30: =NEW_528_Forage_Balance!G75 -> R5B | B30: =IF(A30=0,"",(NEW_528_Forage_Balance!I75)) -> Range | C30: =IF(A30=0,"",(NEW_528_Forage_Balance!H75)) -> 263 | D30: =IF(A30=0,"",(NEW_528_Forage_Balance!L75)) -> 106 | E30: 14.86676017 | F30: 28.99018233
A31: =NEW_528_Forage_Balance!G76 -> R5C | B31: =IF(A31=0,"",(NEW_528_Forage_Balance!I76)) -> Range | C31: =IF(A31=0,"",(NEW_528_Forage_Balance!H76)) -> 137 | D31: =IF(A31=0,"",(NEW_528_Forage_Balance!L76)) -> 29 | E31: 4.067321178 | F31: 7.931276297 | BD31: Highlighting will need to be manually cleared before using for the next client.
A32: =NEW_528_Forage_Balance!G77 -> R6 | B32: =IF(A32=0,"",(NEW_528_Forage_Balance!I77)) -> Range | C32: =IF(A32=0,"",(NEW_528_Forage_Balance!H77)) -> 160 | D32: =IF(A32=0,"",(NEW_528_Forage_Balance!L77)) -> 90 | E32: 12.6227209 | F32: 24.61430575
A33: =NEW_528_Forage_Balance!G78 -> 0 | B33: =IF(A33=0,"",(NEW_528_Forage_Balance!I78)) ->  | C33: =IF(A33=0,"",(NEW_528_Forage_Balance!H78)) ->  | D33: =IF(A33=0,"",(NEW_528_Forage_Balance!L78)) -> 
A34: =NEW_528_Forage_Balance!G79 -> 0 | B34: =IF(A34=0,"",(NEW_528_Forage_Balance!I79)) ->  | C34: =IF(A34=0,"",(NEW_528_Forage_Balance!H79)) ->  | D34: =IF(A34=0,"",(NEW_528_Forage_Balance!L79)) -> 
A35: =NEW_528_Forage_Balance!G80 -> 0 | B35: =IF(A35=0,"",(NEW_528_Forage_Balance!I80)) ->  | C35: =IF(A35=0,"",(NEW_528_Forage_Balance!H80)) ->  | D35: =IF(A35=0,"",(NEW_528_Forage_Balance!L80)) -> 
A36: =NEW_528_Forage_Balance!G81 -> 0 | B36: =IF(A36=0,"",(NEW_528_Forage_Balance!I81)) ->  | C36: =IF(A36=0,"",(NEW_528_Forage_Balance!H81)) ->  | D36: =IF(A36=0,"",(NEW_528_Forage_Balance!L81)) -> 
A37: =NEW_528_Forage_Balance!G82 -> 0 | B37: =IF(A37=0,"",(NEW_528_Forage_Balance!I82)) ->  | C37: =IF(A37=0,"",(NEW_528_Forage_Balance!H82)) ->  | D37: =IF(A37=0,"",(NEW_528_Forage_Balance!L82)) -> 
A38: =NEW_528_Forage_Balance!G83 -> 0 | B38: =IF(A38=0,"",(NEW_528_Forage_Balance!I83)) ->  | C38: =IF(A38=0,"",(NEW_528_Forage_Balance!H83)) ->  | D38: =IF(A38=0,"",(NEW_528_Forage_Balance!L83)) -> 
A39: =NEW_528_Forage_Balance!G84 -> 0 | B39: =IF(A39=0,"",(NEW_528_Forage_Balance!I84)) ->  | C39: =IF(A39=0,"",(NEW_528_Forage_Balance!H84)) ->  | D39: =IF(A39=0,"",(NEW_528_Forage_Balance!L84)) -> 
A40: =NEW_528_Forage_Balance!G85 -> 0 | B40: =IF(A40=0,"",(NEW_528_Forage_Balance!I85)) ->  | C40: =IF(A40=0,"",(NEW_528_Forage_Balance!H85)) ->  | D40: =IF(A40=0,"",(NEW_528_Forage_Balance!L85)) -> 
A41: =NEW_528_Forage_Balance!G86 -> 0 | B41: =IF(A41=0,"",(NEW_528_Forage_Balance!I86)) ->  | C41: =IF(A41=0,"",(NEW_528_Forage_Balance!H86)) ->  | D41: =IF(A41=0,"",(NEW_528_Forage_Balance!L86)) -> 
A42: =NEW_528_Forage_Balance!G87 -> 0 | B42: =IF(A42=0,"",(NEW_528_Forage_Balance!I87)) ->  | C42: =IF(A42=0,"",(NEW_528_Forage_Balance!H87)) ->  | D42: =IF(A42=0,"",(NEW_528_Forage_Balance!L87)) -> 
A43: =NEW_528_Forage_Balance!G88 -> 0 | B43: =IF(A43=0,"",(NEW_528_Forage_Balance!I88)) ->  | C43: =IF(A43=0,"",(NEW_528_Forage_Balance!H88)) ->  | D43: =IF(A43=0,"",(NEW_528_Forage_Balance!L88)) -> 
A44: =NEW_528_Forage_Balance!G89 -> 0 | B44: =IF(A44=0,"",(NEW_528_Forage_Balance!I89)) ->  | C44: =IF(A44=0,"",(NEW_528_Forage_Balance!H89)) ->  | D44: =IF(A44=0,"",(NEW_528_Forage_Balance!L89)) -> 
A45: =NEW_528_Forage_Balance!G90 -> 0 | B45: =IF(A45=0,"",(NEW_528_Forage_Balance!I90)) ->  | C45: =IF(A45=0,"",(NEW_528_Forage_Balance!H90)) ->  | D45: =IF(A45=0,"",(NEW_528_Forage_Balance!L90)) -> 
A46: =NEW_528_Forage_Balance!G91 -> 0 | B46: =IF(A46=0,"",(NEW_528_Forage_Balance!I91)) ->  | C46: =IF(A46=0,"",(NEW_528_Forage_Balance!H91)) ->  | D46: =IF(A46=0,"",(NEW_528_Forage_Balance!L91)) -> 
A47: =NEW_528_Forage_Balance!G92 -> 0 | B47: =IF(A47=0,"",(NEW_528_Forage_Balance!I92)) ->  | C47: =IF(A47=0,"",(NEW_528_Forage_Balance!H92)) ->  | D47: =IF(A47=0,"",(NEW_528_Forage_Balance!L92)) -> 
A48: =NEW_528_Forage_Balance!G93 -> 0 | B48: =IF(A48=0,"",(NEW_528_Forage_Balance!I93)) ->  | C48: =IF(A48=0,"",(NEW_528_Forage_Balance!H93)) ->  | D48: =IF(A48=0,"",(NEW_528_Forage_Balance!L93)) -> 
A49: =NEW_528_Forage_Balance!G94 -> 0 | B49: =IF(A49=0,"",(NEW_528_Forage_Balance!I94)) ->  | C49: =IF(A49=0,"",(NEW_528_Forage_Balance!H94)) ->  | D49: =IF(A49=0,"",(NEW_528_Forage_Balance!L94)) -> 
A50: =NEW_528_Forage_Balance!G95 -> 0 | B50: =IF(A50=0,"",(NEW_528_Forage_Balance!I95)) ->  | C50: =IF(A50=0,"",(NEW_528_Forage_Balance!H95)) ->  | D50: =IF(A50=0,"",(NEW_528_Forage_Balance!L95)) -> 
A51: =NEW_528_Forage_Balance!G96 -> 0 | B51: =IF(A51=0,"",(NEW_528_Forage_Balance!I96)) ->  | C51: =IF(A51=0,"",(NEW_528_Forage_Balance!H96)) ->  | D51: =IF(A51=0,"",(NEW_528_Forage_Balance!L96)) -> 
A52: =NEW_528_Forage_Balance!G97 -> 0 | B52: =IF(A52=0,"",(NEW_528_Forage_Balance!I97)) ->  | C52: =IF(A52=0,"",(NEW_528_Forage_Balance!H97)) ->  | D52: =IF(A52=0,"",(NEW_528_Forage_Balance!L97)) -> 
A53: =NEW_528_Forage_Balance!G98 -> 0 | B53: =IF(A53=0,"",(NEW_528_Forage_Balance!I98)) ->  | C53: =IF(A53=0,"",(NEW_528_Forage_Balance!H98)) ->  | D53: =IF(A53=0,"",(NEW_528_Forage_Balance!L98)) -> 
A54: =NEW_528_Forage_Balance!G99 -> 0 | B54: =IF(A54=0,"",(NEW_528_Forage_Balance!I99)) ->  | C54: =IF(A54=0,"",(NEW_528_Forage_Balance!H99)) ->  | D54: =IF(A54=0,"",(NEW_528_Forage_Balance!L99)) -> 
A55: =NEW_528_Forage_Balance!G100 -> 0 | B55: =IF(A55=0,"",(NEW_528_Forage_Balance!I100)) ->  | C55: =IF(A55=0,"",(NEW_528_Forage_Balance!H100)) ->  | D55: =IF(A55=0,"",(NEW_528_Forage_Balance!L100)) -> 
A56: =NEW_528_Forage_Balance!G101 -> 0 | B56: =IF(A56=0,"",(NEW_528_Forage_Balance!I101)) ->  | C56: =IF(A56=0,"",(NEW_528_Forage_Balance!H101)) ->  | D56: =IF(A56=0,"",(NEW_528_Forage_Balance!L101)) ->  | E56: =IF(A56=0,"", D56/$D$77*100) -> 
A57: =NEW_528_Forage_Balance!G102 -> 0 | B57: =IF(A57=0,"",(NEW_528_Forage_Balance!I102)) ->  | C57: =IF(A57=0,"",(NEW_528_Forage_Balance!H102)) ->  | D57: =IF(A57=0,"",(NEW_528_Forage_Balance!L102)) -> 
A58: =NEW_528_Forage_Balance!G103 -> 0 | B58: =IF(A58=0,"",(NEW_528_Forage_Balance!I103)) ->  | C58: =IF(A58=0,"",(NEW_528_Forage_Balance!H103)) ->  | D58: =IF(A58=0,"",(NEW_528_Forage_Balance!L103)) -> 
A59: =NEW_528_Forage_Balance!G104 -> 0 | B59: =IF(A59=0,"",(NEW_528_Forage_Balance!I104)) ->  | C59: =IF(A59=0,"",(NEW_528_Forage_Balance!H104)) ->  | D59: =IF(A59=0,"",(NEW_528_Forage_Balance!L104)) -> 
A60: =NEW_528_Forage_Balance!G105 -> 0 | B60: =IF(A60=0,"",(NEW_528_Forage_Balance!I105)) ->  | C60: =IF(A60=0,"",(NEW_528_Forage_Balance!H105)) ->  | D60: =IF(A60=0,"",(NEW_528_Forage_Balance!L105)) -> 
A61: =NEW_528_Forage_Balance!G106 -> 0 | B61: =IF(A61=0,"",(NEW_528_Forage_Balance!I106)) ->  | C61: =IF(A61=0,"",(NEW_528_Forage_Balance!H106)) ->  | D61: =IF(A61=0,"",(NEW_528_Forage_Balance!L106)) -> 
A62: =NEW_528_Forage_Balance!G107 -> 0 | B62: =IF(A62=0,"",(NEW_528_Forage_Balance!I107)) ->  | C62: =IF(A62=0,"",(NEW_528_Forage_Balance!H107)) ->  | D62: =IF(A62=0,"",(NEW_528_Forage_Balance!L107)) -> 
A63: =NEW_528_Forage_Balance!G108 -> 0 | B63: =IF(A63=0,"",(NEW_528_Forage_Balance!I108)) ->  | C63: =IF(A63=0,"",(NEW_528_Forage_Balance!H108)) ->  | D63: =IF(A63=0,"",(NEW_528_Forage_Balance!L108)) -> 
A64: =NEW_528_Forage_Balance!G109 -> 0 | B64: =IF(A64=0,"",(NEW_528_Forage_Balance!I109)) ->  | C64: =IF(A64=0,"",(NEW_528_Forage_Balance!H109)) ->  | D64: =IF(A64=0,"",(NEW_528_Forage_Balance!L109)) ->  | F64: =IF(A64=0,"", $G$19*E64/100) -> 
A65: =NEW_528_Forage_Balance!G110 -> 0 | B65: =IF(A65=0,"",(NEW_528_Forage_Balance!I110)) ->  | C65: =IF(A65=0,"",(NEW_528_Forage_Balance!H110)) ->  | D65: =IF(A65=0,"",(NEW_528_Forage_Balance!L110)) -> 
A66: =NEW_528_Forage_Balance!G111 -> 0 | B66: =IF(A66=0,"",(NEW_528_Forage_Balance!I111)) ->  | C66: =IF(A66=0,"",(NEW_528_Forage_Balance!H111)) ->  | D66: =IF(A66=0,"",(NEW_528_Forage_Balance!L111)) -> 
A67: =NEW_528_Forage_Balance!G112 -> 0 | B67: =IF(A67=0,"",(NEW_528_Forage_Balance!I112)) ->  | C67: =IF(A67=0,"",(NEW_528_Forage_Balance!H112)) ->  | D67: =IF(A67=0,"",(NEW_528_Forage_Balance!L112)) -> 
A68: =NEW_528_Forage_Balance!G113 -> 0 | B68: =IF(A68=0,"",(NEW_528_Forage_Balance!I113)) ->  | C68: =IF(A68=0,"",(NEW_528_Forage_Balance!H113)) ->  | D68: =IF(A68=0,"",(NEW_528_Forage_Balance!L113)) -> 
A69: =NEW_528_Forage_Balance!G114 -> 0 | B69: =IF(A69=0,"",(NEW_528_Forage_Balance!I114)) ->  | C69: =IF(A69=0,"",(NEW_528_Forage_Balance!H114)) ->  | D69: =IF(A69=0,"",(NEW_528_Forage_Balance!L114)) -> 
A70: =NEW_528_Forage_Balance!G115 -> 0 | B70: =IF(A70=0,"",(NEW_528_Forage_Balance!I115)) ->  | C70: =IF(A70=0,"",(NEW_528_Forage_Balance!H115)) ->  | D70: =IF(A70=0,"",(NEW_528_Forage_Balance!L115)) -> 
A71: =NEW_528_Forage_Balance!G116 -> 0 | B71: =IF(A71=0,"",(NEW_528_Forage_Balance!I116)) ->  | C71: =IF(A71=0,"",(NEW_528_Forage_Balance!H116)) ->  | D71: =IF(A71=0,"",(NEW_528_Forage_Balance!L116)) -> 
A72: =NEW_528_Forage_Balance!G117 -> 0 | B72: =IF(A72=0,"",(NEW_528_Forage_Balance!I117)) ->  | C72: =IF(A72=0,"",(NEW_528_Forage_Balance!H117)) ->  | D72: =IF(A72=0,"",(NEW_528_Forage_Balance!L117)) -> 
A73: =NEW_528_Forage_Balance!G118 -> 0 | B73: =IF(A73=0,"",(NEW_528_Forage_Balance!I118)) ->  | C73: =IF(A73=0,"",(NEW_528_Forage_Balance!H118)) ->  | D73: =IF(A73=0,"",(NEW_528_Forage_Balance!L118)) -> 
A74: =NEW_528_Forage_Balance!G119 -> 0 | B74: =IF(A74=0,"",(NEW_528_Forage_Balance!I119)) ->  | C74: =IF(A74=0,"",(NEW_528_Forage_Balance!H119)) ->  | D74: =IF(A74=0,"",(NEW_528_Forage_Balance!L119)) -> 
A75: =NEW_528_Forage_Balance!G120 -> 0 | B75: =IF(A75=0,"",(NEW_528_Forage_Balance!I120)) ->  | C75: =IF(A75=0,"",(NEW_528_Forage_Balance!H120)) ->  | D75: =IF(A75=0,"",(NEW_528_Forage_Balance!L120)) -> 
A76: =NEW_528_Forage_Balance!G121 -> 0 | B76: =IF(A76=0,"",(NEW_528_Forage_Balance!I121)) ->  | C76: =IF(A76=0,"",(NEW_528_Forage_Balance!H121)) ->  | D76: =IF(A76=0,"",(NEW_528_Forage_Balance!L121)) -> 
A77: TOTAL | C77: =SUM(C24:C76) -> 2000 | D77: =SUM(D24:D76) -> 713 | E77: =SUM(E24:E76) -> 100 | F77: =SUM(F24:F76) -> 195
A78: Comments:

Sheet 528 JS - Schedule Option #2
A1: Grazing Management Strategies
A2: Grazing management systems are planned forage and livestock management programs designed to accomplish range improvement. A grazing system is developed to maintain or improve range similarity index, productivity, health and vigor while simultaneously achieving a high, sustainable level of livestock production.
A3: Types of Grazing Systems: Prescribed grazing is a grazing system which is tailored to the individual operation and designed to achieve the specific objectives of the operation. To be effective a grazing strategy should be flexible and modified with changes in weather, plant growth and disturbances. Which every grazing management strategy is implemented, it should allow for adequate recovery time of the primary forage grasses before the pasture, paddock, or grazing unit is grazed again. Recovery should be based upon the growth of key forage species, and not based solely on the days of rest or the calendar. There are several general types of grazing management systems:
A4: 1. Rest Rotation: In a rest rotation grazing management system, one or more pastures are left ungrazed for the entire growing season. Each year a different pasture(s) is ungrazed; in other words, the rest is rotated. Incorporating rest so that each pasture is ungrazed once every 5-7 years builds in resilience, aids in drought recovery and provides wildlife habitat. Stocking rates should be adjusted to account for the forage that is unavailable each year. Often times, a rest rotation is coupled with a deferred rotation rather than grazed pastures being grazed season long.
A5: 2. Deferred Rotation: In a deferred rotation grazing management system, a herd is rotated through three or more pastures. While one pasture is being grazed, the remaining pastures are not grazed (deferred). The pastures are grazed in a planned sequence. The sequence of grazing is changed each year to make certain that the grasses are not being grazed during the same time in the growing season in consecutive years.
A6: 3. High Intensity/Low Frequency Rotation: In a high intensity/low frequency rotation grazing management system, one herd of livestock grazes eight or more pastures in a planned sequence. Livestock are moved into one pasture and the other pastures are rested. When the forage is grazed to the desired intensity, livestock are moved to the next pasture in the rotation. Livestock typically stay in a pasture 10 to 25 days. The frequent moves allow long rest periods for each pasture. The sequence of grazing is changed each year. Depending upon production and precipitation, pastures may be grazed once per growing season, or more than once per growing season.
A7: 4. Short-duration. (Management Intensive Grazing.) This is similar to the high intensity/low frequency system, except the speed of the rotation is adjusted according to the growth rate and the required rest period of the plants. During the peak of the growing season, livestock are moved rapidly with slower moves when pasture growth rate slow down. In some systems, livestock are moved every 3-5 days or more frequently. Mob grazing is a variation of this type of grazing strategy. With mob grazing, stock density is very high and moves may be as often as 3 or more times per day and paddocks are temporary and are in different locations each time the unit is grazed. Usually, each paddock is grazed only one time per year.
A8: Purpose of prescribed grazing management systems: Prescribed grazing systems are implemented in order to achieve any number of objectives, which include but are not limited to:
B9: ¨ | C9: Maintain or increase improvement in plant cover while properly using the forage in all pastures.
B10: ¨ | C10: Improve efficiency of grazing by uniformly using all parts of each grazed pasture.
B11: ¨ | C11: Permit a higher level of livestock production.
B12: ¨ | C12: Insure a supply of forage throughout the grazing season.
B13: ¨ | C13: Insure that an adequate feed and forage balance is maintained for the unit.
B14: ¨ | C14: Improve control of undesirable plants.
B15: ¨ | C15: Allow easier handling and observation of livestock.
B16: ¨ | C16: Enhance wildlife habitat.
B17: ¨ | C17: Enhance watershed protection.
A18: CLIENT NAME: | C18: =NEW_528_Forage_Balance!C2 -> Mary Rancher - Sunnyvale Ranch | J18: YEAR: | L18: 2021-2022 | P18: CONTRACT NO: | T18: =NEW_528_Forage_Balance!R2 -> 12345K | X18: You can create a copy of this sheet for each future year that you would like to develop a grazing schedule.
A19: LENGTH GRAZING SEASON (DAYS): | E19: =NEW_528_Forage_Balance!Q68 -> 195 | J19: Planned Grazing Dates: | Q19: May 1 - November 15
X20: This schedule can be used when you would like to display two years to show a different order/timing of grazing.
A21: Field Number | B21: Forage Type | C21: Acres per Field | D21: Planned/Estimated Days | H21: Planned and Actual Dates
H22: Year 1 | P22: Year 2
D23: Estimated Available AUM or AUD | E23: % of AUM or AUD per Pasture | F23: Estimated Days Grazing | H23: Planned In Date | J23: Planned Out Date | L23: Actual In Date | N23: Actual Out Date | P23: Planned In Date | R23: Planned Out Date | T23: Actual In Date | V23: Actual Out Date
A24: =NEW_528_Forage_Balance!G69 -> R1A | B24: =IF(A24=0,"",(NEW_528_Forage_Balance!I69)) -> Range | C24: =IF(A24=0,"",(NEW_528_Forage_Balance!H69)) -> 305 | D24: =IF(A24=0,"",(NEW_528_Forage_Balance!L69)) -> 115 | E24: =IF(A24=0,"",D24/$D$77*100) -> 16.12903226 | F24: =IF(A24=0,"",$E$19*E24/100) -> 31.4516129 | H24: 2020-05-01 | J24: =IF(H24=0,"",(H24+F24)) -> 2020-06-01T10:50:19.355 | P24: 2020-08-06 | R24: =IF(P24=0,"",(P24+F24)) -> 2020-09-06T10:50:19.355 | X24: Enter the planned in date in this format: 5/15. If you use this format, the planned out date will calculate automatically based on the estimated number of days grazing available.
A25: =NEW_528_Forage_Balance!G70 -> R1B | B25: =IF(A25=0,"",(NEW_528_Forage_Balance!I70)) -> Range | C25: =IF(A25=0,"",(NEW_528_Forage_Balance!H70)) -> 335 | D25: =IF(A25=0,"",(NEW_528_Forage_Balance!L70)) -> 92 | E25: 12.90322581 | F25: =IF(A25=0,"",$E$19*E25/100) -> 25.16129032 | H25: 2020-06-02 | J25: =IF(H25=0,"",(H25+F25)) -> 2020-06-27T03:52:15.484 | P25: 2020-09-07 | R25: =IF(P25=0,"",(P25+F25)) -> 2020-10-02T03:52:15.484
A26: =NEW_528_Forage_Balance!G71 -> R2 | B26: =IF(A26=0,"",(NEW_528_Forage_Balance!I71)) -> Range | C26: =IF(A26=0,"",(NEW_528_Forage_Balance!H71)) -> 320 | D26: =IF(A26=0,"",(NEW_528_Forage_Balance!L71)) -> 122 | E26: 17.11079944 | F26: 33.36605891 | H26: 2020-06-28 | J26: 2020-07-31T08:47:07.489 | P26: 2020-10-03 | R26: 2020-11-05T08:47:07.489
A27: =NEW_528_Forage_Balance!G72 -> R3 | B27: =IF(A27=0,"",(NEW_528_Forage_Balance!I72)) -> Range | C27: =IF(A27=0,"",(NEW_528_Forage_Balance!H72)) -> 80 | D27: =IF(A27=0,"",(NEW_528_Forage_Balance!L72)) -> 35 | E27: 4.908835905 | F27: 9.572230014 | H27: 2020-08-01 | J27: 2020-08-10T13:44:00.673 | P27: 2020-11-06 | R27: 2020-11-15T13:44:00.673
A28: =NEW_528_Forage_Balance!G73 -> R4 | B28: =IF(A28=0,"",(NEW_528_Forage_Balance!I73)) -> Range | C28: =IF(A28=0,"",(NEW_528_Forage_Balance!H73)) -> 160 | D28: =IF(A28=0,"",(NEW_528_Forage_Balance!L73)) -> 58 | E28: 8.134642356 | F28: 15.86255259 | H28: 2020-08-11 | J28: 2020-08-26T20:42:04.544 | P28: 2020-05-01 | R28: 2020-05-16T20:42:04.544
A29: =NEW_528_Forage_Balance!G74 -> R5A | B29: =IF(A29=0,"",(NEW_528_Forage_Balance!I74)) -> Range | C29: =IF(A29=0,"",(NEW_528_Forage_Balance!H74)) -> 240 | D29: =IF(A29=0,"",(NEW_528_Forage_Balance!L74)) -> 66 | E29: 9.256661992 | F29: 18.05049088 | H29: 2020-08-27 | J29: 2020-09-14T01:12:42.412 | P29: 2020-05-17 | R29: 2020-06-04T01:12:42.412 | X29: This scheduler is set up for 40 pastures; hide unused rows and set page breaks before printing. To view print layout and page breaks, go to view, page break preview and drag page breaks to desired location(s).
A30: =NEW_528_Forage_Balance!G75 -> R5B | B30: =IF(A30=0,"",(NEW_528_Forage_Balance!I75)) -> Range | C30: =IF(A30=0,"",(NEW_528_Forage_Balance!H75)) -> 263 | D30: =IF(A30=0,"",(NEW_528_Forage_Balance!L75)) -> 106 | E30: 14.86676017 | F30: 28.99018233 | H30: 2020-09-15 | J30: 2020-10-13T23:45:51.753 | P30: 2020-06-05 | R30: 2020-07-03T23:45:51.753
A31: =NEW_528_Forage_Balance!G76 -> R5C | B31: =IF(A31=0,"",(NEW_528_Forage_Balance!I76)) -> Range | C31: =IF(A31=0,"",(NEW_528_Forage_Balance!H76)) -> 137 | D31: =IF(A31=0,"",(NEW_528_Forage_Balance!L76)) -> 29 | E31: 4.067321178 | F31: 7.931276297 | H31: 2020-10-14 | J31: 2020-10-21T22:21:02.272 | P31: 2020-07-04 | R31: 2020-07-11T22:21:02.272
A32: =NEW_528_Forage_Balance!G77 -> R6 | B32: =IF(A32=0,"",(NEW_528_Forage_Balance!I77)) -> Range | C32: =IF(A32=0,"",(NEW_528_Forage_Balance!H77)) -> 160 | D32: =IF(A32=0,"",(NEW_528_Forage_Balance!L77)) -> 90 | E32: 12.6227209 | F32: 24.61430575 | H32: 2020-10-22 | J32: 2020-11-15T14:44:36.017 | P32: 2020-07-12 | R32: 2020-08-05T14:44:36.017
A33: =NEW_528_Forage_Balance!G78 -> 0 | B33: =IF(A33=0,"",(NEW_528_Forage_Balance!I78)) ->  | C33: =IF(A33=0,"",(NEW_528_Forage_Balance!H78)) ->  | D33: =IF(A33=0,"",(NEW_528_Forage_Balance!L78)) -> 
A34: =NEW_528_Forage_Balance!G79 -> 0 | B34: =IF(A34=0,"",(NEW_528_Forage_Balance!I79)) ->  | C34: =IF(A34=0,"",(NEW_528_Forage_Balance!H79)) ->  | D34: =IF(A34=0,"",(NEW_528_Forage_Balance!L79)) -> 
A35: =NEW_528_Forage_Balance!G80 -> 0 | B35: =IF(A35=0,"",(NEW_528_Forage_Balance!I80)) ->  | C35: =IF(A35=0,"",(NEW_528_Forage_Balance!H80)) ->  | D35: =IF(A35=0,"",(NEW_528_Forage_Balance!L80)) -> 
A36: =NEW_528_Forage_Balance!G81 -> 0 | B36: =IF(A36=0,"",(NEW_528_Forage_Balance!I81)) ->  | C36: =IF(A36=0,"",(NEW_528_Forage_Balance!H81)) ->  | D36: =IF(A36=0,"",(NEW_528_Forage_Balance!L81)) -> 
A37: =NEW_528_Forage_Balance!G82 -> 0 | B37: =IF(A37=0,"",(NEW_528_Forage_Balance!I82)) ->  | C37: =IF(A37=0,"",(NEW_528_Forage_Balance!H82)) ->  | D37: =IF(A37=0,"",(NEW_528_Forage_Balance!L82)) -> 
A38: =NEW_528_Forage_Balance!G83 -> 0 | B38: =IF(A38=0,"",(NEW_528_Forage_Balance!I83)) ->  | C38: =IF(A38=0,"",(NEW_528_Forage_Balance!H83)) ->  | D38: =IF(A38=0,"",(NEW_528_Forage_Balance!L83)) -> 
A39: =NEW_528_Forage_Balance!G84 -> 0 | B39: =IF(A39=0,"",(NEW_528_Forage_Balance!I84)) ->  | C39: =IF(A39=0,"",(NEW_528_Forage_Balance!H84)) ->  | D39: =IF(A39=0,"",(NEW_528_Forage_Balance!L84)) -> 
A40: =NEW_528_Forage_Balance!G85 -> 0 | B40: =IF(A40=0,"",(NEW_528_Forage_Balance!I85)) ->  | C40: =IF(A40=0,"",(NEW_528_Forage_Balance!H85)) ->  | D40: =IF(A40=0,"",(NEW_528_Forage_Balance!L85)) -> 
A41: =NEW_528_Forage_Balance!G86 -> 0 | B41: =IF(A41=0,"",(NEW_528_Forage_Balance!I86)) ->  | C41: =IF(A41=0,"",(NEW_528_Forage_Balance!H86)) ->  | D41: =IF(A41=0,"",(NEW_528_Forage_Balance!L86)) -> 
A42: =NEW_528_Forage_Balance!G87 -> 0 | B42: =IF(A42=0,"",(NEW_528_Forage_Balance!I87)) ->  | C42: =IF(A42=0,"",(NEW_528_Forage_Balance!H87)) ->  | D42: =IF(A42=0,"",(NEW_528_Forage_Balance!L87)) -> 
A43: =NEW_528_Forage_Balance!G88 -> 0 | B43: =IF(A43=0,"",(NEW_528_Forage_Balance!I88)) ->  | C43: =IF(A43=0,"",(NEW_528_Forage_Balance!H88)) ->  | D43: =IF(A43=0,"",(NEW_528_Forage_Balance!L88)) -> 
A44: =NEW_528_Forage_Balance!G89 -> 0 | B44: =IF(A44=0,"",(NEW_528_Forage_Balance!I89)) ->  | C44: =IF(A44=0,"",(NEW_528_Forage_Balance!H89)) ->  | D44: =IF(A44=0,"",(NEW_528_Forage_Balance!L89)) -> 
A45: =NEW_528_Forage_Balance!G90 -> 0 | B45: =IF(A45=0,"",(NEW_528_Forage_Balance!I90)) ->  | C45: =IF(A45=0,"",(NEW_528_Forage_Balance!H90)) ->  | D45: =IF(A45=0,"",(NEW_528_Forage_Balance!L90)) -> 
A46: =NEW_528_Forage_Balance!G91 -> 0 | B46: =IF(A46=0,"",(NEW_528_Forage_Balance!I91)) ->  | C46: =IF(A46=0,"",(NEW_528_Forage_Balance!H91)) ->  | D46: =IF(A46=0,"",(NEW_528_Forage_Balance!L91)) -> 
A47: =NEW_528_Forage_Balance!G92 -> 0 | B47: =IF(A47=0,"",(NEW_528_Forage_Balance!I92)) ->  | C47: =IF(A47=0,"",(NEW_528_Forage_Balance!H92)) ->  | D47: =IF(A47=0,"",(NEW_528_Forage_Balance!L92)) -> 
A48: =NEW_528_Forage_Balance!G93 -> 0 | B48: =IF(A48=0,"",(NEW_528_Forage_Balance!I93)) ->  | C48: =IF(A48=0,"",(NEW_528_Forage_Balance!H93)) ->  | D48: =IF(A48=0,"",(NEW_528_Forage_Balance!L93)) -> 
A49: =NEW_528_Forage_Balance!G94 -> 0 | B49: =IF(A49=0,"",(NEW_528_Forage_Balance!I94)) ->  | C49: =IF(A49=0,"",(NEW_528_Forage_Balance!H94)) ->  | D49: =IF(A49=0,"",(NEW_528_Forage_Balance!L94)) -> 
A50: =NEW_528_Forage_Balance!G95 -> 0 | B50: =IF(A50=0,"",(NEW_528_Forage_Balance!I95)) ->  | C50: =IF(A50=0,"",(NEW_528_Forage_Balance!H95)) ->  | D50: =IF(A50=0,"",(NEW_528_Forage_Balance!L95)) -> 
A51: =NEW_528_Forage_Balance!G96 -> 0 | B51: =IF(A51=0,"",(NEW_528_Forage_Balance!I96)) ->  | C51: =IF(A51=0,"",(NEW_528_Forage_Balance!H96)) ->  | D51: =IF(A51=0,"",(NEW_528_Forage_Balance!L96)) -> 
A52: =NEW_528_Forage_Balance!G97 -> 0 | B52: =IF(A52=0,"",(NEW_528_Forage_Balance!I97)) ->  | C52: =IF(A52=0,"",(NEW_528_Forage_Balance!H97)) ->  | D52: =IF(A52=0,"",(NEW_528_Forage_Balance!L97)) -> 
A53: =NEW_528_Forage_Balance!G98 -> 0 | B53: =IF(A53=0,"",(NEW_528_Forage_Balance!I98)) ->  | C53: =IF(A53=0,"",(NEW_528_Forage_Balance!H98)) ->  | D53: =IF(A53=0,"",(NEW_528_Forage_Balance!L98)) -> 
A54: =NEW_528_Forage_Balance!G99 -> 0 | B54: =IF(A54=0,"",(NEW_528_Forage_Balance!I99)) ->  | C54: =IF(A54=0,"",(NEW_528_Forage_Balance!H99)) ->  | D54: =IF(A54=0,"",(NEW_528_Forage_Balance!L99)) -> 
A55: =NEW_528_Forage_Balance!G100 -> 0 | B55: =IF(A55=0,"",(NEW_528_Forage_Balance!I100)) ->  | C55: =IF(A55=0,"",(NEW_528_Forage_Balance!H100)) ->  | D55: =IF(A55=0,"",(NEW_528_Forage_Balance!L100)) -> 
A56: =NEW_528_Forage_Balance!G101 -> 0 | B56: =IF(A56=0,"",(NEW_528_Forage_Balance!I101)) ->  | C56: =IF(A56=0,"",(NEW_528_Forage_Balance!H101)) ->  | D56: =IF(A56=0,"",(NEW_528_Forage_Balance!L101)) ->  | E56: =IF(A56=0,"",D56/$D$77*100) -> 
A57: =NEW_528_Forage_Balance!G102 -> 0 | B57: =IF(A57=0,"",(NEW_528_Forage_Balance!I102)) ->  | C57: =IF(A57=0,"",(NEW_528_Forage_Balance!H102)) ->  | D57: =IF(A57=0,"",(NEW_528_Forage_Balance!L102)) -> 
A58: =NEW_528_Forage_Balance!G103 -> 0 | B58: =IF(A58=0,"",(NEW_528_Forage_Balance!I103)) ->  | C58: =IF(A58=0,"",(NEW_528_Forage_Balance!H103)) ->  | D58: =IF(A58=0,"",(NEW_528_Forage_Balance!L103)) -> 
A59: =NEW_528_Forage_Balance!G104 -> 0 | B59: =IF(A59=0,"",(NEW_528_Forage_Balance!I104)) ->  | C59: =IF(A59=0,"",(NEW_528_Forage_Balance!H104)) ->  | D59: =IF(A59=0,"",(NEW_528_Forage_Balance!L104)) -> 
A60: =NEW_528_Forage_Balance!G105 -> 0 | B60: =IF(A60=0,"",(NEW_528_Forage_Balance!I105)) ->  | C60: =IF(A60=0,"",(NEW_528_Forage_Balance!H105)) ->  | D60: =IF(A60=0,"",(NEW_528_Forage_Balance!L105)) -> 
A61: =NEW_528_Forage_Balance!G106 -> 0 | B61: =IF(A61=0,"",(NEW_528_Forage_Balance!I106)) ->  | C61: =IF(A61=0,"",(NEW_528_Forage_Balance!H106)) ->  | D61: =IF(A61=0,"",(NEW_528_Forage_Balance!L106)) -> 
A62: =NEW_528_Forage_Balance!G107 -> 0 | B62: =IF(A62=0,"",(NEW_528_Forage_Balance!I107)) ->  | C62: =IF(A62=0,"",(NEW_528_Forage_Balance!H107)) ->  | D62: =IF(A62=0,"",(NEW_528_Forage_Balance!L107)) -> 
A63: =NEW_528_Forage_Balance!G108 -> 0 | B63: =IF(A63=0,"",(NEW_528_Forage_Balance!I108)) ->  | C63: =IF(A63=0,"",(NEW_528_Forage_Balance!H108)) ->  | D63: =IF(A63=0,"",(NEW_528_Forage_Balance!L108)) -> 
A64: =NEW_528_Forage_Balance!G109 -> 0 | B64: =IF(A64=0,"",(NEW_528_Forage_Balance!I109)) ->  | C64: =IF(A64=0,"",(NEW_528_Forage_Balance!H109)) ->  | D64: =IF(A64=0,"",(NEW_528_Forage_Balance!L109)) -> 
A65: =NEW_528_Forage_Balance!G110 -> 0 | B65: =IF(A65=0,"",(NEW_528_Forage_Balance!I110)) ->  | C65: =IF(A65=0,"",(NEW_528_Forage_Balance!H110)) ->  | D65: =IF(A65=0,"",(NEW_528_Forage_Balance!L110)) -> 
A66: =NEW_528_Forage_Balance!G111 -> 0 | B66: =IF(A66=0,"",(NEW_528_Forage_Balance!I111)) ->  | C66: =IF(A66=0,"",(NEW_528_Forage_Balance!H111)) ->  | D66: =IF(A66=0,"",(NEW_528_Forage_Balance!L111)) -> 
A67: =NEW_528_Forage_Balance!G112 -> 0 | B67: =IF(A67=0,"",(NEW_528_Forage_Balance!I112)) ->  | C67: =IF(A67=0,"",(NEW_528_Forage_Balance!H112)) ->  | D67: =IF(A67=0,"",(NEW_528_Forage_Balance!L112)) -> 
A68: =NEW_528_Forage_Balance!G113 -> 0 | B68: =IF(A68=0,"",(NEW_528_Forage_Balance!I113)) ->  | C68: =IF(A68=0,"",(NEW_528_Forage_Balance!H113)) ->  | D68: =IF(A68=0,"",(NEW_528_Forage_Balance!L113)) -> 
A69: =NEW_528_Forage_Balance!G114 -> 0 | B69: =IF(A69=0,"",(NEW_528_Forage_Balance!I114)) ->  | C69: =IF(A69=0,"",(NEW_528_Forage_Balance!H114)) ->  | D69: =IF(A69=0,"",(NEW_528_Forage_Balance!L114)) -> 
A70: =NEW_528_Forage_Balance!G115 -> 0 | B70: =IF(A70=0,"",(NEW_528_Forage_Balance!I115)) ->  | C70: =IF(A70=0,"",(NEW_528_Forage_Balance!H115)) ->  | D70: =IF(A70=0,"",(NEW_528_Forage_Balance!L115)) -> 
A71: =NEW_528_Forage_Balance!G116 -> 0 | B71: =IF(A71=0,"",(NEW_528_Forage_Balance!I116)) ->  | C71: =IF(A71=0,"",(NEW_528_Forage_Balance!H116)) ->  | D71: =IF(A71=0,"",(NEW_528_Forage_Balance!L116)) -> 
A72: =NEW_528_Forage_Balance!G117 -> 0 | B72: =IF(A72=0,"",(NEW_528_Forage_Balance!I117)) ->  | C72: =IF(A72=0,"",(NEW_528_Forage_Balance!H117)) ->  | D72: =IF(A72=0,"",(NEW_528_Forage_Balance!L117)) -> 
A73: =NEW_528_Forage_Balance!G118 -> 0 | B73: =IF(A73=0,"",(NEW_528_Forage_Balance!I118)) ->  | C73: =IF(A73=0,"",(NEW_528_Forage_Balance!H118)) ->  | D73: =IF(A73=0,"",(NEW_528_Forage_Balance!L118)) -> 
A74: =NEW_528_Forage_Balance!G119 -> 0 | B74: =IF(A74=0,"",(NEW_528_Forage_Balance!I119)) ->  | C74: =IF(A74=0,"",(NEW_528_Forage_Balance!H119)) ->  | D74: =IF(A74=0,"",(NEW_528_Forage_Balance!L119)) -> 
A75: =NEW_528_Forage_Balance!G120 -> 0 | B75: =IF(A75=0,"",(NEW_528_Forage_Balance!I120)) ->  | C75: =IF(A75=0,"",(NEW_528_Forage_Balance!H120)) ->  | D75: =IF(A75=0,"",(NEW_528_Forage_Balance!L120)) -> 
A76: =NEW_528_Forage_Balance!G121 -> 0 | B76: =IF(A76=0,"",(NEW_528_Forage_Balance!I121)) ->  | C76: =IF(A76=0,"",(NEW_528_Forage_Balance!H121)) ->  | D76: =IF(A76=0,"",(NEW_528_Forage_Balance!L121)) ->  | F76: =IF(A76=0,"",$E$19*E76/100) ->  | J76: =IF(H76=0,"",(H76+F76)) -> 
C77: =SUM(C24:C76) -> 2000 | D77: =SUM(D24:D76) -> 713 | E77: =SUM(E24:E76) -> 100 | F77: =SUM(F24:F76) -> 195
A78: COMMENTS:

Sheet 528 JS - Schedule Option #3
A1: Grazing Management Strategies
A2: Grazing management systems are planned forage and livestock management programs designed to accomplish range improvement. A grazing system is developed to maintain or improve range similarity index, productivity, health and vigor while simultaneously achieving a high, sustainable level of livestock production.
A3: Types of Grazing Systems: Prescribed grazing is a grazing system which is tailored to the individual operation and designed to achieve the specific objectives of the operation. To be effective a grazing strategy should be flexible and modified with changes in weather, plant growth and disturbances. Which every grazing management strategy is implemented, it should allow for adequate recovery time of the primary forage grasses before the pasture, paddock, or grazing unit is grazed again. Recovery should be based upon the growth of key forage species, and not based solely on the days of rest or the calendar. There are several general types of grazing management systems:
A4: 1. Rest Rotation: In a rest rotation grazing management system, one or more pastures are left ungrazed for the entire growing season. Each year a different pasture(s) is ungrazed; in other words, the rest is rotated. Incorporating rest so that each pasture is ungrazed once every 5-7 years builds in resilience, aids in drought recovery and provides wildlife habitat. Stocking rates should be adjusted to account for the forage that is unavailable each year. Often times, a rest rotation is coupled with a deferred rotation rather than grazed pastures being grazed season long.
A5: 2. Deferred Rotation: In a deferred rotation grazing management system, a herd is rotated through three or more pastures. While one pasture is being grazed, the remaining pastures are not grazed (deferred). The pastures are grazed in a planned sequence. The sequence of grazing is changed each year to make certain that the grasses are not being grazed during the same time in the growing season in consecutive years.
A6: 3. High Intensity/Low Frequency Rotation: In a high intensity/low frequency rotation grazing management system, one herd of livestock grazes eight or more pastures in a planned sequence. Livestock are moved into one pasture and the other pastures are rested. When the forage is grazed to the desired intensity, livestock are moved to the next pasture in the rotation. Livestock typically stay in a pasture 10 to 25 days. The frequent moves allow long rest periods for each pasture. The sequence of grazing is changed each year. Depending upon production and precipitation, pastures may be grazed once per growing season, or more than once per growing season.
A7: 4. Short-duration. (Management Intensive Grazing.) This is similar to the high intensity/low frequency system, except the speed of the rotation is adjusted according to the growth rate and the required rest period of the plants. During the peak of the growing season, livestock are moved rapidly with slower moves when pasture growth rate slow down. In some systems, livestock are moved every 3-5 days or more frequently. Mob grazing is a variation of this type of grazing strategy. With mob grazing, stock density is very high and moves may be as often as 3 or more times per day and paddocks are temporary and are in different locations each time the unit is grazed. Usually, each paddock is grazed only one time per year.
A8: Purpose of prescribed grazing management systems: Prescribed grazing systems are implemented in order to achieve any number of objectives, which include but are not limited to:
B9: ¨ | C9: Maintain or increase improvement in plant cover while properly using the forage in all pastures.
B10: ¨ | C10: Improve efficiency of grazing by uniformly using all parts of each grazed pasture.
B11: ¨ | C11: Permit a higher level of livestock production.
B12: ¨ | C12: Insure a supply of forage throughout the grazing season.
B13: ¨ | C13: Insure that an adequate feed and forage balance is maintained for the unit.
B14: ¨ | C14: Improve control of undesirable plants.
B15: ¨ | C15: Allow easier handling and observation of livestock.
B16: ¨ | C16: Enhance wildlife habitat.
B17: ¨ | C17: Enhance watershed protection.
A18: CLIENT NAME: | C18: =NEW_528_Forage_Balance!C2 -> Mary Rancher - Sunnyvale Ranch | J18: YEAR: | L18: 2021 | P18: CONTRACT NO: | T18: =NEW_528_Forage_Balance!R2 -> 12345K
A19: LENGTH GRAZING SEASON (DAYS): | E19: =NEW_528_Forage_Balance!Q68 -> 195 | J19: Planned Grazing Dates: | Q19: May 1 - November 15
A21: Field Number | B21: Forage Type | C21: Acres | D21: Planned/Estimated Days | H21: Planned Dates | P21: Actual Dates | X21: You can create a copy of this sheet for each future year that you would like to develop a grazing schedule.
H22: 1st Grazing Period | L22: 2nd Grazing Period | P22: 1st Grazing Period | T22: 2nd Grazing Period
D23: Estimated Available AUM or AUD | E23: % of AUM or AUD per field | F23: Estimated Days per Field | H23: Planned In Date | J23: Planned Out Date | L23: Planned In Date | N23: Planned Out Date | P23: Actual In Date | R23: Actual Out Date | T23: Actual In Date | V23: Actual Out Date | X23: This schedule can be used when multiple grazing periods are planned in the same grazing season.
A24: =NEW_528_Forage_Balance!G69 -> R1A | B24: =IF(A24=0,"",(NEW_528_Forage_Balance!I69)) -> Range | C24: =IF(A24=0,"",(NEW_528_Forage_Balance!H69)) -> 305 | D24: =IF(A24=0,"",(NEW_528_Forage_Balance!L69)) -> 115 | E24: =IF(A24=0,"",D24/$D$77*100) -> 16.12903226 | F24: =IF(A24=0,"",$E$19*E24/100) -> 31.4516129 | H24: 2020-05-01 | J24: 2020-05-08 | L24: 2020-08-31 | N24: 2020-09-23
A25: =NEW_528_Forage_Balance!G70 -> R1B | B25: =IF(A25=0,"",(NEW_528_Forage_Balance!I70)) -> Range | C25: =IF(A25=0,"",(NEW_528_Forage_Balance!H70)) -> 335 | D25: =IF(A25=0,"",(NEW_528_Forage_Balance!L70)) -> 92 | E25: 12.90322581 | F25: =IF(A25=0,"",$E$19*E25/100) -> 25.16129032 | H25: 2020-05-09 | J25: 2020-05-16 | L25: 2020-09-24 | N25: 2020-10-12
A26: =NEW_528_Forage_Balance!G71 -> R2 | B26: =IF(A26=0,"",(NEW_528_Forage_Balance!I71)) -> Range | C26: =IF(A26=0,"",(NEW_528_Forage_Balance!H71)) -> 320 | D26: =IF(A26=0,"",(NEW_528_Forage_Balance!L71)) -> 122 | E26: 17.11079944 | F26: 33.36605891 | H26: 2020-05-17 | J26: 2020-05-24 | L26: 2020-10-13 | N26: 2020-11-08
A27: =NEW_528_Forage_Balance!G72 -> R3 | B27: =IF(A27=0,"",(NEW_528_Forage_Balance!I72)) -> Range | C27: =IF(A27=0,"",(NEW_528_Forage_Balance!H72)) -> 80 | D27: =IF(A27=0,"",(NEW_528_Forage_Balance!L72)) -> 35 | E27: 4.908835905 | F27: 9.572230014 | H27: 2020-05-25 | J27: 2020-06-01 | L27: 2020-11-09 | N27: 2020-11-11 | X27: This scheduler is set up for 40 pastures; hide unused rows and set page breaks before printing. To view print layout and page breaks, go to view, page break preview and drag page breaks to desired location(s).
A28: =NEW_528_Forage_Balance!G73 -> R4 | B28: =IF(A28=0,"",(NEW_528_Forage_Balance!I73)) -> Range | C28: =IF(A28=0,"",(NEW_528_Forage_Balance!H73)) -> 160 | D28: =IF(A28=0,"",(NEW_528_Forage_Balance!L73)) -> 58 | E28: 8.134642356 | F28: 15.86255259 | H28: 2020-06-02 | J28: 2020-06-09 | L28: 2020-11-12 | N28: 2020-11-15
A29: =NEW_528_Forage_Balance!G74 -> R5A | B29: =IF(A29=0,"",(NEW_528_Forage_Balance!I74)) -> Range | C29: =IF(A29=0,"",(NEW_528_Forage_Balance!H74)) -> 240 | D29: =IF(A29=0,"",(NEW_528_Forage_Balance!L74)) -> 66 | E29: 9.256661992 | F29: 18.05049088 | H29: 2020-06-10 | J29: 2020-06-28
A30: =NEW_528_Forage_Balance!G75 -> R5B | B30: =IF(A30=0,"",(NEW_528_Forage_Balance!I75)) -> Range | C30: =IF(A30=0,"",(NEW_528_Forage_Balance!H75)) -> 263 | D30: =IF(A30=0,"",(NEW_528_Forage_Balance!L75)) -> 106 | E30: 14.86676017 | F30: 28.99018233 | H30: 2020-06-29 | J30: 2020-07-28
A31: =NEW_528_Forage_Balance!G76 -> R5C | B31: =IF(A31=0,"",(NEW_528_Forage_Balance!I76)) -> Range | C31: =IF(A31=0,"",(NEW_528_Forage_Balance!H76)) -> 137 | D31: =IF(A31=0,"",(NEW_528_Forage_Balance!L76)) -> 29 | E31: 4.067321178 | F31: 7.931276297 | H31: 2020-07-29 | J31: 2020-08-06
A32: =NEW_528_Forage_Balance!G77 -> R6 | B32: =IF(A32=0,"",(NEW_528_Forage_Balance!I77)) -> Range | C32: =IF(A32=0,"",(NEW_528_Forage_Balance!H77)) -> 160 | D32: =IF(A32=0,"",(NEW_528_Forage_Balance!L77)) -> 90 | E32: 12.6227209 | F32: 24.61430575 | H32: 2020-08-06 | J32: 2020-08-30
A33: =NEW_528_Forage_Balance!G78 -> 0 | B33: =IF(A33=0,"",(NEW_528_Forage_Balance!I78)) ->  | C33: =IF(A33=0,"",(NEW_528_Forage_Balance!H78)) ->  | D33: =IF(A33=0,"",(NEW_528_Forage_Balance!L78)) -> 
A34: =NEW_528_Forage_Balance!G79 -> 0 | B34: =IF(A34=0,"",(NEW_528_Forage_Balance!I79)) ->  | C34: =IF(A34=0,"",(NEW_528_Forage_Balance!H79)) ->  | D34: =IF(A34=0,"",(NEW_528_Forage_Balance!L79)) -> 
A35: =NEW_528_Forage_Balance!G80 -> 0 | B35: =IF(A35=0,"",(NEW_528_Forage_Balance!I80)) ->  | C35: =IF(A35=0,"",(NEW_528_Forage_Balance!H80)) ->  | D35: =IF(A35=0,"",(NEW_528_Forage_Balance!L80)) -> 
A36: =NEW_528_Forage_Balance!G81 -> 0 | B36: =IF(A36=0,"",(NEW_528_Forage_Balance!I81)) ->  | C36: =IF(A36=0,"",(NEW_528_Forage_Balance!H81)) ->  | D36: =IF(A36=0,"",(NEW_528_Forage_Balance!L81)) -> 
A37: =NEW_528_Forage_Balance!G82 -> 0 | B37: =IF(A37=0,"",(NEW_528_Forage_Balance!I82)) ->  | C37: =IF(A37=0,"",(NEW_528_Forage_Balance!H82)) ->  | D37: =IF(A37=0,"",(NEW_528_Forage_Balance!L82)) -> 
A38: =NEW_528_Forage_Balance!G83 -> 0 | B38: =IF(A38=0,"",(NEW_528_Forage_Balance!I83)) ->  | C38: =IF(A38=0,"",(NEW_528_Forage_Balance!H83)) ->  | D38: =IF(A38=0,"",(NEW_528_Forage_Balance!L83)) -> 
A39: =NEW_528_Forage_Balance!G84 -> 0 | B39: =IF(A39=0,"",(NEW_528_Forage_Balance!I84)) ->  | C39: =IF(A39=0,"",(NEW_528_Forage_Balance!H84)) ->  | D39: =IF(A39=0,"",(NEW_528_Forage_Balance!L84)) -> 
A40: =NEW_528_Forage_Balance!G85 -> 0 | B40: =IF(A40=0,"",(NEW_528_Forage_Balance!I85)) ->  | C40: =IF(A40=0,"",(NEW_528_Forage_Balance!H85)) ->  | D40: =IF(A40=0,"",(NEW_528_Forage_Balance!L85)) -> 
A41: =NEW_528_Forage_Balance!G86 -> 0 | B41: =IF(A41=0,"",(NEW_528_Forage_Balance!I86)) ->  | C41: =IF(A41=0,"",(NEW_528_Forage_Balance!H86)) ->  | D41: =IF(A41=0,"",(NEW_528_Forage_Balance!L86)) -> 
A42: =NEW_528_Forage_Balance!G87 -> 0 | B42: =IF(A42=0,"",(NEW_528_Forage_Balance!I87)) ->  | C42: =IF(A42=0,"",(NEW_528_Forage_Balance!H87)) ->  | D42: =IF(A42=0,"",(NEW_528_Forage_Balance!L87)) -> 
A43: =NEW_528_Forage_Balance!G88 -> 0 | B43: =IF(A43=0,"",(NEW_528_Forage_Balance!I88)) ->  | C43: =IF(A43=0,"",(NEW_528_Forage_Balance!H88)) ->  | D43: =IF(A43=0,"",(NEW_528_Forage_Balance!L88)) -> 
A44: =NEW_528_Forage_Balance!G89 -> 0 | B44: =IF(A44=0,"",(NEW_528_Forage_Balance!I89)) ->  | C44: =IF(A44=0,"",(NEW_528_Forage_Balance!H89)) ->  | D44: =IF(A44=0,"",(NEW_528_Forage_Balance!L89)) -> 
A45: =NEW_528_Forage_Balance!G90 -> 0 | B45: =IF(A45=0,"",(NEW_528_Forage_Balance!I90)) ->  | C45: =IF(A45=0,"",(NEW_528_Forage_Balance!H90)) ->  | D45: =IF(A45=0,"",(NEW_528_Forage_Balance!L90)) -> 
A46: =NEW_528_Forage_Balance!G91 -> 0 | B46: =IF(A46=0,"",(NEW_528_Forage_Balance!I91)) ->  | C46: =IF(A46=0,"",(NEW_528_Forage_Balance!H91)) ->  | D46: =IF(A46=0,"",(NEW_528_Forage_Balance!L91)) -> 
A47: =NEW_528_Forage_Balance!G92 -> 0 | B47: =IF(A47=0,"",(NEW_528_Forage_Balance!I92)) ->  | C47: =IF(A47=0,"",(NEW_528_Forage_Balance!H92)) ->  | D47: =IF(A47=0,"",(NEW_528_Forage_Balance!L92)) -> 
A48: =NEW_528_Forage_Balance!G93 -> 0 | B48: =IF(A48=0,"",(NEW_528_Forage_Balance!I93)) ->  | C48: =IF(A48=0,"",(NEW_528_Forage_Balance!H93)) ->  | D48: =IF(A48=0,"",(NEW_528_Forage_Balance!L93)) -> 
A49: =NEW_528_Forage_Balance!G94 -> 0 | B49: =IF(A49=0,"",(NEW_528_Forage_Balance!I94)) ->  | C49: =IF(A49=0,"",(NEW_528_Forage_Balance!H94)) ->  | D49: =IF(A49=0,"",(NEW_528_Forage_Balance!L94)) -> 
A50: =NEW_528_Forage_Balance!G95 -> 0 | B50: =IF(A50=0,"",(NEW_528_Forage_Balance!I95)) ->  | C50: =IF(A50=0,"",(NEW_528_Forage_Balance!H95)) ->  | D50: =IF(A50=0,"",(NEW_528_Forage_Balance!L95)) -> 
A51: =NEW_528_Forage_Balance!G96 -> 0 | B51: =IF(A51=0,"",(NEW_528_Forage_Balance!I96)) ->  | C51: =IF(A51=0,"",(NEW_528_Forage_Balance!H96)) ->  | D51: =IF(A51=0,"",(NEW_528_Forage_Balance!L96)) -> 
A52: =NEW_528_Forage_Balance!G97 -> 0 | B52: =IF(A52=0,"",(NEW_528_Forage_Balance!I97)) ->  | C52: =IF(A52=0,"",(NEW_528_Forage_Balance!H97)) ->  | D52: =IF(A52=0,"",(NEW_528_Forage_Balance!L97)) -> 
A53: =NEW_528_Forage_Balance!G98 -> 0 | B53: =IF(A53=0,"",(NEW_528_Forage_Balance!I98)) ->  | C53: =IF(A53=0,"",(NEW_528_Forage_Balance!H98)) ->  | D53: =IF(A53=0,"",(NEW_528_Forage_Balance!L98)) -> 
A54: =NEW_528_Forage_Balance!G99 -> 0 | B54: =IF(A54=0,"",(NEW_528_Forage_Balance!I99)) ->  | C54: =IF(A54=0,"",(NEW_528_Forage_Balance!H99)) ->  | D54: =IF(A54=0,"",(NEW_528_Forage_Balance!L99)) -> 
A55: =NEW_528_Forage_Balance!G100 -> 0 | B55: =IF(A55=0,"",(NEW_528_Forage_Balance!I100)) ->  | C55: =IF(A55=0,"",(NEW_528_Forage_Balance!H100)) ->  | D55: =IF(A55=0,"",(NEW_528_Forage_Balance!L100)) -> 
A56: =NEW_528_Forage_Balance!G101 -> 0 | B56: =IF(A56=0,"",(NEW_528_Forage_Balance!I101)) ->  | C56: =IF(A56=0,"",(NEW_528_Forage_Balance!H101)) ->  | D56: =IF(A56=0,"",(NEW_528_Forage_Balance!L101)) ->  | E56: =IF(A56=0,"",D56/$D$77*100) -> 
A57: =NEW_528_Forage_Balance!G102 -> 0 | B57: =IF(A57=0,"",(NEW_528_Forage_Balance!I102)) ->  | C57: =IF(A57=0,"",(NEW_528_Forage_Balance!H102)) ->  | D57: =IF(A57=0,"",(NEW_528_Forage_Balance!L102)) -> 
A58: =NEW_528_Forage_Balance!G103 -> 0 | B58: =IF(A58=0,"",(NEW_528_Forage_Balance!I103)) ->  | C58: =IF(A58=0,"",(NEW_528_Forage_Balance!H103)) ->  | D58: =IF(A58=0,"",(NEW_528_Forage_Balance!L103)) -> 
A59: =NEW_528_Forage_Balance!G104 -> 0 | B59: =IF(A59=0,"",(NEW_528_Forage_Balance!I104)) ->  | C59: =IF(A59=0,"",(NEW_528_Forage_Balance!H104)) ->  | D59: =IF(A59=0,"",(NEW_528_Forage_Balance!L104)) -> 
A60: =NEW_528_Forage_Balance!G105 -> 0 | B60: =IF(A60=0,"",(NEW_528_Forage_Balance!I105)) ->  | C60: =IF(A60=0,"",(NEW_528_Forage_Balance!H105)) ->  | D60: =IF(A60=0,"",(NEW_528_Forage_Balance!L105)) -> 
A61: =NEW_528_Forage_Balance!G106 -> 0 | B61: =IF(A61=0,"",(NEW_528_Forage_Balance!I106)) ->  | C61: =IF(A61=0,"",(NEW_528_Forage_Balance!H106)) ->  | D61: =IF(A61=0,"",(NEW_528_Forage_Balance!L106)) -> 
A62: =NEW_528_Forage_Balance!G107 -> 0 | B62: =IF(A62=0,"",(NEW_528_Forage_Balance!I107)) ->  | C62: =IF(A62=0,"",(NEW_528_Forage_Balance!H107)) ->  | D62: =IF(A62=0,"",(NEW_528_Forage_Balance!L107)) -> 
A63: =NEW_528_Forage_Balance!G108 -> 0 | B63: =IF(A63=0,"",(NEW_528_Forage_Balance!I108)) ->  | C63: =IF(A63=0,"",(NEW_528_Forage_Balance!H108)) ->  | D63: =IF(A63=0,"",(NEW_528_Forage_Balance!L108)) -> 
A64: =NEW_528_Forage_Balance!G109 -> 0 | B64: =IF(A64=0,"",(NEW_528_Forage_Balance!I109)) ->  | C64: =IF(A64=0,"",(NEW_528_Forage_Balance!H109)) ->  | D64: =IF(A64=0,"",(NEW_528_Forage_Balance!L109)) -> 
A65: =NEW_528_Forage_Balance!G110 -> 0 | B65: =IF(A65=0,"",(NEW_528_Forage_Balance!I110)) ->  | C65: =IF(A65=0,"",(NEW_528_Forage_Balance!H110)) ->  | D65: =IF(A65=0,"",(NEW_528_Forage_Balance!L110)) -> 
A66: =NEW_528_Forage_Balance!G111 -> 0 | B66: =IF(A66=0,"",(NEW_528_Forage_Balance!I111)) ->  | C66: =IF(A66=0,"",(NEW_528_Forage_Balance!H111)) ->  | D66: =IF(A66=0,"",(NEW_528_Forage_Balance!L111)) -> 
A67: =NEW_528_Forage_Balance!G112 -> 0 | B67: =IF(A67=0,"",(NEW_528_Forage_Balance!I112)) ->  | C67: =IF(A67=0,"",(NEW_528_Forage_Balance!H112)) ->  | D67: =IF(A67=0,"",(NEW_528_Forage_Balance!L112)) -> 
A68: =NEW_528_Forage_Balance!G113 -> 0 | B68: =IF(A68=0,"",(NEW_528_Forage_Balance!I113)) ->  | C68: =IF(A68=0,"",(NEW_528_Forage_Balance!H113)) ->  | D68: =IF(A68=0,"",(NEW_528_Forage_Balance!L113)) -> 
A69: =NEW_528_Forage_Balance!G114 -> 0 | B69: =IF(A69=0,"",(NEW_528_Forage_Balance!I114)) ->  | C69: =IF(A69=0,"",(NEW_528_Forage_Balance!H114)) ->  | D69: =IF(A69=0,"",(NEW_528_Forage_Balance!L114)) -> 
A70: =NEW_528_Forage_Balance!G115 -> 0 | B70: =IF(A70=0,"",(NEW_528_Forage_Balance!I115)) ->  | C70: =IF(A70=0,"",(NEW_528_Forage_Balance!H115)) ->  | D70: =IF(A70=0,"",(NEW_528_Forage_Balance!L115)) -> 
A71: =NEW_528_Forage_Balance!G116 -> 0 | B71: =IF(A71=0,"",(NEW_528_Forage_Balance!I116)) ->  | C71: =IF(A71=0,"",(NEW_528_Forage_Balance!H116)) ->  | D71: =IF(A71=0,"",(NEW_528_Forage_Balance!L116)) -> 
A72: =NEW_528_Forage_Balance!G117 -> 0 | B72: =IF(A72=0,"",(NEW_528_Forage_Balance!I117)) ->  | C72: =IF(A72=0,"",(NEW_528_Forage_Balance!H117)) ->  | D72: =IF(A72=0,"",(NEW_528_Forage_Balance!L117)) -> 
A73: =NEW_528_Forage_Balance!G118 -> 0 | B73: =IF(A73=0,"",(NEW_528_Forage_Balance!I118)) ->  | C73: =IF(A73=0,"",(NEW_528_Forage_Balance!H118)) ->  | D73: =IF(A73=0,"",(NEW_528_Forage_Balance!L118)) -> 
A74: =NEW_528_Forage_Balance!G119 -> 0 | B74: =IF(A74=0,"",(NEW_528_Forage_Balance!I119)) ->  | C74: =IF(A74=0,"",(NEW_528_Forage_Balance!H119)) ->  | D74: =IF(A74=0,"",(NEW_528_Forage_Balance!L119)) -> 
A75: =NEW_528_Forage_Balance!G120 -> 0 | B75: =IF(A75=0,"",(NEW_528_Forage_Balance!I120)) ->  | C75: =IF(A75=0,"",(NEW_528_Forage_Balance!H120)) ->  | D75: =IF(A75=0,"",(NEW_528_Forage_Balance!L120)) -> 
A76: =NEW_528_Forage_Balance!G121 -> 0 | B76: =IF(A76=0,"",(NEW_528_Forage_Balance!I121)) ->  | C76: =IF(A76=0,"",(NEW_528_Forage_Balance!H121)) ->  | D76: =IF(A76=0,"",(NEW_528_Forage_Balance!L121)) ->  | F76: =IF(A76=0,"",$E$19*E76/100) -> 
C77: =SUM(C24:C76) -> 2000 | D77: =SUM(D24:D76) -> 713 | E77: =SUM(E24:E76) -> 100 | F77: =SUM(F24:F76) -> 195
A78: COMMENTS:

Sheet Contingency Plan
A2: Forward planning is recommended to address any unpredictable event that reduces the amount of forage available. Unpredictable events include flood, fire, hail, insects, and most commonly drought. There is no special prescription for management of grazing lands impacted by unpredictable events. Years of good grazing management prepares grazing land for recovery. This embodies utilizing a prescribed grazing strategy which manages grazing frequency, grazing intensity and adequate recovery periods after grazing, proper livestock distribution, season of use, and stocking rate. | B2: This generic contingency plan should be used as a starting point for producers to develop a customized plan for their operation. Encourage producers to identify trigger dates and actions they plan to take when drought conditions reach different levels at different times of the year. Managing Drought Risk on the Ranch is a publication developed by the National Drought Mitigation Center that can provide helpful ideas to producers in developing their customized drought plan. While drought is the most common contingency in Nebraska, plans for loss of forage through other means should be addressed in a contingency plan.
A4: A basic understanding of the potential capabilities and limitations of all range resources is fundamental to sound management. High levels of plant vigor and range health are critical for the endurance of and rapid recovery from drought and other natural events which damage plants. It is equally important to know which practices optimize livestock performance and minimize risk of financial loss. Drought considerations must be incorporated into each year’s management plan.
A6: A contingency plan should minimize financial hardships and hasten vegetation recovery. While the remainder of this contingency plan refers primarily to drought, the principles involved are applicable to any natural event (fire, hail, flood, insect infestation) that removes forage beyond the planned level. Contingency plans identify action to be taken at the first sign of drought as well as with continued indications of pending forage shortages. Plans for stocking rate adjustments need to be specific in terms of method and date. A drought contingency plan will include trigger dates, trigger conditions and planned responses to those triggers.
A8: Past Stocking Rates and Management:
A9: Grazing management during years proceeding drought is a major factor in range vegetation response to drought. Stocking rates can increase even when livestock numbers are static. The amount of forage consumed in a pasture depends upon animal size as well as animal numbers and days of grazing. Inadvertent increases in stocking rates due to larger animal sizes may lead to overgrazing and reduced plant vigor before drought. All range livestock land managers need to critically evaluate their animal weights and use an appropriate animal unit (AU) equivalent when calculating stocking rates. Inadvertent overstocking may reduce animal performance and will damage the forage resource.
A11: Seasonal Checkpoints:
A12: Seasonal Checkpoints are critical dates when management decisions need to be made to respond to drought conditions. On critical dates, current and predicted forage production should be evaluated. This production estimate should be compared to the forage demand. When current production does not meet current demand, actions must be taken.
A14: Critical dates should be based on rapid growth windows for the dominant grass species. Soil moisture and precipitation before and during the rapid growth period of these species are critical to forage production. In situations where the forage is a mixture of cool-season and warm-season grasses, multiple critical dates are helpful.
A16: The average total annual precipitation for the two preceding years is a good indicator of the amount of production that will occur during May and June. Additionally, depth of moist soil in mid-April correlates to the amount of forage produced by early August. On mixed and short-grass prairie on loamy and silty sites in Nebraska, the amount of production is correlated to precipitation received in May and June.
A17: The dates listed below are "average" for Nebraska. The dates will need to be adjusted 1-3 weeks based on green-up dates.
A18: April 1:
A19: · Determine average depth of moist soil and estimate probable stocking rates
A20: · Evaluate the volume of precipitation received from October through March as compared to normal.
A21: · Estimate probable forage production from rangeland.
A22: · Review short-term precipitation and temperature forecasts.
A23: · Assess current standing herbage.
A24: · Assess all residual herbage.
A25: · Assess growth of introduced cool season pastures.
A26: · Evaluate stand quality and probable forage production of winter and spring small grains.
A27: · Determine if yield of native cool season species on rangeland is above or below average.
A28: · Alternative forages, stocking rate reductions and modified grazing strategies may be needed if there is a delay in plant green-up and growth.
A29: May 1:
A30: · Monitor green up of native warm season species on rangeland.
A31: · Continue to review short-term precipitation and temperature forecasts.
A32: · Assess current standing herbage.
A33: · Assess all residual herbage.
A34: June 1 - 15:
A35: · Assess establishment and stand quality of summer annual forages and soil moisture conditions.
A36: · The majority of plant growth in Nebraska will occur by the end of June. If drought conditions continue into June, forage production will be dramatically reduced for the season even if good moisture occurs after June 30. Serious consideration should be given to stocking rate reductions and herd management.
A37: July 1:
A38: · Determine if yield of native warm season species on rangeland is above or below average.
A39: · Assess establishment and stand quality of late planted summer annual forages.
A40: · Assess soil moisture conditions.
A41: August 1:
A42: · Estimate or measure yield of summer annuals harvested for feed or grown for late season grazing.
A43: · Diet quality of annual forages declines dramatically after the soft dough stage. If high forage quality is the objective, harvest at the late boot to soft dough stage. If maximum tonnage is the objective, then harvesting after the soft dough stage may be desirable.
A44: September 1:
A45: · Assess current year and carry-over winter feed inventories. Purchase hay resources as needed.
A46: · Make a final assessment of yield of annual forages grown for late season grazing.
A47: · Inventory other harvested feed and determine the quantity of crop residue on cropland.
A48: · Estimate amount of forage in winter pastures (if applicable).
A49: October 1:
A50: · Use September though October precipitation to predict stocking rates for the next summer.
A51: Note: Even a small amount of spring or fall green-up can cause a false sense of security and delay of prudent management decisions. Premature, aggressive restocking can cause serious economic loss because of long-term reductions in the rate of vegetation recovery. If vegetation recovery is slow or restricted by continued drought, a de-stocking plan will be needed.
A53: Herd Management:
A54: One alternative for drought management is to reduce total forage requirements. Reducing stocking rates during drought pays dividends in terms of:
A55: · Optimized animal performance
A56: · Reduced supplemental and winter feeding costs
A57: · Minimized damage to forage resources
A58: · Enhanced range and pasture recovery following drought
A60: Consider removing or relocating livestock as soon as shortages in forage and feed resources are anticipated to take advantage of best market values. If additional shortages in forage occur, calculate the additional costs associated with keeping livestock on the ranch (feed, interest, labor, etc.) or transporting livestock to another location with adequate feed or forage. If calculations show an unreasonably high cost of livestock production, it may be prudent to sell or relocate part or all of the livestock.
A62: The following practices can help to minimize liquidation of the breeding herd:
A63: · Early weaning can extend the forage base
A64: · Practice early and heavy culling of less productive animals such as late calving cows and older cattle
A65: · Remove yearlings from summer pastures early
A66: · Consider curtailing of replacement animals for one year
A67: · Supplement vulnerable classes of livestock such as heifers earlier than other classes of livestock
A68: · Maintain a percentage of the livestock as a readily marketable class such as yearlings or stockers
A70: Diverse practices can be used to maintain ownership of cows under drought conditions. Some ranches will liquidate or relocate part or all of their breeding stock. The value of keeping breeding herds on the ranch must be weighed against the additional costs that are probable when drought continues. Recovery of additional production costs will depend upon: (1) productivity of livestock, (2) productivity of grazing lands, and (3) livestock market prices during and following drought. The use of excessive stocking rates during drought can reduce animal performance and cause dramatic reductions in plant vigor. Overgrazed land in combination with prolonged drought can cause rangelands to shift across transition zones to states that may not recover to pre-drought production levels for decades. Under severe or prolonged drought conditions the cost of replacement livestock is almost always less that the cost of long-term reductions in grazing land productivity.
A72: Additional information may be obtained from the Drought Mitigation Center website: http://drought.unl.edu/. In depth information about developing a drought mitigation plan can be found in the handbook “Managing Drought Risk on the Ranch” which is available at:
A73: http://drought.unl.edu/ranchplan/Overview.aspx
A75: 1. The majority of the information in this section was obtained from "Managing Drought Risk on the Ranch: A Planning Guide for Great Plains Ranchers", published by the National Drought Mitigation Center, UN-L and USDA Risk Management Agency.
AN103: 2.1 Shrubs, Arrowhead, Knotweed-PFP107B

Sheet NE-ECS-414A-% use
A1: CLIENT NAME: | C1: =NEW_528_Forage_Balance!C2 -> Mary Rancher - Sunnyvale Ranch | J1: DATE: | K1: =NEW_528_Forage_Balance!R1 -> 2020-11-12
A2: Contract Number: | C2: =NEW_528_Forage_Balance!R2 -> 12345K | M2: Use this form or 414B minimum height to document utilization. Prescribed Grazing Plans must have either this form or 414B minimum height included with the grazing plan.
A4: Pasture Name or Number | B4: ACRES | C4: Season of Use | D4: KEY GRAZING AREA INFORMATION - See Plan map for location of Key Areas
D5: Key Area # | E5: Key Plant | F5: Planned Degree of Use (%) | G5: Estimated Use Key Plant Species by Weight
G6: 2021 | H6: =G6+1 -> 2022 | I6: =H6+1 -> 2023 | J6: 2024 | K6: 2025 | L6: 2026
A7: =NEW_528_Forage_Balance!G69 -> R1A | B7: =IF(A7=0,"",(NEW_528_Forage_Balance!H69)) -> 305 | C7: Spr/Su/Fall | D7: 1 | E7: Little Bluestem | F7: 0.6 | M7: This form is set up for up to 40 pastures. Hide extra rows and adjust your page breaks before printing for a better final product. (For page breaks, go to view, page break preview and add, move, or remove page breaks.
A8: =NEW_528_Forage_Balance!G70 -> R1B | B8: =IF(A8=0,"",(NEW_528_Forage_Balance!H70)) -> 335 | C8: Spr/Su/Fall | D8: 2 | E8: Little Bluestem | F8: 0.6
A9: =NEW_528_Forage_Balance!G71 -> R2 | B9: =IF(A9=0,"",(NEW_528_Forage_Balance!H71)) -> 320 | C9: Spr/Su/Fall | D9: 3 | E9: Little Bluestem | F9: 0.6
A10: =NEW_528_Forage_Balance!G72 -> R3 | B10: =IF(A10=0,"",(NEW_528_Forage_Balance!H72)) -> 80 | C10: Spr/Su/Fall | D10: 4 | E10: Prairie Sandreed | F10: 0.6
A11: =NEW_528_Forage_Balance!G73 -> R4 | B11: =IF(A11=0,"",(NEW_528_Forage_Balance!H73)) -> 160 | C11: Spr/Su/Fall | D11: 5 | E11: Prairie Sandreed | F11: 0.6
A12: =NEW_528_Forage_Balance!G74 -> R5A | B12: =IF(A12=0,"",(NEW_528_Forage_Balance!H74)) -> 240 | C12: Spr/Su/Fall | D12: 6 | E12: Prairie Sandreed | F12: 0.6
A13: =NEW_528_Forage_Balance!G75 -> R5B | B13: =IF(A13=0,"",(NEW_528_Forage_Balance!H75)) -> 263 | C13: Spr/Su/Fall | D13: 7 | E13: Little Bluestem | F13: 0.6
A14: =NEW_528_Forage_Balance!G76 -> R5C | B14: =IF(A14=0,"",(NEW_528_Forage_Balance!H76)) -> 137 | C14: Spr/Su/Fall | D14: 8 | E14: Blue Grama | F14: 0.6
A15: =NEW_528_Forage_Balance!G77 -> R6 | B15: =IF(A15=0,"",(NEW_528_Forage_Balance!H77)) -> 160 | C15: Spr/Su/Fall | D15: 9 | E15: Big Bluestem | F15: 0.6
A16: =NEW_528_Forage_Balance!G78 -> 0 | B16: =IF(A16=0,"",(NEW_528_Forage_Balance!H78)) -> 
A17: =NEW_528_Forage_Balance!G79 -> 0 | B17: =IF(A17=0,"",(NEW_528_Forage_Balance!H79)) -> 
A18: =NEW_528_Forage_Balance!G80 -> 0 | B18: =IF(A18=0,"",(NEW_528_Forage_Balance!H80)) -> 
A19: =NEW_528_Forage_Balance!G81 -> 0 | B19: =IF(A19=0,"",(NEW_528_Forage_Balance!H81)) -> 
A20: =NEW_528_Forage_Balance!G82 -> 0 | B20: =IF(A20=0,"",(NEW_528_Forage_Balance!H82)) -> 
A21: =NEW_528_Forage_Balance!G83 -> 0 | B21: =IF(A21=0,"",(NEW_528_Forage_Balance!H83)) -> 
A22: =NEW_528_Forage_Balance!G84 -> 0 | B22: =IF(A22=0,"",(NEW_528_Forage_Balance!H84)) -> 
A23: =NEW_528_Forage_Balance!G85 -> 0 | B23: =IF(A23=0,"",(NEW_528_Forage_Balance!H85)) -> 
A24: =NEW_528_Forage_Balance!G86 -> 0 | B24: =IF(A24=0,"",(NEW_528_Forage_Balance!H86)) -> 
A25: =NEW_528_Forage_Balance!G87 -> 0 | B25: =IF(A25=0,"",(NEW_528_Forage_Balance!H87)) -> 
A26: =NEW_528_Forage_Balance!G88 -> 0 | B26: =IF(A26=0,"",(NEW_528_Forage_Balance!H88)) -> 
A27: =NEW_528_Forage_Balance!G89 -> 0 | B27: =IF(A27=0,"",(NEW_528_Forage_Balance!H89)) -> 
A28: =NEW_528_Forage_Balance!G90 -> 0 | B28: =IF(A28=0,"",(NEW_528_Forage_Balance!H90)) -> 
A29: =NEW_528_Forage_Balance!G91 -> 0 | B29: =IF(A29=0,"",(NEW_528_Forage_Balance!H91)) -> 
A30: =NEW_528_Forage_Balance!G92 -> 0 | B30: =IF(A30=0,"",(NEW_528_Forage_Balance!H92)) -> 
A31: =NEW_528_Forage_Balance!G93 -> 0 | B31: =IF(A31=0,"",(NEW_528_Forage_Balance!H93)) -> 
A32: =NEW_528_Forage_Balance!G94 -> 0 | B32: =IF(A32=0,"",(NEW_528_Forage_Balance!H94)) -> 
A33: =NEW_528_Forage_Balance!G95 -> 0 | B33: =IF(A33=0,"",(NEW_528_Forage_Balance!H95)) -> 
A34: =NEW_528_Forage_Balance!G96 -> 0 | B34: =IF(A34=0,"",(NEW_528_Forage_Balance!H96)) -> 
A35: =NEW_528_Forage_Balance!G97 -> 0 | B35: =IF(A35=0,"",(NEW_528_Forage_Balance!H97)) -> 
A36: =NEW_528_Forage_Balance!G98 -> 0 | B36: =IF(A36=0,"",(NEW_528_Forage_Balance!H98)) -> 
A37: =NEW_528_Forage_Balance!G99 -> 0 | B37: =IF(A37=0,"",(NEW_528_Forage_Balance!H99)) -> 
A38: =NEW_528_Forage_Balance!G100 -> 0 | B38: =IF(A38=0,"",(NEW_528_Forage_Balance!H100)) -> 
A39: =NEW_528_Forage_Balance!G101 -> 0 | B39: =IF(A39=0,"",(NEW_528_Forage_Balance!H101)) -> 
A40: =NEW_528_Forage_Balance!G102 -> 0 | B40: =IF(A40=0,"",(NEW_528_Forage_Balance!H102)) -> 
A41: =NEW_528_Forage_Balance!G103 -> 0 | B41: =IF(A41=0,"",(NEW_528_Forage_Balance!H103)) -> 
A42: =NEW_528_Forage_Balance!G104 -> 0 | B42: =IF(A42=0,"",(NEW_528_Forage_Balance!H104)) -> 
A43: =NEW_528_Forage_Balance!G105 -> 0 | B43: =IF(A43=0,"",(NEW_528_Forage_Balance!H105)) -> 
A44: =NEW_528_Forage_Balance!G106 -> 0 | B44: =IF(A44=0,"",(NEW_528_Forage_Balance!H106)) -> 
A45: =NEW_528_Forage_Balance!G107 -> 0 | B45: =IF(A45=0,"",(NEW_528_Forage_Balance!H107)) -> 
A46: =NEW_528_Forage_Balance!G108 -> 0 | B46: =IF(A46=0,"",(NEW_528_Forage_Balance!H108)) -> 
A47: =NEW_528_Forage_Balance!G109 -> 0 | B47: =IF(A47=0,"",(NEW_528_Forage_Balance!H109)) -> 
A48: =NEW_528_Forage_Balance!G110 -> 0 | B48: =IF(A48=0,"",(NEW_528_Forage_Balance!H110)) -> 
A49: =NEW_528_Forage_Balance!G111 -> 0 | B49: =IF(A49=0,"",(NEW_528_Forage_Balance!H111)) -> 
A50: =NEW_528_Forage_Balance!G112 -> 0 | B50: =IF(A50=0,"",(NEW_528_Forage_Balance!H112)) -> 
A51: =NEW_528_Forage_Balance!G113 -> 0 | B51: =IF(A51=0,"",(NEW_528_Forage_Balance!H113)) -> 
A52: =NEW_528_Forage_Balance!G114 -> 0 | B52: =IF(A52=0,"",(NEW_528_Forage_Balance!H114)) -> 
A53: =NEW_528_Forage_Balance!G115 -> 0 | B53: =IF(A53=0,"",(NEW_528_Forage_Balance!H115)) -> 
A54: =NEW_528_Forage_Balance!G116 -> 0 | B54: =IF(A54=0,"",(NEW_528_Forage_Balance!H116)) -> 
A55: =NEW_528_Forage_Balance!G117 -> 0 | B55: =IF(A55=0,"",(NEW_528_Forage_Balance!H117)) -> 
A56: =NEW_528_Forage_Balance!G118 -> 0 | B56: =IF(A56=0,"",(NEW_528_Forage_Balance!H118)) -> 
A57: =NEW_528_Forage_Balance!G119 -> 0 | B57: =IF(A57=0,"",(NEW_528_Forage_Balance!H119)) -> 
A58: =NEW_528_Forage_Balance!G120 -> 0 | B58: =IF(A58=0,"",(NEW_528_Forage_Balance!H120)) -> 
A59: =NEW_528_Forage_Balance!G121 -> 0 | B59: =IF(A59=0,"",(NEW_528_Forage_Balance!H121)) -> 
A60: COMMENTS:
A62: Planned by: | I62: Date:
AJ135: 2.1 Shrubs, Arrowhead, Knotweed-PFP107B

Sheet NE-ECS-414B-min height
A1: CLIENT NAME: | C1: =NEW_528_Forage_Balance!C2 -> Mary Rancher - Sunnyvale Ranch | I1: DATE: | K1: =NEW_528_Forage_Balance!S1 -> 00:00:00 | N1: Use this form or 414A % use to document utilization. Prescribed Grazing Plans must have either this form or 414A % use included with the grazing plan.
A2: CONTRACT NUMBER: | C2: =NEW_528_Forage_Balance!R2 -> 12345K
A3: Residual Plant Height Measured: | F3: Before Killing Frost | I3: After Killing Frost
A5: Field Number | B5: Acres | C5: Key Species | D5: Recommended minimum heights | G5: Record average plant height at end of grazing period or after killing frost. | N5: Check box in front of the appropriate killing frost option
D6: Begin Grazing | E6: End Grazing | F6: Before Killing Frost | G6: 2020 | H6: =G6+1 -> 2021 | I6: =H6+1 -> 2022 | J6: 2023 | K6: 2024 | L6: 2025 | M6: 2026 | N6: Select the predominant key species for each pasture by using the drop down menu. This will populate the begin, end, and before killing frost minimum heights for the key species. Change the year in cell G6 to current year which will autopopulate the rest of the year boxes. The blank cells below the year boxes are for recording observed plant height during field reviews.
A7: =NEW_528_Forage_Balance!G69 -> R1A | B7: =NEW_528_Forage_Balance!H69 -> 305 | C7: Mid Warm Season Native | D7: =IF($C7=0,"",(VLOOKUP($C7,DATA!$E$2:$H$26,2,FALSE))) -> 6 | E7: =IF($C7=0,"",(VLOOKUP($C7,DATA!$E$2:$H$26,3,FALSE))) -> 4 | F7: =IF($C7=0,"",(VLOOKUP($C7,DATA!$E$2:$H$26,4,FALSE))) -> 5
A8: =NEW_528_Forage_Balance!G70 -> R1B | B8: =NEW_528_Forage_Balance!H70 -> 335 | C8: Mid Warm Season Native | D8: =IF($C8=0,"",(VLOOKUP($C8,DATA!$E$2:$H$26,2,FALSE))) -> 6 | E8: =IF($C8=0,"",(VLOOKUP($C8,DATA!$E$2:$H$26,3,FALSE))) -> 4 | F8: =IF($C8=0,"",(VLOOKUP($C8,DATA!$E$2:$H$26,4,FALSE))) -> 5
A9: =NEW_528_Forage_Balance!G71 -> R2 | B9: =NEW_528_Forage_Balance!H71 -> 320 | C9: Mid Warm Season Native | D9: =IF($C9=0,"",(VLOOKUP($C9,DATA!$E$2:$H$26,2,FALSE))) -> 6 | E9: =IF($C9=0,"",(VLOOKUP($C9,DATA!$E$2:$H$26,3,FALSE))) -> 4 | F9: =IF($C9=0,"",(VLOOKUP($C9,DATA!$E$2:$H$26,4,FALSE))) -> 5
A10: =NEW_528_Forage_Balance!G72 -> R3 | B10: =NEW_528_Forage_Balance!H72 -> 80 | C10: Tall Warm Season Native | D10: =IF($C10=0,"",(VLOOKUP($C10,DATA!$E$2:$H$26,2,FALSE))) -> 10 | E10: =IF($C10=0,"",(VLOOKUP($C10,DATA!$E$2:$H$26,3,FALSE))) -> 6 | F10: =IF($C10=0,"",(VLOOKUP($C10,DATA!$E$2:$H$26,4,FALSE))) -> 10
A11: =NEW_528_Forage_Balance!G73 -> R4 | B11: =NEW_528_Forage_Balance!H73 -> 160 | C11: Tall Warm Season Native | D11: =IF($C11=0,"",(VLOOKUP($C11,DATA!$E$2:$H$26,2,FALSE))) -> 10 | E11: =IF($C11=0,"",(VLOOKUP($C11,DATA!$E$2:$H$26,3,FALSE))) -> 6 | F11: =IF($C11=0,"",(VLOOKUP($C11,DATA!$E$2:$H$26,4,FALSE))) -> 10
A12: =NEW_528_Forage_Balance!G74 -> R5A | B12: =NEW_528_Forage_Balance!H74 -> 240 | C12: Tall Warm Season Native | D12: =IF($C12=0,"",(VLOOKUP($C12,DATA!$E$2:$H$26,2,FALSE))) -> 10 | E12: =IF($C12=0,"",(VLOOKUP($C12,DATA!$E$2:$H$26,3,FALSE))) -> 6 | F12: =IF($C12=0,"",(VLOOKUP($C12,DATA!$E$2:$H$26,4,FALSE))) -> 10
A13: =NEW_528_Forage_Balance!G75 -> R5B | B13: =NEW_528_Forage_Balance!H75 -> 263 | C13: Mid Warm Season Native | D13: =IF($C13=0,"",(VLOOKUP($C13,DATA!$E$2:$H$26,2,FALSE))) -> 6 | E13: =IF($C13=0,"",(VLOOKUP($C13,DATA!$E$2:$H$26,3,FALSE))) -> 4 | F13: =IF($C13=0,"",(VLOOKUP($C13,DATA!$E$2:$H$26,4,FALSE))) -> 5
A14: =NEW_528_Forage_Balance!G76 -> R5C | B14: =NEW_528_Forage_Balance!H76 -> 137 | C14: Mid Warm Season Native | D14: =IF($C14=0,"",(VLOOKUP($C14,DATA!$E$2:$H$26,2,FALSE))) -> 6 | E14: =IF($C14=0,"",(VLOOKUP($C14,DATA!$E$2:$H$26,3,FALSE))) -> 4 | F14: =IF($C14=0,"",(VLOOKUP($C14,DATA!$E$2:$H$26,4,FALSE))) -> 5
A15: =NEW_528_Forage_Balance!G77 -> R6 | B15: =NEW_528_Forage_Balance!H77 -> 160 | C15: Big / Sand bluestem | D15: =IF($C15=0,"",(VLOOKUP($C15,DATA!$E$2:$H$26,2,FALSE))) -> 10 | E15: =IF($C15=0,"",(VLOOKUP($C15,DATA!$E$2:$H$26,3,FALSE))) -> 6 | F15: =IF($C15=0,"",(VLOOKUP($C15,DATA!$E$2:$H$26,4,FALSE))) -> 10 | N15: This form is set up for up to 40 pastures. Hide extra rows and adjust your page breaks before printing for a better final product. (For page breaks, go to view, page break preview and add, move, or remove page breaks.
A16: =NEW_528_Forage_Balance!G78 -> 0 | B16: =NEW_528_Forage_Balance!H78 -> 0 | D16: =IF($C16=0,"",(VLOOKUP($C16,DATA!$E$2:$H$26,2,FALSE))) ->  | E16: =IF($C16=0,"",(VLOOKUP($C16,DATA!$E$2:$H$26,3,FALSE))) ->  | F16: =IF($C16=0,"",(VLOOKUP($C16,DATA!$E$2:$H$26,4,FALSE))) -> 
A17: =NEW_528_Forage_Balance!G79 -> 0 | B17: =NEW_528_Forage_Balance!H79 -> 0 | D17: =IF($C17=0,"",(VLOOKUP($C17,DATA!$E$2:$H$26,2,FALSE))) ->  | E17: =IF($C17=0,"",(VLOOKUP($C17,DATA!$E$2:$H$26,3,FALSE))) ->  | F17: =IF($C17=0,"",(VLOOKUP($C17,DATA!$E$2:$H$26,4,FALSE))) -> 
A18: =NEW_528_Forage_Balance!G80 -> 0 | B18: =NEW_528_Forage_Balance!H80 -> 0 | D18: =IF($C18=0,"",(VLOOKUP($C18,DATA!$E$2:$H$26,2,FALSE))) ->  | E18: =IF($C18=0,"",(VLOOKUP($C18,DATA!$E$2:$H$26,3,FALSE))) ->  | F18: =IF($C18=0,"",(VLOOKUP($C18,DATA!$E$2:$H$26,4,FALSE))) -> 
A19: =NEW_528_Forage_Balance!G81 -> 0 | B19: =NEW_528_Forage_Balance!H81 -> 0 | D19: =IF($C19=0,"",(VLOOKUP($C19,DATA!$E$2:$H$26,2,FALSE))) ->  | E19: =IF($C19=0,"",(VLOOKUP($C19,DATA!$E$2:$H$26,3,FALSE))) ->  | F19: =IF($C19=0,"",(VLOOKUP($C19,DATA!$E$2:$H$26,4,FALSE))) -> 
A20: =NEW_528_Forage_Balance!G82 -> 0 | B20: =NEW_528_Forage_Balance!H82 -> 0 | D20: =IF($C20=0,"",(VLOOKUP($C20,DATA!$E$2:$H$26,2,FALSE))) ->  | E20: =IF($C20=0,"",(VLOOKUP($C20,DATA!$E$2:$H$26,3,FALSE))) ->  | F20: =IF($C20=0,"",(VLOOKUP($C20,DATA!$E$2:$H$26,4,FALSE))) -> 
A21: =NEW_528_Forage_Balance!G83 -> 0 | B21: =NEW_528_Forage_Balance!H83 -> 0 | D21: =IF($C21=0,"",(VLOOKUP($C21,DATA!$E$2:$H$26,2,FALSE))) ->  | E21: =IF($C21=0,"",(VLOOKUP($C21,DATA!$E$2:$H$26,3,FALSE))) ->  | F21: =IF($C21=0,"",(VLOOKUP($C21,DATA!$E$2:$H$26,4,FALSE))) -> 
A22: =NEW_528_Forage_Balance!G84 -> 0 | B22: =NEW_528_Forage_Balance!H84 -> 0 | D22: =IF($C22=0,"",(VLOOKUP($C22,DATA!$E$2:$H$26,2,FALSE))) ->  | E22: =IF($C22=0,"",(VLOOKUP($C22,DATA!$E$2:$H$26,3,FALSE))) ->  | F22: =IF($C22=0,"",(VLOOKUP($C22,DATA!$E$2:$H$26,4,FALSE))) -> 
A23: =NEW_528_Forage_Balance!G85 -> 0 | B23: =NEW_528_Forage_Balance!H85 -> 0 | D23: =IF($C23=0,"",(VLOOKUP($C23,DATA!$E$2:$H$26,2,FALSE))) ->  | E23: =IF($C23=0,"",(VLOOKUP($C23,DATA!$E$2:$H$26,3,FALSE))) ->  | F23: =IF($C23=0,"",(VLOOKUP($C23,DATA!$E$2:$H$26,4,FALSE))) -> 
A24: =NEW_528_Forage_Balance!G86 -> 0 | B24: =NEW_528_Forage_Balance!H86 -> 0 | D24: =IF($C24=0,"",(VLOOKUP($C24,DATA!$E$2:$H$26,2,FALSE))) ->  | E24: =IF($C24=0,"",(VLOOKUP($C24,DATA!$E$2:$H$26,3,FALSE))) ->  | F24: =IF($C24=0,"",(VLOOKUP($C24,DATA!$E$2:$H$26,4,FALSE))) -> 
A25: =NEW_528_Forage_Balance!G87 -> 0 | B25: =NEW_528_Forage_Balance!H87 -> 0 | D25: =IF($C25=0,"",(VLOOKUP($C25,DATA!$E$2:$H$26,2,FALSE))) ->  | E25: =IF($C25=0,"",(VLOOKUP($C25,DATA!$E$2:$H$26,3,FALSE))) ->  | F25: =IF($C25=0,"",(VLOOKUP($C25,DATA!$E$2:$H$26,4,FALSE))) -> 
A26: =NEW_528_Forage_Balance!G88 -> 0 | B26: =NEW_528_Forage_Balance!H88 -> 0 | D26: =IF($C26=0,"",(VLOOKUP($C26,DATA!$E$2:$H$26,2,FALSE))) ->  | E26: =IF($C26=0,"",(VLOOKUP($C26,DATA!$E$2:$H$26,3,FALSE))) ->  | F26: =IF($C26=0,"",(VLOOKUP($C26,DATA!$E$2:$H$26,4,FALSE))) -> 
A27: =NEW_528_Forage_Balance!G89 -> 0 | B27: =NEW_528_Forage_Balance!H89 -> 0 | D27: =IF($C27=0,"",(VLOOKUP($C27,DATA!$E$2:$H$26,2,FALSE))) ->  | E27: =IF($C27=0,"",(VLOOKUP($C27,DATA!$E$2:$H$26,3,FALSE))) ->  | F27: =IF($C27=0,"",(VLOOKUP($C27,DATA!$E$2:$H$26,4,FALSE))) -> 
A28: =NEW_528_Forage_Balance!G90 -> 0 | B28: =NEW_528_Forage_Balance!H90 -> 0 | D28: =IF($C28=0,"",(VLOOKUP($C28,DATA!$E$2:$H$26,2,FALSE))) ->  | E28: =IF($C28=0,"",(VLOOKUP($C28,DATA!$E$2:$H$26,3,FALSE))) ->  | F28: =IF($C28=0,"",(VLOOKUP($C28,DATA!$E$2:$H$26,4,FALSE))) -> 
A29: =NEW_528_Forage_Balance!G91 -> 0 | B29: =NEW_528_Forage_Balance!H91 -> 0 | D29: =IF($C29=0,"",(VLOOKUP($C29,DATA!$E$2:$H$26,2,FALSE))) ->  | E29: =IF($C29=0,"",(VLOOKUP($C29,DATA!$E$2:$H$26,3,FALSE))) ->  | F29: =IF($C29=0,"",(VLOOKUP($C29,DATA!$E$2:$H$26,4,FALSE))) -> 
A30: =NEW_528_Forage_Balance!G92 -> 0 | B30: =NEW_528_Forage_Balance!H92 -> 0 | D30: =IF($C30=0,"",(VLOOKUP($C30,DATA!$E$2:$H$26,2,FALSE))) ->  | E30: =IF($C30=0,"",(VLOOKUP($C30,DATA!$E$2:$H$26,3,FALSE))) ->  | F30: =IF($C30=0,"",(VLOOKUP($C30,DATA!$E$2:$H$26,4,FALSE))) -> 
A31: =NEW_528_Forage_Balance!G93 -> 0 | B31: =NEW_528_Forage_Balance!H93 -> 0 | D31: =IF($C31=0,"",(VLOOKUP($C31,DATA!$E$2:$H$26,2,FALSE))) ->  | E31: =IF($C31=0,"",(VLOOKUP($C31,DATA!$E$2:$H$26,3,FALSE))) ->  | F31: =IF($C31=0,"",(VLOOKUP($C31,DATA!$E$2:$H$26,4,FALSE))) -> 
A32: =NEW_528_Forage_Balance!G94 -> 0 | B32: =NEW_528_Forage_Balance!H94 -> 0 | D32: =IF($C32=0,"",(VLOOKUP($C32,DATA!$E$2:$H$26,2,FALSE))) ->  | E32: =IF($C32=0,"",(VLOOKUP($C32,DATA!$E$2:$H$26,3,FALSE))) ->  | F32: =IF($C32=0,"",(VLOOKUP($C32,DATA!$E$2:$H$26,4,FALSE))) -> 
A33: =NEW_528_Forage_Balance!G95 -> 0 | B33: =NEW_528_Forage_Balance!H95 -> 0 | D33: =IF($C33=0,"",(VLOOKUP($C33,DATA!$E$2:$H$26,2,FALSE))) ->  | E33: =IF($C33=0,"",(VLOOKUP($C33,DATA!$E$2:$H$26,3,FALSE))) ->  | F33: =IF($C33=0,"",(VLOOKUP($C33,DATA!$E$2:$H$26,4,FALSE))) -> 
A34: =NEW_528_Forage_Balance!G96 -> 0 | B34: =NEW_528_Forage_Balance!H96 -> 0 | D34: =IF($C34=0,"",(VLOOKUP($C34,DATA!$E$2:$H$26,2,FALSE))) ->  | E34: =IF($C34=0,"",(VLOOKUP($C34,DATA!$E$2:$H$26,3,FALSE))) ->  | F34: =IF($C34=0,"",(VLOOKUP($C34,DATA!$E$2:$H$26,4,FALSE))) -> 
A35: =NEW_528_Forage_Balance!G97 -> 0 | B35: =NEW_528_Forage_Balance!H97 -> 0 | D35: =IF($C35=0,"",(VLOOKUP($C35,DATA!$E$2:$H$26,2,FALSE))) ->  | E35: =IF($C35=0,"",(VLOOKUP($C35,DATA!$E$2:$H$26,3,FALSE))) ->  | F35: =IF($C35=0,"",(VLOOKUP($C35,DATA!$E$2:$H$26,4,FALSE))) -> 
A36: =NEW_528_Forage_Balance!G98 -> 0 | B36: =NEW_528_Forage_Balance!H98 -> 0 | D36: =IF($C36=0,"",(VLOOKUP($C36,DATA!$E$2:$H$26,2,FALSE))) ->  | E36: =IF($C36=0,"",(VLOOKUP($C36,DATA!$E$2:$H$26,3,FALSE))) ->  | F36: =IF($C36=0,"",(VLOOKUP($C36,DATA!$E$2:$H$26,4,FALSE))) -> 
A37: =NEW_528_Forage_Balance!G99 -> 0 | B37: =NEW_528_Forage_Balance!H99 -> 0 | D37: =IF($C37=0,"",(VLOOKUP($C37,DATA!$E$2:$H$26,2,FALSE))) ->  | E37: =IF($C37=0,"",(VLOOKUP($C37,DATA!$E$2:$H$26,3,FALSE))) ->  | F37: =IF($C37=0,"",(VLOOKUP($C37,DATA!$E$2:$H$26,4,FALSE))) -> 
A38: =NEW_528_Forage_Balance!G100 -> 0 | B38: =NEW_528_Forage_Balance!H100 -> 0 | D38: =IF($C38=0,"",(VLOOKUP($C38,DATA!$E$2:$H$26,2,FALSE))) ->  | E38: =IF($C38=0,"",(VLOOKUP($C38,DATA!$E$2:$H$26,3,FALSE))) ->  | F38: =IF($C38=0,"",(VLOOKUP($C38,DATA!$E$2:$H$26,4,FALSE))) -> 
A39: =NEW_528_Forage_Balance!G101 -> 0 | B39: =NEW_528_Forage_Balance!H101 -> 0 | D39: =IF($C39=0,"",(VLOOKUP($C39,DATA!$E$2:$H$26,2,FALSE))) ->  | E39: =IF($C39=0,"",(VLOOKUP($C39,DATA!$E$2:$H$26,3,FALSE))) ->  | F39: =IF($C39=0,"",(VLOOKUP($C39,DATA!$E$2:$H$26,4,FALSE))) -> 
A40: =NEW_528_Forage_Balance!G102 -> 0 | B40: =NEW_528_Forage_Balance!H102 -> 0 | D40: =IF($C40=0,"",(VLOOKUP($C40,DATA!$E$2:$H$26,2,FALSE))) ->  | E40: =IF($C40=0,"",(VLOOKUP($C40,DATA!$E$2:$H$26,3,FALSE))) ->  | F40: =IF($C40=0,"",(VLOOKUP($C40,DATA!$E$2:$H$26,4,FALSE))) -> 
A41: =NEW_528_Forage_Balance!G103 -> 0 | B41: =NEW_528_Forage_Balance!H103 -> 0 | D41: =IF($C41=0,"",(VLOOKUP($C41,DATA!$E$2:$H$26,2,FALSE))) ->  | E41: =IF($C41=0,"",(VLOOKUP($C41,DATA!$E$2:$H$26,3,FALSE))) ->  | F41: =IF($C41=0,"",(VLOOKUP($C41,DATA!$E$2:$H$26,4,FALSE))) -> 
A42: =NEW_528_Forage_Balance!G104 -> 0 | B42: =NEW_528_Forage_Balance!H104 -> 0 | D42: =IF($C42=0,"",(VLOOKUP($C42,DATA!$E$2:$H$26,2,FALSE))) ->  | E42: =IF($C42=0,"",(VLOOKUP($C42,DATA!$E$2:$H$26,3,FALSE))) ->  | F42: =IF($C42=0,"",(VLOOKUP($C42,DATA!$E$2:$H$26,4,FALSE))) -> 
A43: =NEW_528_Forage_Balance!G105 -> 0 | B43: =NEW_528_Forage_Balance!H105 -> 0 | D43: =IF($C43=0,"",(VLOOKUP($C43,DATA!$E$2:$H$26,2,FALSE))) ->  | E43: =IF($C43=0,"",(VLOOKUP($C43,DATA!$E$2:$H$26,3,FALSE))) ->  | F43: =IF($C43=0,"",(VLOOKUP($C43,DATA!$E$2:$H$26,4,FALSE))) -> 
A44: =NEW_528_Forage_Balance!G106 -> 0 | B44: =NEW_528_Forage_Balance!H106 -> 0 | D44: =IF($C44=0,"",(VLOOKUP($C44,DATA!$E$2:$H$26,2,FALSE))) ->  | E44: =IF($C44=0,"",(VLOOKUP($C44,DATA!$E$2:$H$26,3,FALSE))) ->  | F44: =IF($C44=0,"",(VLOOKUP($C44,DATA!$E$2:$H$26,4,FALSE))) -> 
A45: =NEW_528_Forage_Balance!G107 -> 0 | B45: =NEW_528_Forage_Balance!H107 -> 0 | D45: =IF($C45=0,"",(VLOOKUP($C45,DATA!$E$2:$H$26,2,FALSE))) ->  | E45: =IF($C45=0,"",(VLOOKUP($C45,DATA!$E$2:$H$26,3,FALSE))) ->  | F45: =IF($C45=0,"",(VLOOKUP($C45,DATA!$E$2:$H$26,4,FALSE))) -> 
A46: =NEW_528_Forage_Balance!G108 -> 0 | B46: =NEW_528_Forage_Balance!H108 -> 0 | D46: =IF($C46=0,"",(VLOOKUP($C46,DATA!$E$2:$H$26,2,FALSE))) ->  | E46: =IF($C46=0,"",(VLOOKUP($C46,DATA!$E$2:$H$26,3,FALSE))) ->  | F46: =IF($C46=0,"",(VLOOKUP($C46,DATA!$E$2:$H$26,4,FALSE))) -> 
A47: =NEW_528_Forage_Balance!G109 -> 0 | B47: =NEW_528_Forage_Balance!H109 -> 0 | D47: =IF($C47=0,"",(VLOOKUP($C47,DATA!$E$2:$H$26,2,FALSE))) ->  | E47: =IF($C47=0,"",(VLOOKUP($C47,DATA!$E$2:$H$26,3,FALSE))) ->  | F47: =IF($C47=0,"",(VLOOKUP($C47,DATA!$E$2:$H$26,4,FALSE))) -> 
A48: =NEW_528_Forage_Balance!G110 -> 0 | B48: =NEW_528_Forage_Balance!H110 -> 0 | D48: =IF($C48=0,"",(VLOOKUP($C48,DATA!$E$2:$H$26,2,FALSE))) ->  | E48: =IF($C48=0,"",(VLOOKUP($C48,DATA!$E$2:$H$26,3,FALSE))) ->  | F48: =IF($C48=0,"",(VLOOKUP($C48,DATA!$E$2:$H$26,4,FALSE))) -> 
A49: =NEW_528_Forage_Balance!G111 -> 0 | B49: =NEW_528_Forage_Balance!H111 -> 0 | D49: =IF($C49=0,"",(VLOOKUP($C49,DATA!$E$2:$H$26,2,FALSE))) ->  | E49: =IF($C49=0,"",(VLOOKUP($C49,DATA!$E$2:$H$26,3,FALSE))) ->  | F49: =IF($C49=0,"",(VLOOKUP($C49,DATA!$E$2:$H$26,4,FALSE))) -> 
A50: =NEW_528_Forage_Balance!G112 -> 0 | B50: =NEW_528_Forage_Balance!H112 -> 0 | D50: =IF($C50=0,"",(VLOOKUP($C50,DATA!$E$2:$H$26,2,FALSE))) ->  | E50: =IF($C50=0,"",(VLOOKUP($C50,DATA!$E$2:$H$26,3,FALSE))) ->  | F50: =IF($C50=0,"",(VLOOKUP($C50,DATA!$E$2:$H$26,4,FALSE))) -> 
A51: =NEW_528_Forage_Balance!G113 -> 0 | B51: =NEW_528_Forage_Balance!H113 -> 0 | D51: =IF($C51=0,"",(VLOOKUP($C51,DATA!$E$2:$H$26,2,FALSE))) ->  | E51: =IF($C51=0,"",(VLOOKUP($C51,DATA!$E$2:$H$26,3,FALSE))) ->  | F51: =IF($C51=0,"",(VLOOKUP($C51,DATA!$E$2:$H$26,4,FALSE))) -> 
A52: =NEW_528_Forage_Balance!G114 -> 0 | B52: =NEW_528_Forage_Balance!H114 -> 0 | D52: =IF($C52=0,"",(VLOOKUP($C52,DATA!$E$2:$H$26,2,FALSE))) ->  | E52: =IF($C52=0,"",(VLOOKUP($C52,DATA!$E$2:$H$26,3,FALSE))) ->  | F52: =IF($C52=0,"",(VLOOKUP($C52,DATA!$E$2:$H$26,4,FALSE))) -> 
A53: =NEW_528_Forage_Balance!G115 -> 0 | B53: =NEW_528_Forage_Balance!H115 -> 0 | D53: =IF($C53=0,"",(VLOOKUP($C53,DATA!$E$2:$H$26,2,FALSE))) ->  | E53: =IF($C53=0,"",(VLOOKUP($C53,DATA!$E$2:$H$26,3,FALSE))) ->  | F53: =IF($C53=0,"",(VLOOKUP($C53,DATA!$E$2:$H$26,4,FALSE))) -> 
A54: =NEW_528_Forage_Balance!G116 -> 0 | B54: =NEW_528_Forage_Balance!H116 -> 0 | D54: =IF($C54=0,"",(VLOOKUP($C54,DATA!$E$2:$H$26,2,FALSE))) ->  | E54: =IF($C54=0,"",(VLOOKUP($C54,DATA!$E$2:$H$26,3,FALSE))) ->  | F54: =IF($C54=0,"",(VLOOKUP($C54,DATA!$E$2:$H$26,4,FALSE))) -> 
A55: =NEW_528_Forage_Balance!G117 -> 0 | B55: =NEW_528_Forage_Balance!H117 -> 0 | D55: =IF($C55=0,"",(VLOOKUP($C55,DATA!$E$2:$H$26,2,FALSE))) ->  | E55: =IF($C55=0,"",(VLOOKUP($C55,DATA!$E$2:$H$26,3,FALSE))) ->  | F55: =IF($C55=0,"",(VLOOKUP($C55,DATA!$E$2:$H$26,4,FALSE))) -> 
A56: =NEW_528_Forage_Balance!G118 -> 0 | B56: =NEW_528_Forage_Balance!H118 -> 0 | D56: =IF($C56=0,"",(VLOOKUP($C56,DATA!$E$2:$H$26,2,FALSE))) ->  | E56: =IF($C56=0,"",(VLOOKUP($C56,DATA!$E$2:$H$26,3,FALSE))) ->  | F56: =IF($C56=0,"",(VLOOKUP($C56,DATA!$E$2:$H$26,4,FALSE))) -> 
A57: =NEW_528_Forage_Balance!G119 -> 0 | B57: =NEW_528_Forage_Balance!H119 -> 0 | D57: =IF($C57=0,"",(VLOOKUP($C57,DATA!$E$2:$H$26,2,FALSE))) ->  | E57: =IF($C57=0,"",(VLOOKUP($C57,DATA!$E$2:$H$26,3,FALSE))) ->  | F57: =IF($C57=0,"",(VLOOKUP($C57,DATA!$E$2:$H$26,4,FALSE))) -> 
A58: =NEW_528_Forage_Balance!G120 -> 0 | B58: =NEW_528_Forage_Balance!H120 -> 0 | D58: =IF($C58=0,"",(VLOOKUP($C58,DATA!$E$2:$H$26,2,FALSE))) ->  | E58: =IF($C58=0,"",(VLOOKUP($C58,DATA!$E$2:$H$26,3,FALSE))) ->  | F58: =IF($C58=0,"",(VLOOKUP($C58,DATA!$E$2:$H$26,4,FALSE))) -> 
A59: =NEW_528_Forage_Balance!G121 -> 0 | B59: =NEW_528_Forage_Balance!H121 -> 0 | D59: =IF($C59=0,"",(VLOOKUP($C59,DATA!$E$2:$H$26,2,FALSE))) ->  | E59: =IF($C59=0,"",(VLOOKUP($C59,DATA!$E$2:$H$26,3,FALSE))) ->  | F59: =IF($C59=0,"",(VLOOKUP($C59,DATA!$E$2:$H$26,4,FALSE))) -> 
D60: Date of Field Visit:
D61: Observer (Initials):
A62: * See NE Field Office Technical Guide, Section IV, 528 - Prescribed Grazing Specifications, Table 4.
A63: ** A killing frost can be defined as "when temperatures drop below 32 degrees F. for an extended period of time (usually several hours) such that will kill vegetation." Temperature and duration will vary with plant species, as some plant species are more frost tolerant.
AL135: 2.1 Shrubs, Arrowhead, Knotweed-PFP107B

Sheet NE-ECS-12_App_Trend_Range
A1: Client Name: | D1: Contract Number: | F1: Date:
A2: Ecological Site: | D2: Pasture/Field Number: | F2: MLRA:
A3: Reference Plant Community: | D3: GPS Coordinates:
A4: Current Precipitation (Normal, Above, Below): | D4: Trend Type (Range or Planned):
A6: When making trend estimates, always compare present conditions to what can be expected to be found in the plant community that you are comparing present conditions to; either the historic or interpretive plant community (Rangeland Trend) or one of the other plant communities (Planned Trend) described in the ecological site description. Take into consideration current weather conditions and the impact on plant growth and other plant related attributes.
A7: INDICATOR | B7: Description of Indicator and Appropriate Point Values | G7: ASSIGNED SCORE
A8: Composition Changes | B8: 2 Points | C8: 1 point | D8: 0 Points | E8: - 1 Point | F8: -2 Points
A9: Evaluate the composition of the plant community and compare it to ESD communities. | B9: No invading undesirable plants present, desirable key species very abundant. | C9: Slight presence of invading undesirables, desirable key species abundant. | D9: Moderate presence of invading undesirables, average abundance of desirable key species. | E9: Numerous invading undesirables, few desirable key species present. | F9: Extreme presence of invading undesirables, very few desirable key species.
A10: Abundance of Seedlings and Young Plants | B10: 2 Points | C10: 1 point | D10: 0 Points | E10: - 1 Point | F10: -2 Points
A12: Evaluate the number of new seedlings and tillers of desirable species present. | B12: Seedlings & young desired plants very abundant. | C12: Seedlings & young desired plants abundant. | D12: Average abundance of seedlings & young desired plants. | E12: Few seedlings & young desired plants. | F12: Very few seedlings and young desired plants.
A13: Plant Residue & Litter | B13: 2 Points | C13: 1 point | D13: 0 Points | E13: - 1 Point | F13: -2 Points
A14: Evaluate the amount of litter and plant residues and how well they are decomposing as compared to what is expected for the site. | B14: Litter present in amounts considered normal for the site. | C14: Litter present in amounts slightly less or slightly more than considered normal. | D14: Litter present in amounts moderately less or moderately more than considered normal. | E14: Litter present or absent in moderate to extreme amounts when compared to what is considered normal. | F14: Litter not present or present in extreme amounts when compared to what is considered normal.
A15: Plant Vigor | B15: 2 Points | C15: 1 point | D15: 0 Points | E15: - 1 Point | F15: -2 Points
A16: Evaluate plant decadence, plant spacing, reproduction, plant stature, leaf size, productivity, etc., of desirable species. | B16: Vigor of desirable species is very high. | C16: Vigor of desirable species is high. | D16: Vigor of desirable species is average. | E16: Vigor of desirable species is poor. | F16: Vigor of desirable species is extremely poor.
A17: Condition of the Soil Surface | B17: 2 Points | C17: 1 point | D17: 0 Points | E17: - 1 Point | F17: -2 Points
A18: Evaluate wind, sheet, rill, gully and streambank erosion as well as the amount of exposed soil surface. Compare to what is expected for the site. | B18: No apparent erosion, percent bare ground is what is expected for the site. | C18: Erosion is slight, percent bare ground is slightly higher than what is expected for the site. | D18: Erosion is moderate, percent bare ground is moderately higher than what is expected for the site. | E18: Erosion is moderate to extreme, percent bare ground is moderately to extremely higher than what is expected for the site. | F18: Erosion is extreme, percent bare ground is extreme when compared to what is expected for the site.
A19: TOTAL SCORE - Sum of all columns indicates apparent trend: | G19: =IF(G18=0,"",(SUM(G9:G18))) -> 
A20: Range Trend Rating:
A21: Range Trend Ratings: If total score is < 3, then rating is toward the reference community; if total score is 0-3, then rating is not apparent, and if total score is > 0 rating is away from the reference community.
AM96: 2.1 Shrubs, Arrowhead, Knotweed-PFP107B

Sheet NE-ECS-13_Past Score
A1: Client Name: | E1: Date of Evaluation:
A2: Evaluator: | E2: Pasture ID:
A3: Soil Map Unit, Ecological Site and/or Forage Suitability Group: | E3: Livestock Type:
A4: Current Season Precipitation (Above Normal, Normal, Below Normal):
A5: Seasonal Temperature Trend (Above Normal, Normal, Below Normal):
A7: Evaluate the present plant community and rate each indicator based on your observations. Ratings for each category may range from 1 to 5 Sum the indicator scores to determine overall pasture condition.
A8: Indicator | B8: 1 Point | C8: 2 Points | D8: 3 Points | E8: 4 Points | F8: 5 Points | G8: Score
A9: Percent desirable plants* Dry weight. Desirable based on livestock type. | B9: Desirable species <20% of stand. | C9: Desirable species 20 - 40% of stand. | D9: Desirable species 41-60% of stand. | E9: Desirable species 61-80% of stand. | F9: Desirable species exceed 80% of stand.
A10: Percent Legume by Dry Weight | B10: <5% legumes OR > 50% bloating legumes | C10: 5 - 10% legumes OR > 40% bloating legumes | D10: 11-20% legumes | E10: 21-30% legumes | F10: 31-40% legumes. No grass loss; grass may be increasing.
A11: Live Plant Cover (includes dormant) | B11: Less than 40% is live leaf canopy. Remaining is either dead standing material or bare ground. | C11: 40-65% is live leaf canopy. Remaining is either dead standing material or bare ground. | D11: 66-80% is live leaf canopy. Remaining is either dead standing material or bare ground. | E11: 81-95% is live leaf canopy. Remaining is either dead standing material or bare ground. | F11: More than 95% is live leaf canopy. Remaining is either dead standing material or bare ground.
A12: Plant Diversity by Dry Weight (*See footnote at bottom of page) | B12: Diversity: Very Low | C12: Diversity: Low | D12: Diversity: Moderate | E12: Diversity: High | F12: Diversity: Very High
B13: < 50% desirable species OR | C13: 2 dominant desirable species in 1 functional group OR | D13: 3 dominant desirable species in 1 functional group OR | E13: 4 dominant desirable species in 2 functional groups OR | F13: 4 dominant desirable species in 3 functional groups OR
B14: 1 dominant desirable species in 1 functional group OR | C14: 2 functional groups each represented by minor species totaling > 15%. | D14: 2-3 dominant desirable species in 2 functional groups OR | E14: 3 dominant desirable species in 3 functional groups OR | F14: 4 dominant desirable species in 2 functional groups AND
B15: No dominant desirable species and all minor species in each functional group totaling <15%, | D15: 3 functional groups each represented by minor species totaling > 15%. | E15: 3 dominant desirable species in 2 functional groups AND 1 additional functional group represented by minor species totaling > 15%. | F15: 1 additional functional group represented by minor species totaling > 15%.
A16: Plant Residue and Litter as Soil Cover (pull back canopy) | B16: Bare soil is very easily seen; | C16: Openings of bare soil can be seen fairly easily; | D16: Small openings of bare soil can be seen, but minimal; | E16: No bare soil is easily seen; | F16: No bare soil is seen;
B17: There is <20% cover on the soil surface or it is excessive and slow to break down. | C17: Soil cover is 21-40% | D17: Soil cover is 41-60% | E17: Soil cover is 61-80% | F17: Soil cover is >80% with good biological activity and decomposition of older residue.
A18: Grazing Utilization and Severity | B18: Pasture is overgrazed throughout. | C18: Pasture consists primarily of overgrazed and/or refused areas (former dung areas, older plants, undesired plants). | D18: Pastures show uneven grazing throughout with heavier grazing near water or feeding areas, or distinct zone grazing. | E18: Pasture grazed evenly throughout with minimal overgrazing with some under grazed small areas and heavier use near water sources. | F18: Pasture grazed evenly throughout with no overgrazing.
A19: Livestock Concentration Areas (if field is <1 acre see ** footnote) | B19: Livestock concentration areas are within 100 feet of, or are a direct conveyance to surface water, and cover more than 0.1 acre (including trails). | C19: Livestock concentration areas are within 100 feet of, or are a direct conveyance to surface water, and cover less than 0.1 acre (including trails). | D19: Livestock concentration areas are farther than 100 feet from and are not a direct conveyance to surface water, and cover more than 0.1 acre (including trails). | E19: Livestock concentration areas are farther than 100 feet from and are not a direct conveyance to surface water, and cover less than 0.1 acre (including trails). | F19: Livestock concentration areas, including trails are not present.
A20: *Use NRCS Nebraska desirable plant list for livestock species (FOTG>Section II> Pasture Condition Score). Functional groups are as appropriate for our state (rhizomatous, cool-season grasses, cool-season bunch grasses, legumes, warm-season grasses, non-leguminous forbs).
A21: Any time there are more undesirables than desirables, the answer will be 1 point. Desirable species must total more than 50% of the total biomass. Dominant species are > 15%. Functional groups must be > 15% of stand to be counted.
A22: Soil Compaction and Soil Regenerative Features ***See footnote at bottom of page. | B22: Compaction: Dense or thick platy layer very distinct; | C22: Compaction: Dense or moderate platy layer noticeable; | D22: Compaction: Thin dense or platy layer still present; | E22: Compaction: Minor dense or platy layer; good aggregates common (crumbly soil); | F22: Compaction: No dense or platy layers; crumbly soil throughout;
B23: Roots: Dominantly horizontal; most shallow and/or sparse; | C23: Roots: Numerous horizontal; moderate amount, shallow and/or sparse; | D23: Roots: Some horizontal with increasing downward; | E23: Roots: Few horizontal, more downward through the soil profile; | F23: Roots: Abundant growth primarily downward through the soil profile;
B24: Color: Surface horizon same as subsoil; | D24: Color: Surface horizon moderately darker than subsoil; | F24: Color: Surface horizon dramatically darker than subsoil;
B25: Soil Life: Few or no signs. | C25: Soil Life: Signs scattered in surface layer. | D25: Soil Life: Signs scattered throughout. | E25: Soil Life: Signs numerous throughout. | F25: Soil Life: Signs abundant throughout.
A26: Plant Vigor | B26: No plant recovery after grazing / harvest. Pale, yellow or brown, or severe stunting of desirable forage. | C26: Some recovery. Yellowish green forage, or moderately or slight stunting of desirable forage. | D26: Adequate recovery of desirable forage. Yellowish and dark green areas due to manure and urine patches. | E26: Good recovery of desirable forage. Light green and dark green forage present. | F26: Rapid recovery of desirable forage. All healthy green forage.
A27: Erosion (Circle all that apply; the overall indicator score will be the lowest rating indicated). | B27: Sheet and Rill: Plant density is insufficient to stop runoff, with poor infiltration. Erosion easily visible throughout pasture; | C27: Sheet and Rill: Plant density slows runoff. Erosion present and easily seen on steeper terrain. | D27: Sheet and Rill: Plant density good and runoff moderate. If present, erosion concentrated on heavily used areas; | E27: Sheet and Rill: Plant density high, runoff low, good infiltration. May have evidence of past erosion if present; | F27: Sheet and Rill: Plant density high, no runoff, good infiltration. No evidence of present or past erosion.
B28: Wind: Severe scoured areas and deposition throughout; | C28: Wind: Scoured areas common, deposition effecting plants; | D28: Wind: Occasional scoured areas, litter windrolled; | E28: Wind: Minimal soil exposed, some detached vegetation windrolled, minor plant damage; | F28: Wind: No exposed soil;
B29: Streambank and/or Shoreline: Banks bare, major sloughing, no bank vegetation; | C29: Streambank and/or Shoreline: More than half the bank vegetation trampled; sloughing. | D29: Streambank and/or Shoreline: Less than half the bank vegetation trampled; eroding at crossing / entrances. | E29: Streambank and/or Shoreline: Eroding at crossings and entrances; all bank vegetation is intact and banks are stable. | F29: Streambank and/or Shoreline: Vegetation is intact and banks are stable, hardened crossings and alternative water sources used;
B30: Gully: Very large mass movement, caving sides. | C30: Gully: Advancing upslope, increasing fingering extensions. | D30: Gully: Not all active, but extensions present. | E30: Gully: Stable with vegetative cover. | F30: Gully: None, drainage ways vegetative.
A31: **If field size is less than 1 acre use 10% of the field size in place of 0.1 acre. | F31: OVERALL PASTURE CONDITION SCORE: | G31: =IF(G9=0,"",(SUM(G9:G11,G12,G16,G18,G19,G22,G26,G27))) -> 
A32: ***Use a shovel. Root and Compaction subindicators are primary and should be considered first. Soil color and soil life are secondary subindicators which can be considered when applicable.
A34: OVERALL PASTURE CONDITION SCORE | B34: INDIVIDUAL INDICATOR SCORE | C34: MANAGEMENT CHANGE SUGGESTED
A36: 45 to 50 | B36: 5 | C36: No changes in management needed at this time.
A37: 35 to 45 | B37: 4 | C37: Minor changes would enhance, do most beneficial first.
A38: 25 to 35 | B38: 3 | C38: Improvements would benefit productivity and/or environment.
A39: 15 to 25 | B39: 2 | C39: Needs immediate management changes, high return likely.
A40: 10 to 15 | B40: 1 | C40: Major effort required in time, management, and expense.
A42: COMMENTS:
Y113: 2.1 Shrubs, Arrowhead, Knotweed-PFP107B

Sheet NE-ECS-64_Actual Use Report
A1: CLIENT: | B1: =NEW_528_Forage_Balance!C2 -> Mary Rancher - Sunnyvale Ranch | E1: CONTRACT NUMBER: | H1: =NEW_528_Forage_Balance!R2 -> 12345K | K1: DATE:
N2: Use this sheet to document actual grazing use; when producer is receiving a payment for prescribed grazing. This form or an equivalent method of documentation is needed before payment is made
A4: Pasture Number | B4: Pasture Name or Legal Description | C4: Acres | D4: Livestock Class | E4: Number Animals | F4: AU / Animal | G4: Turn in Date | H4: Take out Date | I4: Total Days Grazed | J4: Total Months | K4: AUM or AUD Available | L4: AUM or AUD Removed | M4: Difference
A5: =NEW_528_Forage_Balance!G69 -> R1A | C5: =IF(A5=0,"",(NEW_528_Forage_Balance!H69)) -> 305 | I5: =IF(H5=0,"",(_xlfn.DAYS(H5,G5))) ->  | J5: =IF(H5=0,"",(I5/30.4)) ->  | K5: =IF(A5=0,"",(NEW_528_Forage_Balance!L69)) -> 115 | L5: =IF(H5=0,"",(E5*F5*J5)) ->  | M5: =IF(H5=0,"",(K5-L5)) -> 
A6: =NEW_528_Forage_Balance!G70 -> R1B | C6: =IF(A6=0,"",(NEW_528_Forage_Balance!H70)) -> 335 | I6: =IF(H6=0,"",(_xlfn.DAYS(H6,G6))) ->  | J6: =IF(H6=0,"",(I6/30.4)) ->  | K6: =IF(A6=0,"",(NEW_528_Forage_Balance!L70)) -> 92 | L6: =IF(H6=0,"",(E6*F6*J6)) ->  | M6: =IF(H6=0,"",(K6-L6)) -> 
A7: =NEW_528_Forage_Balance!G71 -> R2 | C7: =IF(A7=0,"",(NEW_528_Forage_Balance!H71)) -> 320 | K7: =IF(A7=0,"",(NEW_528_Forage_Balance!L71)) -> 122
A8: =NEW_528_Forage_Balance!G72 -> R3 | C8: =IF(A8=0,"",(NEW_528_Forage_Balance!H72)) -> 80 | K8: =IF(A8=0,"",(NEW_528_Forage_Balance!L72)) -> 35
A9: =NEW_528_Forage_Balance!G73 -> R4 | C9: =IF(A9=0,"",(NEW_528_Forage_Balance!H73)) -> 160 | K9: =IF(A9=0,"",(NEW_528_Forage_Balance!L73)) -> 58
A10: =NEW_528_Forage_Balance!G74 -> R5A | C10: =IF(A10=0,"",(NEW_528_Forage_Balance!H74)) -> 240 | K10: =IF(A10=0,"",(NEW_528_Forage_Balance!L74)) -> 66 | N10: This sheet is made for 40 pastures. Hide unused rows to clean up the printout.
A11: =NEW_528_Forage_Balance!G75 -> R5B | C11: =IF(A11=0,"",(NEW_528_Forage_Balance!H75)) -> 263 | K11: =IF(A11=0,"",(NEW_528_Forage_Balance!L75)) -> 106
A12: =NEW_528_Forage_Balance!G76 -> R5C | C12: =IF(A12=0,"",(NEW_528_Forage_Balance!H76)) -> 137 | K12: =IF(A12=0,"",(NEW_528_Forage_Balance!L76)) -> 29
A13: =NEW_528_Forage_Balance!G77 -> R6 | C13: =IF(A13=0,"",(NEW_528_Forage_Balance!H77)) -> 160 | K13: =IF(A13=0,"",(NEW_528_Forage_Balance!L77)) -> 90
A14: =NEW_528_Forage_Balance!G78 -> 0 | C14: =IF(A14=0,"",(NEW_528_Forage_Balance!H78)) ->  | K14: =IF(A14=0,"",(NEW_528_Forage_Balance!L78)) -> 
A15: =NEW_528_Forage_Balance!G79 -> 0 | C15: =IF(A15=0,"",(NEW_528_Forage_Balance!H79)) ->  | K15: =IF(A15=0,"",(NEW_528_Forage_Balance!L79)) -> 
A16: =NEW_528_Forage_Balance!G80 -> 0 | C16: =IF(A16=0,"",(NEW_528_Forage_Balance!H80)) ->  | K16: =IF(A16=0,"",(NEW_528_Forage_Balance!L80)) -> 
A17: =NEW_528_Forage_Balance!G81 -> 0 | C17: =IF(A17=0,"",(NEW_528_Forage_Balance!H81)) ->  | K17: =IF(A17=0,"",(NEW_528_Forage_Balance!L81)) -> 
A18: =NEW_528_Forage_Balance!G82 -> 0 | C18: =IF(A18=0,"",(NEW_528_Forage_Balance!H82)) ->  | K18: =IF(A18=0,"",(NEW_528_Forage_Balance!L82)) -> 
A19: =NEW_528_Forage_Balance!G83 -> 0 | C19: =IF(A19=0,"",(NEW_528_Forage_Balance!H83)) ->  | K19: =IF(A19=0,"",(NEW_528_Forage_Balance!L83)) -> 
A20: =NEW_528_Forage_Balance!G84 -> 0 | C20: =IF(A20=0,"",(NEW_528_Forage_Balance!H84)) ->  | K20: =IF(A20=0,"",(NEW_528_Forage_Balance!L84)) -> 
A21: =NEW_528_Forage_Balance!G85 -> 0 | C21: =IF(A21=0,"",(NEW_528_Forage_Balance!H85)) ->  | K21: =IF(A21=0,"",(NEW_528_Forage_Balance!L85)) -> 
A22: =NEW_528_Forage_Balance!G86 -> 0 | C22: =IF(A22=0,"",(NEW_528_Forage_Balance!H86)) ->  | K22: =IF(A22=0,"",(NEW_528_Forage_Balance!L86)) -> 
A23: =NEW_528_Forage_Balance!G87 -> 0 | C23: =IF(A23=0,"",(NEW_528_Forage_Balance!H87)) ->  | K23: =IF(A23=0,"",(NEW_528_Forage_Balance!L87)) -> 
A24: =NEW_528_Forage_Balance!G88 -> 0 | C24: =IF(A24=0,"",(NEW_528_Forage_Balance!H88)) ->  | K24: =IF(A24=0,"",(NEW_528_Forage_Balance!L88)) -> 
A25: =NEW_528_Forage_Balance!G89 -> 0 | C25: =IF(A25=0,"",(NEW_528_Forage_Balance!H89)) ->  | K25: =IF(A25=0,"",(NEW_528_Forage_Balance!L89)) -> 
A26: =NEW_528_Forage_Balance!G90 -> 0 | C26: =IF(A26=0,"",(NEW_528_Forage_Balance!H90)) ->  | K26: =IF(A26=0,"",(NEW_528_Forage_Balance!L90)) -> 
A27: =NEW_528_Forage_Balance!G91 -> 0 | C27: =IF(A27=0,"",(NEW_528_Forage_Balance!H91)) ->  | K27: =IF(A27=0,"",(NEW_528_Forage_Balance!L91)) -> 
A28: =NEW_528_Forage_Balance!G92 -> 0 | C28: =IF(A28=0,"",(NEW_528_Forage_Balance!H92)) ->  | K28: =IF(A28=0,"",(NEW_528_Forage_Balance!L92)) -> 
A29: =NEW_528_Forage_Balance!G93 -> 0 | C29: =IF(A29=0,"",(NEW_528_Forage_Balance!H93)) ->  | K29: =IF(A29=0,"",(NEW_528_Forage_Balance!L93)) -> 
A30: =NEW_528_Forage_Balance!G94 -> 0 | C30: =IF(A30=0,"",(NEW_528_Forage_Balance!H94)) ->  | K30: =IF(A30=0,"",(NEW_528_Forage_Balance!L94)) -> 
A31: =NEW_528_Forage_Balance!G95 -> 0 | C31: =IF(A31=0,"",(NEW_528_Forage_Balance!H95)) ->  | K31: =IF(A31=0,"",(NEW_528_Forage_Balance!L95)) -> 
A32: =NEW_528_Forage_Balance!G96 -> 0 | C32: =IF(A32=0,"",(NEW_528_Forage_Balance!H96)) ->  | K32: =IF(A32=0,"",(NEW_528_Forage_Balance!L96)) -> 
A33: =NEW_528_Forage_Balance!G97 -> 0 | C33: =IF(A33=0,"",(NEW_528_Forage_Balance!H97)) ->  | K33: =IF(A33=0,"",(NEW_528_Forage_Balance!L97)) -> 
A34: =NEW_528_Forage_Balance!G98 -> 0 | C34: =IF(A34=0,"",(NEW_528_Forage_Balance!H98)) ->  | K34: =IF(A34=0,"",(NEW_528_Forage_Balance!L98)) -> 
A35: =NEW_528_Forage_Balance!G99 -> 0 | C35: =IF(A35=0,"",(NEW_528_Forage_Balance!H99)) ->  | K35: =IF(A35=0,"",(NEW_528_Forage_Balance!L99)) -> 
A36: =NEW_528_Forage_Balance!G100 -> 0 | C36: =IF(A36=0,"",(NEW_528_Forage_Balance!H100)) ->  | K36: =IF(A36=0,"",(NEW_528_Forage_Balance!L100)) -> 
A37: =NEW_528_Forage_Balance!G101 -> 0 | C37: =IF(A37=0,"",(NEW_528_Forage_Balance!H101)) ->  | K37: =IF(A37=0,"",(NEW_528_Forage_Balance!L101)) -> 
A38: =NEW_528_Forage_Balance!G102 -> 0 | C38: =IF(A38=0,"",(NEW_528_Forage_Balance!H102)) ->  | K38: =IF(A38=0,"",(NEW_528_Forage_Balance!L102)) -> 
A39: =NEW_528_Forage_Balance!G103 -> 0 | C39: =IF(A39=0,"",(NEW_528_Forage_Balance!H103)) ->  | K39: =IF(A39=0,"",(NEW_528_Forage_Balance!L103)) -> 
A40: =NEW_528_Forage_Balance!G104 -> 0 | C40: =IF(A40=0,"",(NEW_528_Forage_Balance!H104)) ->  | K40: =IF(A40=0,"",(NEW_528_Forage_Balance!L104)) -> 
A41: =NEW_528_Forage_Balance!G105 -> 0 | C41: =IF(A41=0,"",(NEW_528_Forage_Balance!H105)) ->  | K41: =IF(A41=0,"",(NEW_528_Forage_Balance!L105)) -> 
A42: =NEW_528_Forage_Balance!G106 -> 0 | C42: =IF(A42=0,"",(NEW_528_Forage_Balance!H106)) ->  | K42: =IF(A42=0,"",(NEW_528_Forage_Balance!L106)) -> 
A43: =NEW_528_Forage_Balance!G107 -> 0 | C43: =IF(A43=0,"",(NEW_528_Forage_Balance!H107)) ->  | K43: =IF(A43=0,"",(NEW_528_Forage_Balance!L107)) -> 
A44: =NEW_528_Forage_Balance!G108 -> 0 | C44: =IF(A44=0,"",(NEW_528_Forage_Balance!H108)) ->  | K44: =IF(A44=0,"",(NEW_528_Forage_Balance!L108)) -> 
A45: =NEW_528_Forage_Balance!G109 -> 0 | C45: =IF(A45=0,"",(NEW_528_Forage_Balance!H109)) ->  | K45: =IF(A45=0,"",(NEW_528_Forage_Balance!L109)) -> 
A46: =NEW_528_Forage_Balance!G110 -> 0 | C46: =IF(A46=0,"",(NEW_528_Forage_Balance!H110)) ->  | K46: =IF(A46=0,"",(NEW_528_Forage_Balance!L110)) -> 
A47: =NEW_528_Forage_Balance!G111 -> 0 | C47: =IF(A47=0,"",(NEW_528_Forage_Balance!H111)) ->  | K47: =IF(A47=0,"",(NEW_528_Forage_Balance!L111)) -> 
A48: =NEW_528_Forage_Balance!G112 -> 0 | C48: =IF(A48=0,"",(NEW_528_Forage_Balance!H112)) ->  | K48: =IF(A48=0,"",(NEW_528_Forage_Balance!L112)) -> 
A49: =NEW_528_Forage_Balance!G113 -> 0 | C49: =IF(A49=0,"",(NEW_528_Forage_Balance!H113)) ->  | K49: =IF(A49=0,"",(NEW_528_Forage_Balance!L113)) -> 
A50: =NEW_528_Forage_Balance!G114 -> 0 | C50: =IF(A50=0,"",(NEW_528_Forage_Balance!H114)) ->  | K50: =IF(A50=0,"",(NEW_528_Forage_Balance!L114)) -> 
A51: =NEW_528_Forage_Balance!G115 -> 0 | C51: =IF(A51=0,"",(NEW_528_Forage_Balance!H115)) ->  | K51: =IF(A51=0,"",(NEW_528_Forage_Balance!L115)) -> 
A52: =NEW_528_Forage_Balance!G116 -> 0 | C52: =IF(A52=0,"",(NEW_528_Forage_Balance!H116)) ->  | K52: =IF(A52=0,"",(NEW_528_Forage_Balance!L116)) -> 
A53: =NEW_528_Forage_Balance!G117 -> 0 | C53: =IF(A53=0,"",(NEW_528_Forage_Balance!H117)) ->  | K53: =IF(A53=0,"",(NEW_528_Forage_Balance!L117)) -> 
A54: =NEW_528_Forage_Balance!G118 -> 0 | C54: =IF(A54=0,"",(NEW_528_Forage_Balance!H118)) ->  | K54: =IF(A54=0,"",(NEW_528_Forage_Balance!L118)) -> 
A55: =NEW_528_Forage_Balance!G119 -> 0 | C55: =IF(A55=0,"",(NEW_528_Forage_Balance!H119)) ->  | K55: =IF(A55=0,"",(NEW_528_Forage_Balance!L119)) -> 
A56: =NEW_528_Forage_Balance!G120 -> 0 | C56: =IF(A56=0,"",(NEW_528_Forage_Balance!H120)) ->  | K56: =IF(A56=0,"",(NEW_528_Forage_Balance!L120)) -> 
A57: =NEW_528_Forage_Balance!G121 -> 0 | C57: =IF(A57=0,"",(NEW_528_Forage_Balance!H121)) ->  | K57: =IF(A57=0,"",(NEW_528_Forage_Balance!L121)) -> 

Sheet NEW_DATA
B1: MLRA | C1: Ecosite | D1: COMMUNITIES | E1: Production | F1: MLRA2 | G1: GrowthCurveName | H1: Jan | I1: Feb | J1: Mar | K1: Apr | L1: May | M1: Jun | N1: Jul | O1: Aug | P1: Sept | Q1: Oct | R1: Nov | S1: Dec | T1: Total | V1: Livestock Type | W1: AU Value | X1: oven dry | Y1: air dry | Z1: Monthly
B2: MLRA_60A | C2: Clayey_13_16_60A | D2: 1.1 Rhizomatous Wheatgrass, Green Needlegrass, Big Sage-CyLow60A | E2: 1800 | F2: M_60A | G2: 102C- Introduced Cool Seasons | H2: 0 | I2: 0 | J2: 5 | K2: 15 | L2: 28 | M2: 30 | N2: 10 | O2: 2 | P2: 5 | Q2: 5 | R2: 0 | S2: 0 | T2: =SUM(H2:S2) -> 100 | V2: Cow/calf pair | W2: 1 | X2: 26 | Y2: 30 | Z2: =Y2*30.4 -> 912
B3: MLRA_63B | C3: Clayey_16_18_60A | D3: 1.2 Big Sage, Rhizomatous Wheatgrass, Green Needlegrass-CyLow60A | E3: 1600 | F3: M_63B | G3: 102C-Warm Season Natives Dominant | H3: 0 | I3: 0 | J3: 3 | K3: 7 | L3: 17 | M3: 23 | N3: 25 | O3: 17 | P3: 7 | Q3: 1 | R3: 0 | S3: 0 | T3: =SUM(H3:S3) -> 100 | V3: Dry cows | W3: 0.92 | X3: 24 | Y3: 28 | Z3: =Y3*30.4 -> 851.2
B4: MLRA_64 | C4: Clayey_Overflow_60A | D4: 1.3 Rhizomatous Wheatgrass, Blue grama, Buffalograss, Big Sage-CyLow60A | E4: 1600 | F4: M_64 | G4: 102C-Natives / Co-dom. Invasives | H4: 0 | I4: 0 | J4: 4 | K4: 11 | L4: 22 | M4: 27 | N4: 18 | O4: 8 | P4: 6 | Q4: 4 | R4: 0 | S4: 0 | T4: 100 | V4: Bull | W4: 1.35 | X4: 35 | Y4: =30*1.35 -> 40.5 | Z4: 1231.2
B5: MLRA_65 | C5: Claypan_60A | D5: 1.4 Big Sage, Rhizomatous Wheatgrass, Shortgrass-CyLow60A | E5: 900 | F5: M_65 | G5: 106-Clayey soils, Introduced dom or co-dom. | H5: 0 | I5: 0 | J5: 5 | K5: 15 | L5: 25 | M5: 25 | N5: 5 | O5: 5 | P5: 10 | Q5: 5 | R5: 5 | S5: 0 | T5: 100 | V5: Yearling | X5: 15.6 | Y5: 18 | Z5: 547.2
B6: MLRA_66 | C6: Closed_Depression_60A | D6: 2.1 Blue Grama, Buffalograss, Pricklypear-CyLow60A | E6: 650 | F6: M_66 | G6: 106-Upland Sites, Native Tall, Mid Grasses Dom. | H6: 0 | I6: 0 | J6: 0 | K6: 5 | L6: 25 | M6: 35 | N6: 20 | O6: 10 | P6: 5 | Q6: 0 | R6: 0 | S6: 0 | T6: 100 | V6: 1st calf heifer | W6: 0.8 | X6: =26*0.8 -> 20.8 | Y6: =30*0.8 -> 24 | Z6: 729.6
B7: MLRA_67A | C7: Dense_Clay_60A | D7: 3.1 Annuals, Rhizomatous Wheatgrass, Threeawn-CyLow60A | E7: 700 | F7: M_67A | G7: 106-Lowland Sites, Warm Season Domin. | H7: 0 | I7: 0 | J7: 5 | K7: 5 | L7: 25 | M7: 30 | N7: 20 | O7: 10 | P7: 5 | Q7: 0 | R7: 0 | S7: 0 | T7: 100 | V7: Horse, mature | W7: 1.25 | X7: =26*1.25 -> 32.5 | Y7: =30*1.25 -> 37.5 | Z7: 1140
B8: MLRA_71 | C8: Loamy_13_16_60A | D8: 4.1 Rhizomatous Wheatgrass, Green Needlegrass, Non-Native Cool Seasons-CyLow60A | E8: 1250 | F8: M_71 | G8: 106-Lowland Sites, Introduced dominant | H8: 0 | I8: 0 | J8: 5 | K8: 15 | L8: 25 | M8: 25 | N8: 5 | O8: 5 | P8: 10 | Q8: 5 | R8: 5 | S8: 0 | T8: 100 | V8: Sheep, mature | W8: 0.2
B9: MLRA_72 | C9: Loamy_16_18_60A | D9: 4.2 Shortgrass, Rhizomatous Wheatgrass, Nonnative Cool Seasons-CyLow60A | E9: 650 | F9: M_72 | G9: 106-Upland Loamy or shallow sites, Short warm season or introduced | H9: 0 | I9: 0 | J9: 5 | K9: 15 | L9: 25 | M9: 25 | N9: 5 | O9: 5 | P9: 10 | Q9: 5 | R9: 5 | S9: 0 | T9: 100 | V9: Lamb, 1 year old | W9: 0.15
B10: MLRA_73 | C10: Loamy_Overflow_60A | D10: 5.1 Go-back-CyLow60A | E10: 450 | F10: M_73 | G10: 60A- Western/Grama/Buffalo Dom. | H10: 0 | I10: 0 | J10: 6 | K10: 15 | L10: 20 | M10: 26 | N10: 17 | O10: 9 | P10: 4 | Q10: 3 | R10: 0 | S10: 0 | T10: 100 | V10: Goat, mature | W10: 0.15
B11: MLRA_75 | C11: Loamy_Terrace_60A | D11: 1.1 Western Wheatgrass, Green Needlegrass-CyHigh60A | E11: 2000 | F11: M_75 | G11: 60A- Wheatgrass/Alkali Sacaton | H11: 0 | I11: 0 | J11: 5 | K11: 13 | L11: 20 | M11: 25 | N11: 18 | O11: 11 | P11: 5 | Q11: 3 | R11: 0 | S11: 0 | T11: 100 | V11: Kid, 1 year old | W11: 0.1
B12: MLRA_102C | C12: Lowland_60A | D12: 1.2 Wheatgrass, Buffalograss, Blue Grama-CyHigh60A | E12: 1800 | F12: M_102C | G12: 60A-Cl, Lo, ThCl (13-16) Low Similarity Index | H12: 0 | I12: 0 | J12: 2 | K12: 5 | L12: 15 | M12: 25 | N12: 30 | O12: 15 | P12: 7 | Q12: 1 | R12: 0 | S12: 0 | T12: 100 | V12: Bison | W12: 1
B13: MLRA_106 | C13: Porous_Clay_60A | D13: 2.1 Buffalograss Blue Grama Sod-CyHigh60A | E13: 700 | F13: M_106 | G13: 60A-Clay Overflow Sites | H13: 0 | I13: 0 | J13: 4 | K13: 11 | L13: 19 | M13: 23 | N13: 20 | O13: 12 | P13: 6 | Q13: 5 | R13: 0 | S13: 0 | T13: 100 | V13: Deer, white tail | W13: 0.15
B14: MLRA_107B | C14: Saline_Lowland_60A | D14: 2.2 Threeawn, Annuals-CyHigh60A | E14: 700 | F14: M_107B | G14: 60A-Little Blue with grama/sedge/needlegrass | H14: 0 | I14: 0 | J14: 3 | K14: 10 | L14: 20 | M14: 28 | N14: 21 | O14: 10 | P14: 5 | Q14: 3 | R14: 0 | S14: 0 | T14: 100 | V14: Deer, mule | W14: 0.2
C15: Saline_Subirrigated_60A | D15: 3.1 Renovated Western, Green Needlegrass, Short grassesCyHigh60A | E15: 2200 | G15: 60A-Loamy Lowland, loamy terrace and wetland Sites | H15: 0 | I15: 0 | J15: 4 | K15: 11 | L15: 19 | M15: 23 | N15: 20 | O15: 12 | P15: 6 | Q15: 5 | R15: 0 | S15: 0 | T15: 100 | V15: Elk | W15: 0.6
C16: Saline_Upland_60A | D16: 3.2 Renovated Blue Grama-Buffalograss Sod-CyHigh60A | E16: 700 | G16: 60A-Loamy Overflow Sites | H16: 0 | I16: 0 | J16: 6 | K16: 15 | L16: 20 | M16: 26 | N16: 17 | O16: 9 | P16: 4 | Q16: 3 | R16: 0 | S16: 0 | T16: 100
C17: Sands_60A | D17: 4.1 Western Wheatgrass, Non-Native Cool Seasons-CyHigh60A | E17: 1600 | G17: 60A-Needleandthread/Sandreed | H17: 0 | I17: 0 | J17: 3 | K17: 10 | L17: 20 | M17: 28 | N17: 21 | O17: 10 | P17: 5 | Q17: 3 | R17: 0 | S17: 0 | T17: 100
C18: Sandy_60A | D18: 5.1. Juniper and/or Ponderosa Pine-CyHigh60A | E18: 1500 | G18: 60A-Pine or Juniper Dominant | H18: 0 | I18: 0 | J18: 3 | K18: 10 | L18: 23 | M18: 34 | N18: 15 | O18: 6 | P18: 5 | Q18: 4 | R18: 0 | S18: 0 | T18: 100
C19: Shallow_Clay_60A | D19: 6.1 Go-Back-CyHigh60A | E19: 800 | G19: 60A-Sa Blue Grama & Needleandthread or sedge dom. | H19: 0 | I19: 0 | J19: 3 | K19: 7 | L19: 18 | M19: 25 | N19: 25 | O19: 15 | P19: 7 | Q19: 0 | R19: 0 | S19: 0 | T19: 100
C20: Shallow_Dense_Clay_60A | D20: 6.2A Seeding, Introduced Low Mgmt.-CyHigh60A | E20: 1100 | G20: 60A-Saline and closed depression Sites | H20: 0 | I20: 0 | J20: 3 | K20: 10 | L20: 16 | M20: 22 | N20: 23 | O20: 14 | P20: 7 | Q20: 5 | R20: 0 | S20: 0 | T20: 100
C21: Shallow_Loamy_60A | D21: 6.2B Seeding, Introduced Med Mgmt.-CyHigh60A | E21: 2000 | G21: 60A-Sandreed, Bluestem and/or Sideoats Dom. | H21: 0 | I21: 0 | J21: 3 | K21: 7 | L21: 18 | M21: 25 | N21: 25 | O21: 15 | P21: 7 | Q21: 0 | R21: 0 | S21: 0 | T21: 100
C22: Shallow_Porous_Clay_60A | D22: 6.2C Seeding, Introduced High Mgmt.-CyHigh60A | E22: 3000 | G22: 60A-Sb Cool Season Dominant | H22: 0 | I22: 0 | J22: 5 | K22: 13 | L22: 20 | M22: 25 | N22: 18 | O22: 11 | P22: 5 | Q22: 3 | R22: 0 | S22: 0 | T22: 100
C23: Shallow_Sandy_60A | D23: 1.1 Rhizomatous Wheatgrass, Green Needlegrass, Tall Warm Seasons-CO60A | E23: 2100 | G23: 60A-Sb, Sa High Similarity Index | H23: 0 | I23: 0 | J23: 2 | K23: 8 | L23: 15 | M23: 21 | N23: 26 | O23: 15 | P23: 8 | Q23: 5 | R23: 0 | S23: 0 | T23: 100
C24: Subirrigated_60A | D24: 1.2 Rhizomatous Wheatgrass, Needlegrass-CO60A | E24: 2500 | G24: 60A-Shallow Clay,Porous Clay, Shallow Sandy Sites | H24: 0 | I24: 0 | J24: 3 | K24: 10 | L24: 23 | M24: 34 | N24: 15 | O24: 6 | P24: 5 | Q24: 4 | R24: 0 | S24: 0 | T24: 100
C25: Thin_Claypan_60A | D25: 1.3 Rhizomatous Wheatgrass-CO60A | E25: 1500 | G25: 60A-Threeawn/annuals/dropseed | H25: 0 | I25: 0 | J25: 3 | K25: 10 | L25: 20 | M25: 28 | N25: 21 | O25: 10 | P25: 5 | Q25: 3 | R25: 0 | S25: 0 | T25: 100
C26: Thin_Upland_60A | D26: 2.1 Western Wheatgrass, Annuals-CO60A | E26: 900 | G26: 63B - Upland Blue Grama/Buffalograss Sod | H26: 0 | I26: 0 | J26: 2 | K26: 5 | L26: 15 | M26: 25 | N26: 20 | O26: 15 | P26: 17 | Q26: 1 | R26: 0 | S26: 0 | T26: 100
C27: Very_Shallow_60A | D27: 3.1A Tame Pasture, Low Mgt-CO60A | E27: 2000 | G27: 63B-Bluestems dom or co-dom | H27: 0 | I27: 0 | J27: 3 | K27: 7 | L27: 17 | M27: 25 | N27: 25 | O27: 15 | P27: 7 | Q27: 1 | R27: 0 | S27: 0 | T27: 100
C28: Wetland_60A | D28: 3.1B Tame Pasture, Mod Mgt-CO60A | E28: 3000 | G28: 63B-Bromegrass/Bluegrass&/or Wheatgrass Dom | H28: 0 | I28: 0 | J28: 4 | K28: 12 | L28: 25 | M28: 36 | N28: 10 | O28: 5 | P28: 4 | Q28: 4 | R28: 0 | S28: 0 | T28: 100
C29: Clayey_63B | D29: 3.1C Tame Pasture, High Mgt-CO60A | E29: 4000 | G29: 63B-CD Invaded or saltgrass domin. | H29: 0 | I29: 0 | J29: 3 | K29: 10 | L29: 20 | M29: 28 | N29: 21 | O29: 10 | P29: 5 | Q29: 3 | R29: 0 | S29: 0 | T29: 100
C30: Clayey_Overflow_63B | D30: 3.1D Irrigated Pasture-CO60A | E30: 7000 | G30: 63B-Clay and Clay Upland Low Sim. Index | H30: 0 | I30: 0 | J30: 3 | K30: 10 | L30: 20 | M30: 28 | N30: 21 | O30: 10 | P30: 5 | Q30: 3 | R30: 0 | S30: 0 | T30: 100
C31: Claypan_63B | D31: 1.1 Rhizomatous Wheatgrass, Needlegrass, Blue Grama-CP60A | E31: 1400 | G31: 63B-LoO and Very Shallow sites | H31: 0 | I31: 0 | J31: 3 | K31: 10 | L31: 23 | M31: 34 | N31: 15 | O31: 6 | P31: 5 | Q31: 4 | R31: 0 | S31: 0 | T31: 100
C32: Closed_Depression_63B | D32: 1.2 Blue Grama, Rhizomatous Wheatgrass-CP60A | E32: 1000 | G32: 63B-Lowlands, Shallow Clay Western/Grama Dominant | H32: 0 | I32: 0 | J32: 3 | K32: 10 | L32: 20 | M32: 28 | N32: 21 | O32: 10 | P32: 5 | Q32: 3 | R32: 0 | S32: 0 | T32: 100
C33: Dense_Clay_63B | D33: 2.1 Blue Grama, Sedge, Cactus-CP60A | E33: 650 | G33: 63B-SaLo Cordgrass/Wheatgr/Alkaligr | H33: 0 | I33: 0 | J33: 5 | K33: 13 | L33: 20 | M33: 25 | N33: 18 | O33: 11 | P33: 5 | Q33: 3 | R33: 0 | S33: 0 | T33: 100
C34: Loamy_63B | D34: 2.2 Threeawn, Annuals-CP60A | E34: 450 | G34: 63B-SaLo Low Sim. Index | H34: 0 | I34: 0 | J34: 4 | K34: 11 | L34: 19 | M34: 23 | N34: 20 | O34: 12 | P34: 6 | Q34: 5 | R34: 0 | S34: 0 | T34: 100
C35: Loamy_Overflow_63B | D35: 3.1A Tame Pasture, Low Mgt-CP60A | E35: 1100 | G35: 63B-SaLo Wheatgr./Foxtail Barley/Saltgr | H35: 0 | I35: 0 | J35: 5 | K35: 13 | L35: 20 | M35: 25 | N35: 18 | O35: 11 | P35: 5 | Q35: 3 | R35: 0 | S35: 0 | T35: 100
C36: Saline_Lowland_63B | D36: 3.1B Tame Pasture, Med Mgt-CP60A | E36: 1500 | G36: 63B-SaLo Wheatgrass/Alkaligrass | H36: 0 | I36: 0 | J36: 6 | K36: 15 | L36: 20 | M36: 26 | N36: 17 | O36: 9 | P36: 4 | Q36: 3 | R36: 0 | S36: 0 | T36: 100
C37: Shallow_63B | D37: 3.1C Tame Pasture, High Mgt-CP60A | E37: 2000 | G37: 63B-Sedges, Blue Grama &/or saltgrass | H37: 0 | I37: 0 | J37: 3 | K37: 7 | L37: 17 | M37: 25 | N37: 25 | O37: 15 | P37: 7 | Q37: 1 | R37: 0 | S37: 0 | T37: 100
C38: Shallow_Clay_63B | D38: 1.1a Rhizomatous Wheatgrass, Grasslikes, Forbs-CD60A | E38: 3500 | G38: 63B-SwCl Tree Encroachment | H38: 1 | I38: 3 | J38: 7 | K38: 11 | L38: 24 | M38: 27 | N38: 12 | O38: 5 | P38: 4 | Q38: 3 | R38: 2 | S38: 1 | T38: 100
C39: Thin_Claypan_63B | D39: 1.1b Forb dominated-CD60A | E39: 2500 | G39: 63B-Uplands Western/Blue Grama Dominant | H39: 0 | I39: 0 | J39: 3 | K39: 10 | L39: 23 | M39: 34 | N39: 15 | O39: 6 | P39: 5 | Q39: 4 | R39: 0 | S39: 0 | T39: 100
C40: Thin_Upland_63B | D40: 1.2 Rhizomatous Wheatgrass, Inland Saltgrass-CD60A | E40: 1800 | G40: 64 Clayey, Loamy, Warm Season Short Grass | H40: 0 | I40: 0 | J40: 3 | K40: 7 | L40: 15 | M40: 20 | N40: 30 | O40: 15 | P40: 5 | Q40: 5 | R40: 0 | S40: 0 | T40: 100
C41: Very_Shallow_63B | D41: 2.1 Foxtail Barley, Inland Saltgrass-CD60A | E41: 800 | G41: 64 L Juniper/Pine/Shrubs Dominant | H41: 1 | I41: 3 | J41: 7 | K41: 10 | L41: 20 | M41: 28 | N41: 15 | O41: 5 | P41: 4 | Q41: 4 | R41: 2 | S41: 1 | T41: 100
C42: Badlands_Overflow_64 | D42: 3.1 Go-Back, Disturbance-CD60A | E42: 500 | G42: 64 Lo,LoTe, Cl, Thin Claypan Lower Similarity Index | H42: 0 | I42: 0 | J42: 5 | K42: 10 | L42: 20 | M42: 25 | N42: 20 | O42: 10 | P42: 5 | Q42: 5 | R42: 0 | S42: 0 | T42: 100
C43: Badlands_Terrace_64 | D43: 1.1 Rhizomatous Wheatgrass, Green Needlegrass-DC60A | E43: 1300 | G43: 64 Lowland, Overflow, Sb Sites High Similarity Index | H43: 0 | I43: 0 | J43: 5 | K43: 12 | L43: 20 | M43: 25 | N43: 19 | O43: 11 | P43: 5 | Q43: 3 | R43: 0 | S43: 0 | T43: 100
C44: Clayey_14_17_64 | D44: 1.2 Rhizomatous Wheatgrass, Bare Ground-DC60A | E44: 600 | G44: 64 Overflow, Sb -Western/Needlegrass | H44: 0 | I44: 0 | J44: 5 | K44: 8 | L44: 25 | M44: 30 | N44: 15 | O44: 10 | P44: 2 | Q44: 5 | R44: 0 | S44: 0 | T44: 100
C45: Clayey_17_20_64 | D45: 1.1 Rhizomatous Wheatgrass, Needlegrass, Big Sage-Lo-LowPZ60A | E45: 1900 | G45: 64 Sa, Sy, Thin Up High Similarity Index | H45: 0 | I45: 0 | J45: 3 | K45: 7 | L45: 15 | M45: 20 | N45: 30 | O45: 15 | P45: 5 | Q45: 5 | R45: 0 | S45: 0 | T45: 100
C46: Clayey_Overflow_64 | D46: 1.2 Big Sage, Rhizomatous Wheatgrass,Needlegrass-Lo-LowPZ60A | E46: 1600 | G46: 64 Shallow sites, cool season dominated | H46: 0 | I46: 0 | J46: 5 | K46: 10 | L46: 20 | M46: 25 | N46: 20 | O46: 10 | P46: 5 | Q46: 5 | R46: 0 | S46: 0 | T46: 100
C47: Claypan_64 | D47: 1.3 Shortgrass, Rhizomatous Wheatgrass, Big Sage-Lo-LowPZ60A | E47: 1100 | G47: 64 Shallow sites, warm season dom. | H47: 0 | I47: 0 | J47: 5 | K47: 8 | L47: 15 | M47: 24 | N47: 23 | O47: 15 | P47: 5 | Q47: 5 | R47: 0 | S47: 0 | T47: 100
C48: Closed_Depression_64 | D48: 1.4 Big Sage, Rhizomatous Wheatgrass, Shortgrass-Lo-LowPZ60A | E48: 900 | G48: 64 Upland Sites Mid & Lower Similarity Index | H48: 0 | I48: 0 | J48: 5 | K48: 8 | L48: 15 | M48: 24 | N48: 23 | O48: 15 | P48: 5 | Q48: 5 | R48: 0 | S48: 0 | T48: 100
C49: Dense_Clay_64 | D49: 2.1 Warm Season Shortgrass, Prickly Pear-Lo-LowPZ60A | E49: 600 | G49: 64 Uplands Cool season dominant | H49: 0 | I49: 0 | J49: 5 | K49: 15 | L49: 28 | M49: 25 | N49: 15 | O49: 2 | P49: 5 | Q49: 5 | R49: 0 | S49: 0 | T49: 100
C50: Loamy_14_17_64 | D50: 3.1 Annuals, Rhizomatous Wheatgrass, Threeawn-Lo-LowPZ60A | E50: 700 | G50: 64-Badlands and Saline Sites | H50: 0 | I50: 0 | J50: 3 | K50: 8 | L50: 18 | M50: 27 | N50: 23 | O50: 12 | P50: 6 | Q50: 3 | R50: 0 | S50: 0 | T50: 100
C51: Loamy_17_20_64 | D51: 4.1 Renovated Rhizomatous Wheatgrass, Needlegrass, Non-Native Cool Seasons-Lo-LowPZ60A | E51: 1800 | G51: 64-Overflow sites Low Similarity Index | H51: 0 | I51: 0 | J51: 5 | K51: 13 | L51: 28 | M51: 28 | N51: 12 | O51: 5 | P51: 6 | Q51: 3 | R51: 0 | S51: 0 | T51: 100
C52: Loamy_Overflow_64 | D52: 4.2 Renovated Shortgrass, Rhizomatous Wheatgrass, Nonnative Cool Seasons-Lo-LowPZ | E52: 800 | G52: 64-Sb Higher Similarity Index | H52: 0 | I52: 0 | J52: 3 | K52: 7 | L52: 15 | M52: 25 | N52: 25 | O52: 17 | P52: 6 | Q52: 2 | R52: 0 | S52: 0 | T52: 100
C53: Loamy_Terrace_64 | D53: 5.1 Go-back-Lo-LowPZ60A | E53: 500 | T53: 0
C54: Saline_Lowland_64 | D54: 5.2A Re-Seeded Natives Excellent Stand-Lo-LowPZ60A | E54: 2200 | G54: 64-Sb Low Similarity Index | H54: 0 | I54: 0 | J54: 5 | K54: 8 | L54: 25 | M54: 30 | N54: 15 | O54: 10 | P54: 2 | Q54: 5 | R54: 0 | S54: 0 | T54: 100
C55: Saline_Subirrigated_64 | D55: 5.2B Re-Seeded Natives Good Stand-Lo-LowPZ60A | E55: 1800 | G55: 64-Wetland sites | H55: 0 | I55: 0 | J55: 5 | K55: 12 | L55: 20 | M55: 25 | N55: 19 | O55: 11 | P55: 5 | Q55: 3 | R55: 0 | S55: 0 | T55: 100
C56: Sands_64 | D56: 5.2C Re-Seeded Natives Fair Stand-Lo-LowPZ60A | E56: 1250 | G56: 64-WSb Cool Season Dominant | H56: 0 | I56: 0 | J56: 5 | K56: 13 | L56: 28 | M56: 28 | N56: 12 | O56: 5 | P56: 6 | Q56: 3 | R56: 0 | S56: 0 | T56: 100
C57: Sandy_14_17_64 | D57: 5.2D Re-Seeded Introduced Low Mgt-Lo-LowPZ60A | E57: 1400 | G57: 65-CS Blowoutgrass/sandhill muhly | H57: 0 | I57: 0 | J57: 5 | K57: 15 | L57: 20 | M57: 20 | N57: 20 | O57: 10 | P57: 7 | Q57: 3 | R57: 0 | S57: 0 | T57: 100
C58: Sandy_17_20_64 | D58: 5.2E Re-Seeded Introduced Med Mgt-Lo-LowPZ60A | E58: 1850 | G58: 65-CS Tall Grass Dominant | H58: 0 | I58: 0 | J58: 5 | K58: 5 | L58: 15 | M58: 25 | N58: 30 | O58: 10 | P58: 7 | Q58: 3 | R58: 0 | S58: 0 | T58: 100
C59: Sandy_Lowland_64 | D59: 5.2F Re-Seeded Introduced High Mgt-Lo-LowPZ60A | E59: 2300 | G59: 65-Sa Short Grass Dominant | H59: 0 | I59: 0 | J59: 0 | K59: 5 | L59: 15 | M59: 30 | N59: 25 | O59: 15 | P59: 10 | Q59: 0 | R59: 0 | S59: 0 | T59: 100
C60: Shallow_64 | D60: 1.1 Western Wheatgrass, Needlegrass-LoHighPZ60A | E60: 2200 | G60: 65-Sa Tall Grass Dominant | H60: 0 | I60: 0 | J60: 5 | K60: 5 | L60: 15 | M60: 25 | N60: 30 | O60: 10 | P60: 7 | Q60: 3 | R60: 0 | S60: 0 | T60: 100
C61: Shallow_Clay_64 | D61: 1.2 Blue Grama, Buffalograss, Western Wheatgrass-LoHighPZ60A | E61: 1500 | G61: 65-SaSb Alkali Sacaton Dominant | H61: 0 | I61: 0 | J61: 5 | K61: 10 | L61: 20 | M61: 30 | N61: 15 | O61: 10 | P61: 5 | Q61: 5 | R61: 0 | S61: 0 | T61: 100
C62: Subirrigated_64 | D62: 2.1 Blue Grama, Buffalograss Sod-LoHighPZ60A | E62: 800 | G62: 65-SaSb Inland Saltgrass Dominant | H62: 0 | I62: 0 | J62: 0 | K62: 5 | L62: 10 | M62: 40 | N62: 25 | O62: 15 | P62: 5 | Q62: 0 | R62: 0 | S62: 0 | T62: 100
C63: Thin_Breaks_64 | D63: 2.2 Threeawn, Annuals-LoHighPZ60A | E63: 700 | G63: 65-SB | H63: 0 | I63: 0 | J63: 0 | K63: 10 | L63: 20 | M63: 25 | N63: 20 | O63: 15 | P63: 10 | Q63: 0 | R63: 0 | S63: 0 | T63: 100
C64: Thin_Claypan_64 | D64: 3.1 Renovated Western Wheatgrass, Needlegrass, Blue Grama, Buffalograss-LoHighPZ60A | E64: 2300 | G64: 65-SwG | H64: 0 | I64: 0 | J64: 0 | K64: 5 | L64: 15 | M64: 30 | N64: 25 | O64: 15 | P64: 10 | Q64: 0 | R64: 0 | S64: 0 | T64: 100
C65: Thin_Upland_64 | D65: 3.2 Renovated Blue Grama, Buffalograss Sod-LoHighPZ60A | E65: 850 | G65: 65-Sy (18-25) Higher SI | H65: 0 | I65: 0 | J65: 5 | K65: 5 | L65: 15 | M65: 25 | N65: 30 | O65: 10 | P65: 7 | Q65: 3 | R65: 0 | S65: 0 | T65: 100
C66: Very_Shallow_64 | D66: 4.1 Western Wheatgrass, Non-Native, Cool Season-LoHighPZ60A | E66: 1600 | G66: 65-Sy Lower SI | H66: 0 | I66: 0 | J66: 5 | K66: 10 | L66: 20 | M66: 25 | N66: 20 | O66: 15 | P66: 5 | Q66: 0 | R66: 0 | S66: 0 | T66: 100
C67: Wetland_64 | D67: 5.1 Juniper / Ponderosa Pine-LoHighPZ60A | E67: 800 | G67: 66-All Sites Trees Dominant | H67: 1 | I67: 3 | J67: 7 | K67: 10 | L67: 20 | M67: 28 | N67: 15 | O67: 5 | P67: 5 | Q67: 4 | R67: 1 | S67: 1 | T67: =SUM(H67:S67) -> 100
C68: Wet_Subirrigated_64 | D68: 6.1 Go-Back-LoHighPZ60A | E68: 700 | G68: 66-CD | H68: 0 | I68: 0 | J68: 5 | K68: 15 | L68: 28 | M68: 30 | N68: 10 | O68: 2 | P68: 5 | Q68: 5 | R68: 0 | S68: 0 | T68: 100
C69: Choppy_Sands_14_17_65 | D69: 6.2A Range Seeding, Excellent Stand-LoHighPZ60A | E69: 2300 | G69: 66-Lo (18-25) Needlegrass/Western/Bluestem | H69: 0 | I69: 0 | J69: 5 | K69: 10 | L69: 25 | M69: 30 | N69: 15 | O69: 5 | P69: 5 | Q69: 5 | R69: 0 | S69: 0 | T69: 100
C70: Choppy_Sands_17_22_65 | D70: 6.2B Range Seeding, Good Stand-LoHighPZ60A | E70: 2000 | G70: 66-Lo / LoT Blue Grama/Cool Season | H70: 0 | I70: 0 | J70: 5 | K70: 10 | L70: 20 | M70: 25 | N70: 20 | O70: 10 | P70: 5 | Q70: 5 | R70: 0 | S70: 0 | T70: 100
C71: Choppy_Sands_22_25_65 | D71: 6.2C Range Seeding, Fair Stand-LoHighPZ60A | E71: 1500 | G71: 66-Lo Threeawn/Forbs Dom. | H71: 0 | I71: 0 | J71: 5 | K71: 8 | L71: 15 | M71: 24 | N71: 23 | O71: 15 | P71: 5 | Q71: 5 | R71: 0 | S71: 0 | T71: 100
C72: Deep_Wetland_65 | D72: 6.2D Tame Pasture, Low Mgt-LoHighPZ60A | E72: 1700 | G72: 66-Lo/LoT (18-25) Cool Season Dom. | H72: 0 | I72: 0 | J72: 5 | K72: 15 | L72: 28 | M72: 30 | N72: 10 | O72: 2 | P72: 5 | Q72: 5 | R72: 0 | S72: 0 | T72: 100
C73: Saline_Subirrigated_65 | D73: 6.2E Tame Pasture, Mod Mgt-LoHighPZ60A | E73: 2700 | G73: 66-LoOv Higher SI | H73: 0 | I73: 0 | J73: 5 | K73: 12 | L73: 20 | M73: 25 | N73: 19 | O73: 11 | P73: 5 | Q73: 3 | R73: 0 | S73: 0 | T73: 100
C74: Sands_14_17_65 | D74: 6.2F Tame Pasture, High Mgt-LoHighPZ60A | E74: 3700 | G74: 66-LoOv Lower SI | H74: 0 | I74: 0 | J74: 5 | K74: 12 | L74: 25 | M74: 33 | N74: 12 | O74: 5 | P74: 5 | Q74: 3 | R74: 0 | S74: 0 | T74: 100
C75: Sands_17_22_65 | D75: 6.2G Tame Pasture, Irrigated, LoHighPZ60A | E75: 6900 | G75: 66-Sa (18-22) Lower SI | H75: 0 | I75: 0 | J75: 3 | K75: 8 | L75: 15 | M75: 24 | N75: 25 | O75: 15 | P75: 5 | Q75: 5 | R75: 0 | S75: 0 | T75: 100
C76: Sands_22_25_65 | D76: 1.1 Big Bluestem, Rhizomatous Wheatgrass, Trees & Shrubs-LoO60A | E76: 2800 | G76: 66-Sa (22-25) Tall or Mid Grass Dom. | H76: 0 | I76: 0 | J76: 5 | K76: 5 | L76: 15 | M76: 25 | N76: 30 | O76: 10 | P76: 7 | Q76: 3 | R76: 0 | S76: 0 | T76: 100
C77: Sandy_14_17_65 | D77: 2.1 Rhizomatous Wheatgrass, Kentucky Bluegrass, Reman. Big Bluestem-LoO60A | E77: 2200 | G77: 66-Sa, SaLo Short grass or club moss dom. | H77: 0 | I77: 0 | J77: 0 | K77: 5 | L77: 15 | M77: 30 | N77: 25 | O77: 15 | P77: 10 | Q77: 0 | R77: 0 | S77: 0 | T77: 100
C78: Sandy_17_22_65 | D78: 2.2 Rhizomatous Wheatgrass, Bluegrass, Mixed Shrubs & trees-LoO60A | E78: 1600 | G78: 66-Sa, Sy, Sw Higher SI | H78: 0 | I78: 0 | J78: 5 | K78: 8 | L78: 15 | M78: 24 | N78: 23 | O78: 15 | P78: 5 | Q78: 5 | R78: 0 | S78: 0 | T78: 100
C79: Sandy_22_25_65 | D79: 3.1 Kentucky Bluegrass, Weedy Annuals, Forbs-LoO60A | E79: 1000 | G79: 66-Saline Subirrigated | H79: 0 | I79: 0 | J79: 3 | K79: 8 | L79: 18 | M79: 27 | N79: 23 | O79: 12 | P79: 6 | Q79: 3 | R79: 0 | S79: 0 | T79: 100
C80: Sandy_Lowland_65 | D80: 4.1 Cottonwood, Prunus, Snowberry-LoO60A | E80: 2500 | G80: 66-SaLoTall Grass Dom. | H80: 0 | I80: 0 | J80: 5 | K80: 5 | L80: 15 | M80: 25 | N80: 30 | O80: 10 | P80: 7 | Q80: 3 | R80: 0 | S80: 0 | T80: 100
C81: Shallow_to_Gravel_65 | D81: 4.2 Mature Cottonwood, Green Ash, boxelder, Shrubs-LoO60A | E81: 2500 | G81: 66-Sb Bluegrass/Wheatgrass/Brome | H81: 0 | I81: 0 | J81: 5 | K81: 15 | L81: 30 | M81: 25 | N81: 10 | O81: 5 | P81: 10 | Q81: 0 | R81: 0 | S81: 0 | T81: 100
C82: Subirrigated_65 | D82: 4.3 Green Ash, Boxelder, Shrubs-LoO60A | E82: 2200 | G82: 66-Sb Reed Canary/Creeping Foxtail | H82: 0 | I82: 0 | J82: 0 | K82: 5 | L82: 20 | M82: 35 | N82: 25 | O82: 10 | P82: 5 | Q82: 0 | R82: 0 | S82: 0 | T82: 100
C83: Wetland_65 | D83: 5.0 Native Trees, Russian Olive, Salt Cedar-LoO60A | E83: 750 | G83: 66-Sb Tall Grass Dominant | H83: 0 | I83: 0 | J83: 3 | K83: 7 | L83: 15 | M83: 25 | N83: 25 | O83: 17 | P83: 6 | Q83: 2 | R83: 0 | S83: 0 | T83: 100
C84: Wet_Subirrigated_65 | D84: 3.1A Tame Pasture, Low Mgt-LoO60A | E84: 2000 | G84: 66-Shallow Sites Moderate SI | H84: 0 | I84: 0 | J84: 5 | K84: 10 | L84: 20 | M84: 25 | N84: 20 | O84: 10 | P84: 5 | Q84: 5 | R84: 0 | S84: 0 | T84: 100
C85: Choppy_Sands_66 | D85: 3.1B Tame Pasture, Mod Mgt-LoO60A | E85: 3000 | G85: 66-Sy Blue Grama/Western | H85: 0 | I85: 0 | J85: 5 | K85: 10 | L85: 20 | M85: 25 | N85: 20 | O85: 10 | P85: 5 | Q85: 5 | R85: 0 | S85: 0 | T85: 100
C86: Closed_Depression_66 | D86: 3.1C Tame Pasture, High Mgt-LoO60A | E86: 4000 | G86: 66-Sy Bluegrass/Ragweed | H86: 0 | I86: 0 | J86: 5 | K86: 10 | L86: 25 | M86: 30 | N86: 15 | O86: 5 | P86: 5 | Q86: 5 | R86: 0 | S86: 0 | T86: 100
C87: Interdunal_Lowland_66 | D87: 3.1D Irrigated Pasture-LoO60A | E87: 7000 | G87: 66-Wetland | H87: 0 | I87: 0 | J87: 0 | K87: 5 | L87: 20 | M87: 35 | N87: 25 | O87: 10 | P87: 5 | Q87: 0 | R87: 0 | S87: 0 | T87: 100
C88: Loamy_18_22_66 | D88: 1.1 Rhizomatous Wheatgrass, Green Needlegrass, Shrubs-LoTer60A | E88: 2500 | G88: 66-WSb Warm Season Dominant | H88: 0 | I88: 0 | J88: 3 | K88: 8 | L88: 18 | M88: 27 | N88: 23 | O88: 12 | P88: 6 | Q88: 3 | R88: 0 | S88: 0 | T88: 100
C89: Loamy_22_25_66 | D89: 1.2 Blue Grama, Rhizomatous Wheatgrass, Shrubs-LoTer60A | E89: 800 | G89: 66-WSb Cool Season Dominant | H89: 0 | I89: 0 | J89: 5 | K89: 8 | L89: 25 | M89: 30 | N89: 15 | O89: 10 | P89: 2 | Q89: 5 | R89: 0 | S89: 0 | T89: 100
C90: Loamy_Overflow_66 | D90: 2.1 Pioneer Perennials, Annuals, Shrubs-LoTer60A | E90: 600 | G90: 67A - Threadleaf Sedge Domin. | H90: 0 | I90: 0 | J90: 0 | K90: 5 | L90: 25 | M90: 40 | N90: 15 | O90: 5 | P90: 10 | Q90: 0 | R90: 0 | S90: 0 | T90: 100
C91: Loamy_Terrace_66 | D91: 3.1 Rhizomatous Wheatgrass, Green Needlegrass, Introduced Cool Seasons-LoTer60A | E91: 2100 | G91: 67A-Clay & Gravelly-Blue Grama Dom. | H91: 0 | I91: 0 | J91: 0 | K91: 5 | L91: 20 | M91: 35 | N91: 30 | O91: 5 | P91: 5 | Q91: 0 | R91: 0 | S91: 0 | T91: 100
C92: Saline_Subirrigated_66 | D92: 4.1 Invaded rangeland - Smooth Brome, Kentucky Bluegrass-LoTer60A | E92: 1900 | G92: 67A-CS-Sands/Sandy/CS sites | H92: 0 | I92: 0 | J92: 0 | K92: 5 | L92: 20 | M92: 35 | N92: 30 | O92: 5 | P92: 5 | Q92: 0 | R92: 0 | S92: 0 | T92: 100
C93: Sands_18_22_66 | D93: 5.1 Go-Back-LoTer60A | E93: 700 | G93: 67A-LoOv sites | H93: 0 | I93: 0 | J93: 0 | K93: 5 | L93: 20 | M93: 25 | N93: 30 | O93: 15 | P93: 5 | Q93: 0 | R93: 0 | S93: 0 | T93: 100
C94: Sands_22_25_66 | D94: 5.2A Tame Pasture, Low Mgt-LoT60A | E94: 1800 | G94: 67A-Lowland site-cottonwoods/R.olives | H94: 0 | I94: 0 | J94: 0 | K94: 5 | L94: 20 | M94: 25 | N94: 30 | O94: 15 | P94: 5 | Q94: 0 | R94: 0 | S94: 0 | T94: 100
C95: Sandy_18_22_66 | D95: 5.2B Tame Pasture, Mod Mgt-LoTer60A | E95: 2750 | G95: 67A-Lowland/Overflow sites Western co-dom. | H95: 0 | I95: 0 | J95: 0 | K95: 5 | L95: 25 | M95: 30 | N95: 20 | O95: 15 | P95: 5 | Q95: 0 | R95: 0 | S95: 0 | T95: 100
C96: Sandy_22_25_66 | D96: 5.2C Tame Pasture, High Mgt-LoTer60A | E96: 3500 | G96: 67A-Saline Upland Sites higher SI | H96: 0 | I96: 0 | J96: 0 | K96: 5 | L96: 25 | M96: 40 | N96: 15 | O96: 5 | P96: 10 | Q96: 0 | R96: 0 | S96: 0 | T96: 100
C97: Sandy_Lowland_66 | D97: 5.2D Irrigated Pasture-LoTer60A | E97: 6500 | G97: 67A-Saline Upland Sites lower SI | H97: 0 | I97: 0 | J97: 0 | K97: 5 | L97: 20 | M97: 35 | N97: 30 | O97: 5 | P97: 5 | Q97: 0 | R97: 0 | S97: 0 | T97: 100
C98: Shallow_Limy_66 | D98: 1.1 Rhizomatous Wheatgrass, Green Needlegrass, Cottonwoods-Lowland60A | E98: 3000 | G98: 67A-Sb,SaSb,WL-Lower Sim. Index | H98: 0 | I98: 0 | J98: 0 | K98: 5 | L98: 20 | M98: 25 | N98: 25 | O98: 15 | P98: 10 | Q98: 0 | R98: 0 | S98: 0 | T98: 100
C99: Shallow_to_Gravel_66 | D99: 1.2 Mature Cottonwoods, Cool Season Grasses-Lowland60A | E99: 2500 | G99: 67A-Shallow sites - Higher SI | H99: 0 | I99: 0 | J99: 0 | K99: 5 | L99: 20 | M99: 35 | N99: 30 | O99: 5 | P99: 5 | Q99: 0 | R99: 0 | S99: 0 | T99: 100
C100: Steep_Sandy_66 | D100: 2.0 Cottonwood, Russian Olive, Saltcedar, Cool Season Grasses-Lowland60A | E100: 1800 | G100: 67A-Upland - Western Wheat dom. | H100: 0 | I100: 0 | J100: 0 | K100: 5 | L100: 25 | M100: 40 | N100: 15 | O100: 5 | P100: 10 | Q100: 0 | R100: 0 | S100: 0 | T100: 100
C101: Subirrigated_66 | D101: 3.1 Rhizomatous Wheatgrass-Lowland60A | E101: 2000 | G101: 67A-Upland Sites - Blue grama dom. | H101: 0 | I101: 0 | J101: 0 | K101: 5 | L101: 20 | M101: 25 | N101: 30 | O101: 15 | P101: 5 | Q101: 0 | R101: 0 | S101: 0 | T101: 100
C102: Thin_Upland_66 | D102: 4.1 Kentucky Bluegrass, Weedy Annuals, Perennial Forbs-Lowland60A | E102: 1000 | G102: 67A-Upland-higher SI | H102: 0 | I102: 0 | J102: 0 | K102: 5 | L102: 15 | M102: 25 | N102: 30 | O102: 20 | P102: 5 | Q102: 0 | R102: 0 | S102: 0 | T102: 100
C103: Wet_Land_66 | D103: 1.1 Prairie Sandreed, Little Bluestem, Rhizomatous Wheatgrass-PoCy60A | E103: 1500 | G103: 67A-Wetter Sites - Higher Sim. Index | H103: 0 | I103: 0 | J103: 0 | K103: 5 | L103: 15 | M103: 20 | N103: 30 | O103: 20 | P103: 10 | Q103: 0 | R103: 0 | S103: 0 | T103: 100
C104: Choppy_Sands_67A | D104: 1.2 Rhizomatous Wheatgrass, Blue Grama, Sedge-PoCy60A | E104: 900 | G104: 71-LB & LiU Higher Similarity Index | H104: 0 | I104: 0 | J104: 3 | K104: 7 | L104: 15 | M104: 20 | N104: 30 | O104: 15 | P104: 5 | Q104: 5 | R104: 0 | S104: 0 | T104: 100
C105: Clayey_67A | D105: 2.1 Sedge, Bare Ground-PoCy60A | E105: 300 | G105: 71-LiU, LoUp, Sb Lower Similarity Index | H105: 0 | I105: 0 | J105: 5 | K105: 13 | L105: 28 | M105: 28 | N105: 12 | O105: 5 | P105: 6 | Q105: 3 | R105: 0 | S105: 0 | T105: 100
C106: Closed_Upland_Depression_67A | D106: 1.1 Rhizomatous Wheatgrass, Cordgrass, Alkali Sacaton-SaLo60A | E106: 2000 | G106: 71-LoUp Big Blue / Little Blue / Sideoats | H106: 0 | I106: 0 | J106: 5 | K106: 8 | L106: 25 | M106: 30 | N106: 15 | O106: 10 | P106: 2 | Q106: 5 | R106: 0 | S106: 0 | T106: 100
C107: Gravelly_67A | D107: 1.2 Inland Saltgrass, Rhizomatous Wheatgrass-SaLo60A | E107: 1100 | G107: 71-Sands Higher Similarity Index | H107: 0 | I107: 0 | J107: 5 | K107: 8 | L107: 15 | M107: 24 | N107: 23 | O107: 15 | P107: 5 | Q107: 5 | R107: 0 | S107: 0 | T107: 100
C108: Limy_Upland_67A | D108: 2.1 Inland Saltgrass, Foxtail Barley, SaLo60A | E108: 900 | G108: 71-Sb Higher Similarity Index | H108: 0 | I108: 0 | J108: 3 | K108: 7 | L108: 15 | M108: 25 | N108: 25 | O108: 17 | P108: 6 | Q108: 2 | R108: 0 | S108: 0 | T108: 100
C109: Loamy_67A | D109: 1.1 Alkali Sacaton-SaSub60A | E109: 2850 | G109: 71-Uplands Lower Similarity Index | H109: 0 | I109: 0 | J109: 5 | K109: 12 | L109: 20 | M109: 25 | N109: 19 | O109: 11 | P109: 5 | Q109: 3 | R109: 0 | S109: 0 | T109: 100
C110: Loamy_Lowland_67A | D110: 1.2 Inland Saltgrass, Alkali Sacaton-SaSub60A | E110: 1750 | G110: 72-(Sb,SaSb, overflow)-Tall Grass domin. | H110: 0 | I110: 0 | J110: 0 | K110: 5 | L110: 15 | M110: 35 | N110: 30 | O110: 10 | P110: 5 | Q110: 0 | R110: 0 | S110: 0 | T110: 100
C111: Loamy_Overflow_67A | D111: 1.3 Low Plant Diversity, Excessive Litter-SaSub60A | E111: 1950 | G111: 72-Blue Grama/Buffalograss | H111: 0 | I111: 0 | J111: 0 | K111: 5 | L111: 18 | M111: 25 | N111: 20 | O111: 15 | P111: 12 | Q111: 5 | R111: 0 | S111: 0 | T111: 100
C112: Saline_Lowland_67A | D112: 2.1 Inland Saltgrass Sod-SaSub60A | E112: 1050 | G112: 72-Sandy/Sands/Choppy Sands Sites | H112: 0 | I112: 0 | J112: 3 | K112: 7 | L112: 20 | M112: 35 | N112: 20 | O112: 10 | P112: 3 | Q112: 2 | R112: 0 | S112: 0 | T112: 100
C113: Saline_Subirrigated_67A | D113: 3.1A Tame Pasture, Low Mgt-SaSub60A | E113: 1500 | G113: 72-Shallow/gravel/loamy/limy-shortgrasses dom. | H113: 0 | I113: 0 | J113: 0 | K113: 2 | L113: 10 | M113: 45 | N113: 25 | O113: 15 | P113: 3 | Q113: 0 | R113: 0 | S113: 0 | T113: 100
C114: Saline_Upland_67A | D114: 3.1B Tame Pasture, Mod. Mgt-SaSub60A | E114: 1900 | G114: 72-Shallow/Gravelly-mid-grasses dom. | H114: 0 | I114: 0 | J114: 2 | K114: 8 | L114: 19 | M114: 30 | N114: 18 | O114: 15 | P114: 6 | Q114: 2 | R114: 0 | S114: 0 | T114: 100
C115: Sands_67A | D115: 3.1C Tame Pasture, High Mgt-SaSub60A | E115: 2300 | G115: 72-threeawns/dropseed/cactus domin. | H115: 0 | I115: 0 | J115: 1 | K115: 5 | L115: 20 | M115: 45 | N115: 20 | O115: 7 | P115: 2 | Q115: 0 | R115: 0 | S115: 0 | T115: 100
C116: Sandy_67A | D116: 1.1 Rhizomatous Wheatgrass, Gardner's Saltbush-SaUp60A | E116: 600 | G116: 72-Uplands:bluestem/sideoats dom. | H116: 0 | I116: 0 | J116: 2 | K116: 10 | L116: 20 | M116: 30 | N116: 20 | O116: 10 | P116: 5 | Q116: 3 | R116: 0 | S116: 0 | T116: 100
C117: Sandy_Lowland_67A | D117: 1.2 Gardner's Saltbush, Rhizomatous Wheatgrass, Bare Ground-SaUp60A | E117: 400 | G117: 72-Western/Needlegrass/Blue Grama | H117: 0 | I117: 0 | J117: 2 | K117: 10 | L117: 23 | M117: 25 | N117: 25 | O117: 10 | P117: 5 | Q117: 0 | R117: 0 | S117: 0 | T117: 100
C118: Shallow_67A | D118: 2.1 Bare Ground, Forbs, Shrubs-SaUp60A | E118: 250 | G118: 73-ClT Lower SI | H118: 0 | I118: 0 | J118: 0 | K118: 5 | L118: 15 | M118: 35 | N118: 30 | O118: 10 | P118: 5 | Q118: 0 | R118: 0 | S118: 0 | T118: 100
C119: Subirrigated_67A | D119: 1.1 Bluestem, Prairie Sandreed-Sa60A | E119: 1900 | G119: 73-ClT, LoLo Higher SI | H119: 0 | I119: 0 | J119: 2 | K119: 10 | L119: 20 | M119: 30 | N119: 25 | O119: 10 | P119: 3 | Q119: 0 | R119: 0 | S119: 0 | T119: 100
C120: Very_Shallow_67A | D120: 1.2 Prairie Sandreed, Needle and thread, Sagebrush-Sa60A | E120: 1300 | G120: 73-ClUp Lower SI | H120: 0 | I120: 0 | J120: 2 | K120: 8 | L120: 20 | M120: 30 | N120: 25 | O120: 10 | P120: 5 | Q120: 0 | R120: 0 | S120: 0 | T120: 100
C121: Wetland_67A | D121: 1.3 Needle and Thread, Blue Grama, Sand Dropseed, Sedge, Sagebrush-Sa60A | E121: 900 | G121: 73-ClUp, CUD High SI | H121: 0 | I121: 0 | J121: 2 | K121: 5 | L121: 23 | M121: 30 | N121: 25 | O121: 10 | P121: 5 | Q121: 0 | R121: 0 | S121: 0 | T121: 100
C122: Closed_Upland_Depression_71 | D122: 2.1 Blowout-Sa60A | E122: 200 | G122: 73-CUD Low SI | H122: 0 | I122: 0 | J122: 0 | K122: 5 | L122: 20 | M122: 35 | N122: 25 | O122: 10 | P122: 5 | Q122: 0 | R122: 0 | S122: 0 | T122: 100
C123: Limy_Upland_71 | D123: 3.1 Annual, Pioneer Perennial-Sa60A | E123: 400 | G123: 73-GH, LoUp, LiU & SwLi Low SI | H123: 0 | I123: 0 | J123: 3 | K123: 10 | L123: 25 | M123: 30 | N123: 20 | O123: 8 | P123: 4 | Q123: 0 | R123: 0 | S123: 0 | T123: 100
C124: Loamy_Lowland_71 | D124: 4.1A Re-Seed Excellent Stand-Sa60A | E124: 2000 | G124: 73-GH, SwLi, LiU Sites Higher SI | H124: 0 | I124: 0 | J124: 5 | K124: 10 | L124: 15 | M124: 30 | N124: 25 | O124: 10 | P124: 5 | Q124: 0 | R124: 0 | S124: 0 | T124: 100
C125: Loamy_Overflow_71 | D125: 4.1B Re-Seed Good Stand-Sa60A | E125: 1750 | G125: 73-LiU, SwL Lower SI | H125: 0 | I125: 0 | J125: 5 | K125: 10 | L125: 20 | M125: 30 | N125: 20 | O125: 10 | P125: 5 | Q125: 0 | R125: 0 | S125: 0 | T125: 100
C126: Loamy_Upland_71 | D126: 4.1C Re-Seed Fair Stand-Sa60A | E126: 1200 | G126: 73-LoLo Western/Blue Grama | H126: 0 | I126: 0 | J126: 0 | K126: 5 | L126: 20 | M126: 35 | N126: 30 | O126: 5 | P126: 5 | Q126: 0 | R126: 0 | S126: 0 | T126: 100
C127: Loess_Breaks_71 | D127: 4.2D Tame Pasture, Low Mgt-Sa60A | E127: 1400 | G127: 73-LoLo Western/Tall Dropseed | H127: 0 | I127: 0 | J127: 5 | K127: 15 | L127: 25 | M127: 25 | N127: 10 | O127: 10 | P127: 5 | Q127: 5 | R127: 0 | S127: 0 | T127: 100
C128: Saline_Subirrigated_71 | D128: 4.2E Tame Pasture, Mod Mgt-Sa60A | E128: 1750 | G128: 73-LoTe Blue Grama/Buffalo/Western | H128: 0 | I128: 0 | J128: 0 | K128: 5 | L128: 22 | M128: 35 | N128: 25 | O128: 8 | P128: 5 | Q128: 0 | R128: 0 | S128: 0 | T128: 100
C129: Sands_71 | D129: 4.2F Tame Pasture, High Mgt-Sa60A | E129: 2000 | G129: 73-LoTe Tall Drop/Western/Remnants | H129: 0 | I129: 0 | J129: 2 | K129: 13 | L129: 20 | M129: 25 | N129: 25 | O129: 10 | P129: 5 | Q129: 0 | R129: 0 | S129: 0 | T129: 100
C130: Sandy_71 | D130: 4.2G Tame Pasture, Irrigated-Low Mgt-Sa60A | E130: 6900 | G130: 73-LoTe Tall Grass Dom. | H130: 0 | I130: 0 | J130: 2 | K130: 5 | L130: 20 | M130: 33 | N130: 25 | O130: 10 | P130: 5 | Q130: 0 | R130: 0 | S130: 0 | T130: 100
C131: Subirrigated_71 | D131: 4.2H Tame Pasture, Irrigated-High Mgt-Sa60A | E131: 9000 | G131: 73-LoUp | H131: 0 | I131: 0 | J131: 0 | K131: 5 | L131: 20 | M131: 30 | N131: 30 | O131: 10 | P131: 5 | Q131: 0 | R131: 0 | S131: 0 | T131: =SUM(H131:S131) -> 100
C132: Wetland_71 | D132: 1.1 Prairie Sandreed, Needle and Thread, Bluestem-Sy60A | E132: 1800 | G132: 73-Sands & Sandy Sites | H132: 0 | I132: 0 | J132: 3 | K132: 7 | L132: 20 | M132: 35 | N132: 20 | O132: 10 | P132: 3 | Q132: 2 | R132: 0 | S132: 0 | T132: 100
C133: Choppy_Sands_72 | D133: 1.2 Prairie Sandreed, Needle and Thread, Blue Grama-Sy60A | E133: 1200 | G133: 73-SyLo & LoLo Mid and Tall Grass dom. | H133: 0 | I133: 0 | J133: 5 | K133: 15 | L133: 20 | M133: 25 | N133: 20 | O133: 10 | P133: 5 | Q133: 0 | R133: 0 | S133: 0 | T133: 100
C134: Closed_Upland_Depression_72 | D134: 2.1 Blue Grama, Sand Dropseed, Threadleaf Sedge-Sy60A | E134: 900 | G134: 73-SyLo Tall Grass Domin. | H134: 0 | I134: 0 | J134: 0 | K134: 5 | L134: 20 | M134: 35 | N134: 25 | O134: 10 | P134: 5 | Q134: 0 | R134: 0 | S134: 0 | T134: 100
C135: Gravelly_Hills_72 | D135: 3.1 Threeawn, Sand Dropseed, Annuals-Sy60A | E135: 500 | G135: 73-SyLo Western Wheat Domin. | H135: 0 | I135: 0 | J135: 10 | K135: 20 | L135: 20 | M135: 25 | N135: 5 | O135: 5 | P135: 10 | Q135: 5 | R135: 0 | S135: 0 | T135: 100
C136: Limy_Slopes_72 | D136: 4.1 Go-Back-Sy60A | E136: 500 | G136: 75 Smooth Bromegrass | H136: 0 | I136: 0 | J136: 2 | K136: 13 | L136: 29 | M136: 19 | N136: 7 | O136: 10 | P136: 13 | Q136: 6 | R136: 1 | S136: 0 | T136: 100
C137: Loamy_Lowland_72 | D137: 4.2A Re-Seed Excellent Stand-Sy60A | E137: 2000 | G137: 75-Eastern Red Cedar/Tree Overstory | H137: 0 | I137: 3 | J137: 8 | K137: 12 | L137: 20 | M137: 25 | N137: 14 | O137: 5 | P137: 8 | Q137: 4 | R137: 1 | S137: 0 | T137: 100
C138: Loamy_Tableland_72 | D138: 4.2B Re-Seed Good Stand-Sy60A | E138: 1750 | G138: 75-LoO & LoLo Mid Grass Dom/ w. Big Blue | H138: 0 | I138: 0 | J138: 4 | K138: 9 | L138: 27 | M138: 29 | N138: 15 | O138: 8 | P138: 5 | Q138: 2 | R138: 1 | S138: 0 | T138: 100
C139: Loess_Breaks_72 | D139: 4.2C Re-Seed Fair Stand-Sy60A | E139: 1200 | G139: 75-LoO & LoLO Tall Grass Dom. | H139: 0 | I139: 0 | J139: 4 | K139: 9 | L139: 27 | M139: 29 | N139: 15 | O139: 8 | P139: 5 | Q139: 2 | R139: 1 | S139: 0 | T139: 100
C140: Rolling_Sands_72 | D140: 4.3D Tame Pasture, Low Mgt-Sy60A | E140: 1400 | G140: 75-LoO,LoO, LoUp, Cy, SwL Short Grass Dom. | H140: 0 | I140: 0 | J140: 3 | K140: 9 | L140: 27 | M140: 25 | N140: 12 | O140: 10 | P140: 10 | Q140: 3 | R140: 1 | S140: 0 | T140: 100
C141: Saline_Lowland_72 | D141: 4.3E Tame Pasture, Mod Mgt-Sy60A | E141: 1750 | G141: 75-LoUp & Cy Mid Grass Dom. | H141: 0 | I141: 0 | J141: 3 | K141: 10 | L141: 21 | M141: 26 | N141: 18 | O141: 10 | P141: 8 | Q141: 3 | R141: 1 | S141: 0 | T141: 100
C142: Saline_Subirrigated_72 | D142: 4.3F Tame Pasture, High Mgt-Sy60A | E142: 2000 | G142: 75-LoUp & Cy Tall Grass Domin. | H142: 0 | I142: 0 | J142: 3 | K142: 7 | L142: 21 | M142: 33 | N142: 18 | O142: 8 | P142: 6 | Q142: 3 | R142: 1 | S142: 0 | T142: 100
C143: Sandy_Lowland_72 | D143: 4.3G Tame Pasture, Irrigated-Low Mgt-Sy60A | E143: 6900 | G143: 75-SwL Tall & Mid Grass Domin. | H143: 0 | I143: 0 | J143: 3 | K143: 7 | L143: 21 | M143: 33 | N143: 18 | O143: 8 | P143: 6 | Q143: 3 | R143: 1 | S143: 0 | T143: =SUM(H143:S143) -> 100
C144: Sandy_Plains_72 | D144: 4.3H Tame Pasture, Irrigated-High Mgt-Sy60A | E144: 9000 | G144: 107B-Introduced cool seasons domin or codom | H144: 0 | I144: 0 | J144: 2 | K144: 13 | L144: 29 | M144: 19 | N144: 7 | O144: 10 | P144: 13 | Q144: 6 | R144: 1 | S144: 0 | T144: =SUM(H144:S144) -> 100
C145: Shallow_Limy_72 | D145: 1.1 Rhizomatous Wheatgrass, sideoats Grama, Needlegrass-SwCl60A | E145: 1400 | G145: 107B-Upland Sites, Native Tall, Mid Grasses Dom. | H145: 0 | I145: 0 | J145: 4 | K145: 9 | L145: 27 | M145: 29 | N145: 15 | O145: 8 | P145: 5 | Q145: 2 | R145: 1 | S145: 0 | T145: 100
C146: Subirrigated_72 | D146: 1.2 Rhizomatous Wheatgrass, Grama, Sedge-SwCl60A | E146: 1000 | G146: 107B-Lowland Sites, Warm Season Domin. | H146: 0 | I146: 0 | J146: 4 | K146: 9 | L146: 27 | M146: 29 | N146: 15 | O146: 8 | P146: 5 | Q146: 2 | R146: 1 | S146: 0 | T146: 100
C147: Tableland_Swale_72 | D147: 2.1 Grama, Sedge-SwCl60A | E147: 600 | G147: 107B-Upland Loamy or shallow sites, Short grass or introduced | H147: 0 | I147: 0 | J147: 4 | K147: 9 | L147: 27 | M147: 29 | N147: 15 | O147: 8 | P147: 5 | Q147: 2 | R147: 1 | S147: 0 | T147: 100
C148: Blue_Shale_73 | D148: 3.1 Juniper, Ponderosa Pine-SwCl60A | E148: 1200
C149: Choppy_Sands_73 | D149: 1.1 Rhizomatous Wheatgrass-SDC60A | E149: 900
C150: Clay_Terrace_73 | D150: 1.2 Rhizomatous Wheatgrass, Annuals-SDC60A | E150: 500
C151: Closed_Upland_Depression_73 | D151: 1.1 Bluestem, Sideoats Grama, Needlegrass, Wheatgrass-SwLo60A | E151: 1400
C152: Gravelly_Hills_73 | D152: 1.2 Needle and Thread, Little Bluestem, Grama-SwLo60A | E152: 1000
C153: Limy_Slopes_73 | D153: 2.1 Grama, Sedge, Sagewort-SwLo60A | E153: 500
C154: Loamy_Floodplain_73 | D154: 3.1 Juniper, Ponderosa Pine-SwLo60A | E154: 1200
C155: Loamy_Plains_73 | D155: 1.1 Bluestem, Sun Sedge, Shrubs-SPC60A | E155: 955
C156: Loamy_Terrace_73 | D156: 1.2 Rhizomatous Wheatgrass, Little Bluestem, Sagewort, Shrubs-SPC60A | E156: 700
C157: Loess_Hills_73 | D157: 2.1 Bur Oak, Ponderosa Pine, Shrubs, Bare Ground-SPC60A | E157: 500
C158: Sandy_Floodplain_73 | D158: 2.2 Ponderosa Pine, Rocky Mountain Juniper, Bare Ground-SPC60A | E158: 500
C159: Sandy_Plains_73 | D159: 3.1 Sparse Vegetation, Exposed Shale-SPC60A | E159: 150
C160: Shallow_Limy_73 | D160: 1.1 Needle and Thread, Prairie Sandreed-SwSy60A | E160: 1300
C161: Subirrigated_73 | D161: 1.2 Needle and Thread, Blue Grama, Threadleaf Sedge, Yucca-SwSy60A | E161: 850
C162: Clayey_Plains_75 | D162: 2.1 Threadleaf Sedge, Fringed Sagewort, Yucca-SwSy60A | E162: 550
C163: Closed_Upland_Depression_75 | D163: 1.1 Prairie cordgrass, Tall Warm Season Grasses, Rhizomatous Wheatgrass-Sub60A | E163: 4300
C164: Gravelly_Hills_75 | D164: 1.2 Rhizomatous Wheatgrass, Sedges, Rushes-Sub60A | E164: 3000
C165: Limy_Loess_Slopes_75 | D165: 1.3 Decadent Plants, Excessive Litter-Sub60A | E165: 3300
C166: Loamy_Floodplain_75 | D166: 2.1 Invaded range - Kentucky Bluegrass Sod-Sub60A | E166: 2000
C167: Loamy_Plains_75 | D167: 2.2 Invaded range-Kentucky Bluegrass Sod, Invaders-Sub60A | E167: 1000
C168: Loamy_Terrace_75 | D168: 1.1 Rhizomatous Wheatgrass, Blue Grama-TC60A | E168: 900
C169: Loess_Breaks_75 | D169: 1.2 Shortgrass, Cactus-TC60A | E169: 500
C170: Saline_Depression_75 | D170: 1.1 Little Bluestem, Needlegrass, Grama-ThU60A | E170: 1400
C171: Sands_75 | D171: 1.2 Little Bluestem, Grama-ThU60A | E171: 1200
C172: Sandy_75 | D172: 1.3 Blue Grama, Sedge-ThU60A | E172: 800
C173: Sandy_Floodplain_75 | D173: 2.1A Tame Pasture, Low Mgt-ThU60A | E173: 1700
C174: Shallow_Limy_75 | D174: 2.1B Tame Pasture, Mod Mgt-ThU60A | E174: 2300
C175: Subirrigated_75 | D175: 2.1C Tame Pasture, High Mgt-ThU60A | E175: 3000
C176: Wet_Subirrigated_75 | D176: 1.1 Needle and Thread, Little Bluestem, Grama-VSw60A | E176: 800
C177: Clayey_102C | D177: 1.2 Grama, Sedge-VSw60A | E177: 400
C178: Clayey_Overflow_102C | D178: 1.1 Prairie Cordgrass, Reedgrass, Sedge-WL60A | E178: 5500
C179: Closed_Depression_or_Shallow_Marsh_102C | D179: 1.2 Spikerush, Bulrush, Cattails-WL60A | E179: 4500
C180: Limy_Upland_102C | D180: 2.1A Tame Pasture, Low Mgt-WL60A | E180: 3000
C181: Loamy_Lowland_102C | D181: 2.1B Tame Pasture, Mod Mgt-WL60A | E181: 4000
C182: Loamy_Overflow_102C | D182: 2.1C Tame Pasture, High Mgmt-WL60A | E182: 5000
C183: Loamy_Upland_102C | D183: 1.1 Western Wheatgrass, Green Needlegrass-Cy63B | E183: 2800
C184: Loess_Breaks_or_Loess_Uplands_102C | D184: 2.1 Western Wheatgrass, Green Needlegrass, Introduced Grasses < 15%-Cy63B | E184: 2800
C185: Saline_Lowland_102C | D185: 2.2 Western Wheatgrass, Green Needlegrass, Introduced Grasses > 15%-Cy63B | E185: 2100
C186: Saline_Subirrigated_102C | D186: 3.1 Buffalograss, Blue Grama-Cy63B | E186: 1300
C187: Sands_102C | D187: 4.1 Threeawns, Annuals-Cy63B | E187: 800
C188: Sandy_102C | D188: 5.1 Invaded range-Smooth Bromegrass, Kentucky Bluegrass > 30%-Cy63B | E188: 2600
C189: Sandy_Lowland_102C | D189: 5.2 Invaded range-Smooth Brome, Kentucky Bluegrass > 80%-Cy63B | E189: 1700
C190: Shallow_Clay_102C | D190: 6.1 Go-BackCy63B | E190: 500
C191: Shallow_Limy_102C | D191: 7.1A Tame Pasture, Low Mgt-Cy63B | E191: 2000
C192: Shallow_to_Gravel_102C | D192: 7.1B Tame Pasture, Mod. Mgt-Cy63B | E192: 3500
C193: Subirrigated_102C | D193: 7.1C Tame Pasture, High Mgt-Cy63B | E193: 5000
C194: Very_Shallow_102C | D194: 1.1 Western Wheatgrass, Bluestem, Needlegrass-CyO63B | E194: 3000
C195: Wetland_102C | D195: 1.2 Western Wheatgrass-CyO63B | E195: 2400
C196: Wet_Subirrigated_102C | D196: 2.1 Western Wheatgrass, Bluestem, Needlegrass, Non-Native Cool Season Grasses-CyO63B | E196: 2700
C197: Clayey_Upland_106 | D197: 2.2 Western Wheatgrass, Non-Native Cool Season Grasses-CyO63B | E197: 2300
C198: Limy_Upland_106 | D198: 3.1 Invaded range-Smooth Bromegrass, Kentucky Bluegrass, Forbs-CyO63B | E198: 2800
C199: Loamy_Floodplain_106 | D199: 4.1 GoBack-CyO63B | E199: 1250
C200: Loamy_Terrace_106 | D200: 4.2A Range Seeding, Excellent Stand-CyO63B | E200: 3250
... 1776 more rows

Sheet DATA
A1: Alfalfa | B1: 2.5 | F1: Begin Grazing | G1: End Grazing | H1: Killing frost
A2: Grass Hay | B2: 2.5 | E2: Alfalfa / Alsike/ red clover | F2: 6 | G2: 3 | H2: 6
A3: Annual Hay | B3: 2.5 | E3: Big / Sand bluestem | F3: 10 | G3: 6 | H3: 10
A4: Corn Silage | B4: 1.5 | E4: Birdsfoot trefoil | F4: 6 | G4: 3 | H4: 6
A5: Cane Silage | B5: 1.5 | E5: Cicer milkvetch | F5: 8 | G5: 5 | H5: 8
A6: Grain | B6: 3.7 | E6: Creeping foxtail | F6: 6 | G6: 3 | H6: 6
E7: Crested wheatgrass | F7: 4 | G7: 3 | H7: 6
E8: Eastern gamagrass | F8: 18 | G8: 8 | H8: 10
E9: Forage Cocktail | F9: 6 | G9: 2 | H9: 2
E10: Indiangrass | F10: 10 | G10: 4 | H10: 10
E11: Intermediate wheatgrass | F11: 6 | G11: 5 | H11: 8
E12: Meadow bromegrass | F12: 6 | G12: 5 | H12: 6
E13: Mid Warm Season Native | F13: 6 | G13: 4 | H13: 5
E14: Orchardgrass | F14: 6 | G14: 5 | H14: 8
E15: Pubescent wheatgrass | F15: 6 | G15: 5 | H15: 6
E16: Reed canarygrass | F16: 8 | G16: 4 | H16: 8
E17: Russian wildrye | F17: 6 | G17: 3 | H17: 4
E18: Small Grain | F18: 6 | G18: 2 | H18: 4
E19: Smooth brome | F19: 6 | G19: 4 | H19: 7
E20: Switchgrass | F20: 10 | G20: 6 | H20: 10
E21: Tall fescue | F21: 6 | G21: 3 | H21: 6
E22: Tall Warm Season Native | F22: 10 | G22: 6 | H22: 10
E23: Tall wheatgrass | F23: 7 | G23: 4 | H23: 8
E24: Timothy | F24: 6 | G24: 4 | H24: 5
E25: Warm Season Cover Crop | F25: 10 | G25: 6 | H25: 8
E26: Western wheatgrass | F26: 6 | G26: 3 | H26: 6
C217: 0.2 | D217: 0.8
C218: 0.25 | D218: 1
C219: 0.3 | D219: 1.2
C220: 0.35 | D220: 1.4
